Workbook

Sheet START
A1: =muni -> NC074 Kareeberg

Sheet Instructions
D2: 2020
X4: Yes
X5: No
W7: Type of Entities Range: | X7: Parent Municipality
X8: Consolidated Information
W10: Date linked | X10: 6
W11: Date | X11: =VLOOKUP(X10,W39:X55,2) -> M06 December | Y11: 2013-08-01
W19: MTREF Range: | X19: 2008
X20: 2009
X21: 2010
X22: 2011
X23: 2012
X24: 2013
X25: 2014
X26: 2015
X27: 2016
X28: 2017
X29: 2018
X30: 2019
X31: 2020
X32: 2021
X33: 2022
W34: MTREF Linked:
W35: MTREF: | X35: 9
X36: =INDEX(X19:X33,X35,1) -> 2016
W37: Fin Year:
X38: =MTREF&"/"&RIGHT(MTREF,2)+1 -> 2016/17
V39: Date/type of report | W39: 1 | X39: M01 July
W40: 2 | X40: M02 August
W41: 3 | X41: M03 September
W42: 4 | X42: M04 October
W43: 5 | X43: M05 November
W44: 6 | X44: M06 December
W45: 7 | X45: M07 January
W46: 8 | X46: M08 February
W47: 9 | X47: M09 March
W48: 10 | X48: M10 April
W49: 11 | X49: M11 May
W50: 12 | X50: M12 June
W51: 13 | X51: Q1 First Quarter
W52: 14 | X52: Q2 Second Quarter
W53: 15 | X53: Q3 Third Quarter
W54: 16 | X54: Q4 Fourth Quarter
W55: 17 | X55: Mid-Year Assessment

Sheet Template names (hidden)
A1: Common sheet headings
A2: Head1 | B2: =HLOOKUP(MTREF,Headings,2) -> 2015/16 | C2: Prior year -1
A3: Head2 | B3: =HLOOKUP(MTREF,Headings,5) -> Budget Year 2016/17 | C3: Year of approved budget
A4: Head2A | B4: =HLOOKUP(MTREF,Headings,4) -> 2016/17 | C4: Approved budget year
A5: Head3 | B5: =HLOOKUP(MTREF,Headings,3) -> 2016/17 Medium Term Revenue & Expenditure Framework | C5: MTREF header name
A6: Head5 | B6: Audited Outcome
A7: Head5A | B7: Outcome
A8: Head5B | B8: Pre-audit outcome
A9: Head6 | B9: Original Budget
A10: Head7 | B10: Adjusted Budget
A11: Head8 | B11: Full Year Forecast
A12: Head9 | B12: =HLOOKUP(MTREF,Headings,5) -> Budget Year 2016/17 | C12: 1st year of MTREF | D12: Year1
A13: Head10 | B13: =HLOOKUP(MTREF,Headings,6) -> Budget Year +1 2017/18 | C13: 2nd year of MTREF | D13: Year2
A14: Head11 | B14: =HLOOKUP(MTREF,Headings,7) -> Budget Year +2 2018/19 | C14: 3rd year of MTREF | D14: Year3
A15: Head12 | B15: Forecast 2010/11 | D15: Year4
A16: Head13 | B16: Forecast 2011/12 | D16: Year5
A17: Head14 | B17: Forecast 2012/13 | D17: Year6
A18: Head15 | B18: Forecast 2013/14 | D18: Year7
A19: Head16 | B19: Forecast 2014/15 | D19: Year8
A20: Head17 | B20: Forecast 2015/16 | D20: Year9
A21: Head18 | B21: Forecast 2016/17 | D21: Year10
A22: Head19 | B22: Forecast 2017/18 | D22: Year11
A23: Head20 | B23: Forecast 2018/19 | D23: Year12
A24: Head21 | B24: Forecast 2019/20 | D24: Year13
A25: Head22 | B25: Forecast 2020/21 | D25: Year14
A26: Head23 | B26: Forecast 2021/22 | D26: Year15
A27: Head24 | B27: Description | D27: Desc
A28: Head25 | B28: Schedule of funding diligence | D28: fdil
A29: Head26 | B29: Vote Description | D29: VDesc
A30: Head27 | B30: Ref
A31: Head27a | B31: References
A32: Head28 | B32: Surplus/ (Deficit) for the year | D32: Result
A33: Head29 | B33: Annual target 2007/08
A34: Head30 | B34: Revised target 2007/08
A35: Head31 | B35: Quarter ended 30 September
A36: Head32 | B36: Quarter ended 31 December
A37: Head33 | B37: Quarter ended 31 March
A38: Head34 | B38: Quarter ended 30 June
A39: Head35 | B39: Variance explanation
A40: Head36 | B40: YTD Actual 31 Dec
A41: Head37 | B41: YTD Budget 31 Dec
A42: Head38 | B42: Monthly actual
A43: Head39 | B43: YearTD actual
A44: Head40 | B44: YearTD budget
A45: Head41 | B45: YTD variance
A46: Head42 | B46: Surplus/ (Deficit) for the yr/period
A47: Head43 | B47: =Head3&" Summary" -> 2016/17 Medium Term Revenue & Expenditure Framework Summary
A48: Head44 | B48: 1996 Census
A49: Head45 | B49: 2001 Census
A50: Head46 | B50: - Adjustments Budget - Month YYYY
A51: Head47 | B51: Previous target year to complete
A52: Head48 | B52: Present value
A53: Head49 | B53: Virement
A54: Head50 | B54: Other Adjusts.
A55: Head51 | B55: Accum. Funds
A56: Head52 | B56: Multi-year capital
A57: Head53 | B57: Unfore. Unavoid.
A58: Head54 | B58: Prior Adjusted
A59: Head55 | B59: Nat. or Prov. Govt
A60: Head56 | B60: Total Adjusts.
A61: Head57 | B61: =date -> M06 December
A62: Head58 | B62: Parent muni.
A63: Head59 | B63: Downward adjusts
A64: Head60 | B64: Month | C64: Report header part name | D64: =MONTH(date) -> 
A65: SFPerf1 | B65: Budgeted Financial Performance
A66: SFPerf2 | B66: Forecast Financial Performance
A67: SFPos1 | B67: Budgeted Financial Position
A68: SFPos2 | B68: Forecast Financial Position
A69: Cash1 | B69: Budget Cash Flow
A70: Cash2 | B70: Forecast Cash Flow
A71: RandM | B71: Expenditure includes repairs & maintenance of R'000
A72: Standard nomenclature
A73: Muni | B73: ='Lookup and lists'!B27 -> NC074 Kareeberg
A74: Municipal Entities | B74: 2 | C74: Type of report: | D74: 3
A75: =IF((MuniEntities=1)*(MuniType=2),"YES","NO") -> NO | B75: Does this municipality have entities (consolidated budget and entity budgets required)? YES/NO
A76: s71 (Monthly Mayor report) schedules and charts
A77: S71sum | B77: =IF(Consolques="YES",E77,F77) -> Table C1 Monthly Budget Statement Summary | D77: Table C1 | E77: =D77&"Consolidated Monthly Budget Statement Summary" -> Table C1 Consolidated Monthly Budget Statement Summary | F77: =D77&"Monthly Budget Statement Summary" -> Table C1 Monthly Budget Statement Summary
A78: S71C | B78: Table C3 Monthly Budget Statement - Financial Performance (revenue and expenditure by municipal vote) | D78: Table C3 | E78: =D78&"Consolidated Monthly Budget Statement - Financial Performance (revenue and expenditure by municipal vote) " -> Table C3 Consolidated Monthly Budget Statement - Financial Performance (revenue and expenditure by municipal vote) | F78: =D78&"Monthly Budget Statement - Financial Performance (revenue and expenditure by municipal vote)" -> Table C3 Monthly Budget Statement - Financial Performance (revenue and expenditure by municipal vote)
A79: S71A | B79: =IF(Consolques="YES",E79,F79) -> Table C2 Monthly Budget Statement - Financial Performance (standard classification) | D79: Table C2 | E79: =D79&"Consolidated Monthly Budget Statement - Financial Performance (standard classification) " -> Table C2 Consolidated Monthly Budget Statement - Financial Performance (standard classification) | F79: =D79&"Monthly Budget Statement - Financial Performance (standard classification)" -> Table C2 Monthly Budget Statement - Financial Performance (standard classification)
A80: S71B | B80: =IF(Consolques="YES",E80,F80) -> Table C4 Monthly Budget Statement - Financial Performance (revenue and expenditure) | D80: Table C4 | E80: =D80&"Consolidated Monthly Budget Statement - Financial Performance (revenue and expenditure) " -> Table C4 Consolidated Monthly Budget Statement - Financial Performance (revenue and expenditure) | F80: =D80&"Monthly Budget Statement - Financial Performance (revenue and expenditure)" -> Table C4 Monthly Budget Statement - Financial Performance (revenue and expenditure)
A81: S71D | B81: =IF(Consolques="YES",E81,F81) -> Table C5 Monthly Budget Statement - Capital Expenditure (municipal vote, standard classification and funding) | D81: Table C5 | E81: =D81&"Consolidated Monthly Budget Statement - Capital Expenditure (municipal vote, standard classification and funding " -> Table C5 Consolidated Monthly Budget Statement - Capital Expenditure (municipal vote, standard classification and funding | F81: =D81&"Monthly Budget Statement - Capital Expenditure (municipal vote, standard classification and funding)" -> Table C5 Monthly Budget Statement - Capital Expenditure (municipal vote, standard classification and funding)
A82: S71E | B82: Table C6 Monthly Budget Statement - Financial Position | D82: Table C6 | E82: =D82&"Consolidated Monthly Budget Statement - Financial Position " -> Table C6 Consolidated Monthly Budget Statement - Financial Position | F82: =D82&"Monthly Budget Statement - Financial Position" -> Table C6 Monthly Budget Statement - Financial Position
A83: S71F | B83: Table C7 Monthly Budget Statement - Cash Flow | D83: Table C7 | E83: =D83&"Consolidated Monthly Budget Statement - Cash Flow " -> Table C7 Consolidated Monthly Budget Statement - Cash Flow | F83: =D83&"Monthly Budget Statement - Cash Flow " -> Table C7 Monthly Budget Statement - Cash Flow
A84: S71G | B84: =D84&"Material variance explanations " -> Supporting Table SC1 Material variance explanations | D84: Supporting Table SC1
A85: S71H | B85: =D85&"Monthly Budget Statement - performance indicators " -> Supporting Table SC2 Monthly Budget Statement - performance indicators | D85: Supporting Table SC2
A86: S71I | B86: =D86&"Monthly Budget Statement - aged debtors" -> Supporting Table SC3 Monthly Budget Statement - aged debtors | D86: Supporting Table SC3
A87: S71J | B87: =D87&"Monthly Budget Statement - aged creditors " -> Supporting Table SC4 Monthly Budget Statement - aged creditors | D87: Supporting Table SC4
A88: S71K | B88: =D88&"Monthly Budget Statement - investment portfolio " -> Supporting Table SC5 Monthly Budget Statement - investment portfolio | D88: Supporting Table SC5
A89: S71L | B89: =D89&"Monthly Budget Statement - transfers and grant receipts " -> Supporting Table SC6 Monthly Budget Statement - transfers and grant receipts | D89: Supporting Table SC6
A90: S71M | B90: =D90&" Monthly Budget Statement - transfers and grant expenditure " -> Supporting Table SC7(1) Monthly Budget Statement - transfers and grant expenditure | D90: Supporting Table SC7(1)
A91: S71N | B91: =D91&"Monthly Budget Statement - councillor and staff benefits " -> Supporting Table SC8 Monthly Budget Statement - councillor and staff benefits | D91: Supporting Table SC8
A92: S71O | B92: =D92&"Monthly Budget Statement - actuals and revised targets for cash receipts" -> Supporting Table SC9 Monthly Budget Statement - actuals and revised targets for cash receipts | D92: Supporting Table SC9
A93: S71P | B93: =IF(Consolques="YES",E93,F93) -> NOT REQUIRED - municipality does not have entities or this is the parent municipality's budget | D93: Supporting Table SC10 | E93: =D93&"Monthly Budget Statement - Parent Municipality Financial Performance (revenue and expenditure) " -> Supporting Table SC10 Monthly Budget Statement - Parent Municipality Financial Performance (revenue and expenditure) | F93: NOT REQUIRED - municipality does not have entities or this is the parent municipality's budget
A94: S71Q | B94: NOT REQUIRED - municipality does not have entities or this is the parent municipality's budget | D94: Supporting Table SC11 | E94: =D94&"Monthly Budget Statement - summary of municipal entities" -> Supporting Table SC11 Monthly Budget Statement - summary of municipal entities | F94: NOT REQUIRED - municipality does not have entities or this is the parent municipality's budget
A95: S71R | B95: Supporting Table SC12 Monthly Budget Statement - capital expenditure trend | D95: Supporting Table SC12 | E95: =D95&"Consolidated Monthly Budget Statement - capital expenditure trend " -> Supporting Table SC12 Consolidated Monthly Budget Statement - capital expenditure trend | F95: =D95&"Monthly Budget Statement - capital expenditure trend" -> Supporting Table SC12 Monthly Budget Statement - capital expenditure trend
A96: S71Sa | B96: Supporting Table SC13a Monthly Budget Statement - capital expenditure on new assets by asset class | D96: Supporting Table SC13a | E96: =D96&"Consolidated Monthly Budget Statement - capital expenditure on new assets by asset class" -> Supporting Table SC13a Consolidated Monthly Budget Statement - capital expenditure on new assets by asset class | F96: =D96&"Monthly Budget Statement - capital expenditure on new assets by asset class" -> Supporting Table SC13a Monthly Budget Statement - capital expenditure on new assets by asset class
A97: S71Sb | B97: Supporting Table SC13b Monthly Budget Statement - capital expenditure on renewal of existing assets by asset class | D97: Supporting Table SC13b | E97: =D97&"Consolidated Monthly Budget Statement - capital expenditure on renewal of existing assets by asset class" -> Supporting Table SC13b Consolidated Monthly Budget Statement - capital expenditure on renewal of existing assets by asset class | F97: =D97&"Monthly Budget Statement - capital expenditure on renewal of existing assets by asset class" -> Supporting Table SC13b Monthly Budget Statement - capital expenditure on renewal of existing assets by asset class
A98: S71Sc | B98: Supporting Table SC13c Monthly Budget Statement - expenditure on repairs and maintenance by asset class | D98: Supporting Table SC13c | E98: =D98&"Consolidated Monthly Budget Statement - expenditure on repairs and maintenance by asset class" -> Supporting Table SC13c Consolidated Monthly Budget Statement - expenditure on repairs and maintenance by asset class | F98: =D98&"Monthly Budget Statement - expenditure on repairs and maintenance by asset class" -> Supporting Table SC13c Monthly Budget Statement - expenditure on repairs and maintenance by asset class
A99: S71Sd | B99: Supporting Table SC13d Monthly Budget Statement - depreciation by asset class | D99: Supporting Table SC13d | E99: =D99&"Consolidated Monthly Budget Statement - depreciation by asset class" -> Supporting Table SC13d Consolidated Monthly Budget Statement - depreciation by asset class | F99: =D99&"Monthly Budget Statement - depreciation by asset class" -> Supporting Table SC13d Monthly Budget Statement - depreciation by asset class
B100: s71 charts listing
B101: =D101&Head2A&" Capital Expenditure Monthly Trend: actual v target" -> Chart C1 2016/17 Capital Expenditure Monthly Trend: actual v target | D101: Chart C1
B102: =D102&Head2A&" Capital Expenditure: YTD actual v YTD target" -> Chart C2 2016/17 Capital Expenditure: YTD actual v YTD target | D102: Chart C2
B103: =D103&"Aged Consumer Debtors Analysis" -> Chart C3 Aged Consumer Debtors Analysis | D103: Chart C3
B104: =D104&"Consumer Debtors (total by Debtor Customer Category)" -> Chart C4 Consumer Debtors (total by Debtor Customer Category) | D104: Chart C4
B105: =D105&"Aged Creditors Analysis" -> Chart C5 Aged Creditors Analysis | D105: Chart C5
A106: S71T | B106: =D106&" Monthly Budget Statement - Expenditure against approved rollovers" -> Supporting Table SC7(2) Monthly Budget Statement - Expenditure against approved rollovers | D106: Supporting Table SC7(2)

Sheet Lookup and lists (hidden)
A1: Description | B1: 2007 | C1: 2008 | D1: 2009 | E1: 2010 | F1: 2011 | G1: 2012 | H1: 2013 | I1: 2014 | J1: 2015 | K1: 2016 | L1: 2017 | M1: 2018 | N1: 2019 | O1: 2020 | Q1: Grants: | R1: National - opex | S1: Provincial - opex | T1: National - capex | U1: Provincial - capex | V1: YESNO
A2: ='Template names'!C2 -> Prior year -1 | B2: 2006/07 | C2: 2007/08 | D2: 2008/09 | E2: =E1-1&"/"&RIGHT(E1,2)-0 -> 2009/10 | F2: =F1-1&"/"&RIGHT(F1,2)-0 -> 2010/11 | G2: 2011/12 | H2: 2012/13 | I2: 2013/14 | J2: 2014/15 | K2: 2015/16 | L2: 2016/17 | M2: 2017/18 | N2: 2018/19 | O2: 2019/20 | R2: Local Government Equitable Share | S2: Health subsidy | T2: Municipal Infrastructure Grant (MIG) | U2: Agriculture | V2: Yes
A3: ='Template names'!C5 -> MTREF header name | B3: 2007/08 Medium Term Revenue & Expenditure Framework | C3: 2008/09 Medium Term Revenue & Expenditure Framework | D3: 2009/10 Medium Term Revenue & Expenditure Framework | E3: =E1&"/"&RIGHT(E1,2)+1&" Medium Term Revenue & Expenditure Framework" -> 2010/11 Medium Term Revenue & Expenditure Framework | F3: =F1&"/"&RIGHT(F1,2)+1&" Medium Term Revenue & Expenditure Framework" -> 2011/12 Medium Term Revenue & Expenditure Framework | G3: 2012/13 Medium Term Revenue & Expenditure Framework | H3: 2013/14 Medium Term Revenue & Expenditure Framework | I3: 2014/15 Medium Term Revenue & Expenditure Framework | J3: 2015/16 Medium Term Revenue & Expenditure Framework | K3: 2016/17 Medium Term Revenue & Expenditure Framework | L3: 2017/18 Medium Term Revenue & Expenditure Framework | M3: 2018/19 Medium Term Revenue & Expenditure Framework | N3: 2019/20 Medium Term Revenue & Expenditure Framework | O3: 2020/21 Medium Term Revenue & Expenditure Framework | R3: RSC Levy Replacement | S3: Ambulance subsidy | T3: Public Transport and Systems | U3: Education | V3: No
A4: ='Template names'!C4 -> Approved budget year | B4: 2007/08 | C4: 2008/09 | D4: 2009/10 | E4: =E1&"/"&RIGHT(E1,2)+1 -> 2010/11 | F4: =F1&"/"&RIGHT(F1,2)+1 -> 2011/12 | G4: 2012/13 | H4: 2013/14 | I4: 2014/15 | J4: 2015/16 | K4: 2016/17 | L4: 2017/18 | M4: 2018/19 | N4: 2019/20 | O4: 2020/21 | R4: Finance Management | S4: Housing | T4: Rural Transport Services and Infrastructure | U4: Health
A5: ='Template names'!C12 -> 1st year of MTREF | B5: Budget Year 2007/08 | C5: Budget Year 2008/09 | D5: Budget Year 2009/10 | E5: ="Budget Year "&E1&"/"&RIGHT(E1,2)+1 -> Budget Year 2010/11 | F5: ="Budget Year "&F1&"/"&RIGHT(F1,2)+1 -> Budget Year 2011/12 | G5: Budget Year 2012/13 | H5: Budget Year 2013/14 | I5: Budget Year 2014/15 | J5: Budget Year 2015/16 | K5: Budget Year 2016/17 | L5: Budget Year 2017/18 | M5: Budget Year 2018/19 | N5: Budget Year 2019/20 | O5: Budget Year 2020/21 | R5: Municipal Systems Improvement | S5: Sport and Recreation | T5: Regional Bulk Infrastructure | U5: Housing and Local Government
A6: ='Template names'!C13 -> 2nd year of MTREF | B6: Budget Year +1 2008/09 | C6: Budget Year +1 2009/10 | D6: Budget Year +1 2010/11 | E6: ="Budget Year +1 "&E1+1&"/"&RIGHT(E1,2)+2 -> Budget Year +1 2011/12 | F6: ="Budget Year +1 "&F1+1&"/"&RIGHT(F1,2)+2 -> Budget Year +1 2012/13 | G6: Budget Year +1 2013/14 | H6: Budget Year +1 2014/15 | I6: Budget Year +1 2015/16 | J6: Budget Year +1 2016/17 | K6: Budget Year +1 2017/18 | L6: Budget Year +1 2018/19 | M6: Budget Year +1 2019/20 | N6: Budget Year +1 2020/21 | O6: Budget Year +1 2021/22 | R6: Water Services Operating Subsidy | T6: Rural Households Infrastructure | U6: Other Departments
A7: ='Template names'!C14 -> 3rd year of MTREF | B7: Budget Year +2 2009/10 | C7: Budget Year +2 2010/11 | D7: Budget Year +2 2011/12 | E7: ="Budget Year +2 "&E1+2&"/"&RIGHT(E1,2)+3 -> Budget Year +2 2012/13 | F7: ="Budget Year +2 "&F1+2&"/"&RIGHT(F1,2)+3 -> Budget Year +2 2013/14 | G7: Budget Year +2 2014/15 | H7: Budget Year +2 2015/16 | I7: Budget Year +2 2016/17 | J7: Budget Year +2 2017/18 | K7: Budget Year +2 2018/19 | L7: Budget Year +2 2019/20 | M7: Budget Year +2 2020/21 | N7: Budget Year +2 2021/22 | O7: Budget Year +2 2022/23 | R7: Energy Efficiency and Demand Management | T7: Neighbourhood Development Partnership | U7: Public Works, Roads, Transport
A8: NOTE: This sheet should not be directly amended - select headings from sheet 'S' | R8: Integrated National Electrification Programme | T8: 2010 FIFA World Cup Stadiums Development | U8: Sport and Recreation
R9: Municipal Drought Relief
R10: 2010 FIFA World Cup Operating
R11: Electricity Demand Side Management
R12: EPWP Incentive
A26: Name link | B26: 232
A27: Name of Muni | B27: =INDEX(B28:B311,B26,1) -> NC074 Kareeberg
B28: Choose name from list | C28: Set name on 'Instructions' sheet
B29: BUF Buffalo City | C29: EC EASTERN CAPE
B30: NMA Nelson Mandela Bay | C30: EC EASTERN CAPE
B31: EC101 Camdeboo | C31: EC EASTERN CAPE
B32: EC102 Blue Crane Route | C32: EC EASTERN CAPE
B33: EC103 Ikwezi | C33: EC EASTERN CAPE
B34: EC104 Makana | C34: EC EASTERN CAPE
B35: EC105 Ndlambe | C35: EC EASTERN CAPE
B36: EC106 Sundays River Valley | C36: EC EASTERN CAPE
B37: EC107 Baviaans | C37: EC EASTERN CAPE
B38: EC108 Kouga | C38: EC EASTERN CAPE
B39: EC109 Kou-Kamma | C39: EC EASTERN CAPE
B40: DC10 Cacadu | C40: EC EASTERN CAPE
B41: EC121 Mbhashe | C41: EC EASTERN CAPE
B42: EC122 Mnquma | C42: EC EASTERN CAPE
B43: EC123 Great Kei | C43: EC EASTERN CAPE
B44: EC124 Amahlathi | C44: EC EASTERN CAPE
B45: EC126 Ngqushwa | C45: EC EASTERN CAPE
B46: EC127 Nkonkobe | C46: EC EASTERN CAPE
B47: EC128 Nxuba | C47: EC EASTERN CAPE
B48: DC12 Amathole | C48: EC EASTERN CAPE
B49: EC131 Inxuba Yethemba | C49: EC EASTERN CAPE
B50: EC132 Tsolwana | C50: EC EASTERN CAPE
B51: EC133 Inkwanca | C51: EC EASTERN CAPE
B52: EC134 Lukhanji | C52: EC EASTERN CAPE
B53: EC135 Intsika Yethu | C53: EC EASTERN CAPE
B54: EC136 Emalahleni (Ec) | C54: EC EASTERN CAPE
B55: EC137 Engcobo | C55: EC EASTERN CAPE
B56: EC138 Sakhisizwe | C56: EC EASTERN CAPE
B57: DC13 Chris Hani | C57: EC EASTERN CAPE
B58: EC141 Elundini | C58: EC EASTERN CAPE
B59: EC142 Senqu | C59: EC EASTERN CAPE
B60: EC143 Maletswai | C60: EC EASTERN CAPE
B61: EC144 Gariep | C61: EC EASTERN CAPE
B62: DC14 Joe Gqabi | C62: EC EASTERN CAPE
B63: EC153 Ngquza Hills | C63: EC EASTERN CAPE
B64: EC154 Port St Johns | C64: EC EASTERN CAPE
B65: EC155 Nyandeni | C65: EC EASTERN CAPE
B66: EC156 Mhlontlo | C66: EC EASTERN CAPE
B67: EC157 King Sabata Dalindyebo | C67: EC EASTERN CAPE
B68: DC15 O .R. Tambo | C68: EC EASTERN CAPE
B69: EC441 Matatiele | C69: EC EASTERN CAPE
B70: EC442 Umzimvubu | C70: EC EASTERN CAPE
B71: EC443 Mbizana | C71: EC EASTERN CAPE
B72: EC444 Ntabankulu | C72: EC EASTERN CAPE
B73: DC44 Alfred Nzo | C73: EC EASTERN CAPE
B74: MAN Mangaung | C74: FS FREE STATE
B75: FS161 Letsemeng | C75: FS FREE STATE
B76: FS162 Kopanong | C76: FS FREE STATE
B77: FS163 Mohokare | C77: FS FREE STATE
B78: FS164 Naledi (Fs) | C78: FS FREE STATE
B79: DC16 Xhariep | C79: FS FREE STATE
B80: FS181 Masilonyana | C80: FS FREE STATE
B81: FS182 Tokologo | C81: FS FREE STATE
B82: FS183 Tswelopele | C82: FS FREE STATE
B83: FS184 Matjhabeng | C83: FS FREE STATE
B84: FS185 Nala | C84: FS FREE STATE
B85: DC18 Lejweleputswa | C85: FS FREE STATE
B86: FS191 Setsoto | C86: FS FREE STATE
B87: FS192 Dihlabeng | C87: FS FREE STATE
B88: FS193 Nketoana | C88: FS FREE STATE
B89: FS194 Maluti-a-Phofung | C89: FS FREE STATE
B90: FS195 Phumelela | C90: FS FREE STATE
B91: FS196 Mantsopa | C91: FS FREE STATE
B92: DC19 Thabo Mofutsanyana | C92: FS FREE STATE
B93: FS201 Moqhaka | C93: FS FREE STATE
B94: FS203 Ngwathe | C94: FS FREE STATE
B95: FS204 Metsimaholo | C95: FS FREE STATE
B96: FS205 Mafube | C96: FS FREE STATE
B97: DC20 Fezile Dabi | C97: FS FREE STATE
B98: EKU Ekurhuleni Metro | C98: GT GAUTENG
B99: JHB City Of Johannesburg | C99: GT GAUTENG
B100: TSH City Of Tshwane | C100: GT GAUTENG
B101: GT421 Emfuleni | C101: GT GAUTENG
B102: GT422 Midvaal | C102: GT GAUTENG
B103: GT423 Lesedi | C103: GT GAUTENG
B104: DC42 Sedibeng | C104: GT GAUTENG
B105: GT481 Mogale City | C105: GT GAUTENG
B106: GT482 Randfontein | C106: GT GAUTENG
B107: GT483 Westonaria | C107: GT GAUTENG
B108: GT484 Merafong City | C108: GT GAUTENG
B109: DC48 West Rand | C109: GT GAUTENG
B110: ETH eThekwini | C110: KZN KWAZULU-NATAL
B111: KZN211 Vulamehlo | C111: KZN KWAZULU-NATAL
B112: KZN212 Umdoni | C112: KZN KWAZULU-NATAL
B113: KZN213 Umzumbe | C113: KZN KWAZULU-NATAL
B114: KZN214 uMuziwabantu | C114: KZN KWAZULU-NATAL
B115: KZN215 Ezinqoleni | C115: KZN KWAZULU-NATAL
B116: KZN216 Hibiscus Coast | C116: KZN KWAZULU-NATAL
B117: DC21 Ugu | C117: KZN KWAZULU-NATAL
B118: KZN221 uMshwathi | C118: KZN KWAZULU-NATAL
B119: KZN222 uMngeni | C119: KZN KWAZULU-NATAL
B120: KZN223 Mpofana | C120: KZN KWAZULU-NATAL
B121: KZN224 Impendle | C121: KZN KWAZULU-NATAL
B122: KZN225 Msunduzi | C122: KZN KWAZULU-NATAL
B123: KZN226 Mkhambathini | C123: KZN KWAZULU-NATAL
B124: KZN227 Richmond | C124: KZN KWAZULU-NATAL
B125: DC22 uMgungundlovu | C125: KZN KWAZULU-NATAL
B126: KZN232 Emnambithi/Ladysmith | C126: KZN KWAZULU-NATAL
B127: KZN233 Indaka | C127: KZN KWAZULU-NATAL
B128: KZN234 Umtshezi | C128: KZN KWAZULU-NATAL
B129: KZN235 Okhahlamba | C129: KZN KWAZULU-NATAL
B130: KZN236 Imbabazane | C130: KZN KWAZULU-NATAL
B131: DC23 Uthukela | C131: KZN KWAZULU-NATAL
B132: KZN241 Endumeni | C132: KZN KWAZULU-NATAL
B133: KZN242 Nquthu | C133: KZN KWAZULU-NATAL
B134: KZN244 Msinga | C134: KZN KWAZULU-NATAL
B135: KZN245 Umvoti | C135: KZN KWAZULU-NATAL
B136: DC24 Umzinyathi | C136: KZN KWAZULU-NATAL
B137: KZN252 Newcastle | C137: KZN KWAZULU-NATAL
B138: KZN253 eMadlangeni | C138: KZN KWAZULU-NATAL
B139: KZN254 Dannhauser | C139: KZN KWAZULU-NATAL
B140: DC25 Amajuba | C140: KZN KWAZULU-NATAL
B141: KZN261 eDumbe | C141: KZN KWAZULU-NATAL
B142: KZN262 uPhongolo | C142: KZN KWAZULU-NATAL
B143: KZN263 Abaqulusi | C143: KZN KWAZULU-NATAL
B144: KZN265 Nongoma | C144: KZN KWAZULU-NATAL
B145: KZN266 Ulundi | C145: KZN KWAZULU-NATAL
B146: DC26 Zululand | C146: KZN KWAZULU-NATAL
B147: KZN271 Umhlabuyalingana | C147: KZN KWAZULU-NATAL
B148: KZN272 Jozini | C148: KZN KWAZULU-NATAL
B149: KZN273 The Big 5 False Bay | C149: KZN KWAZULU-NATAL
B150: KZN274 Hlabisa | C150: KZN KWAZULU-NATAL
B151: KZN275 Mtubatuba | C151: KZN KWAZULU-NATAL
B152: DC27 Umkhanyakude | C152: KZN KWAZULU-NATAL
B153: KZN281 Mfolozi | C153: KZN KWAZULU-NATAL
B154: KZN282 uMhlathuze | C154: KZN KWAZULU-NATAL
B155: KZN283 Ntambanana | C155: KZN KWAZULU-NATAL
B156: KZN284 uMlalazi | C156: KZN KWAZULU-NATAL
B157: KZN285 Mthonjaneni | C157: KZN KWAZULU-NATAL
B158: KZN286 Nkandla | C158: KZN KWAZULU-NATAL
B159: DC28 uThungulu | C159: KZN KWAZULU-NATAL
B160: KZN291 Mandeni | C160: KZN KWAZULU-NATAL
B161: KZN292 KwaDukuza | C161: KZN KWAZULU-NATAL
B162: KZN293 Ndwedwe | C162: KZN KWAZULU-NATAL
B163: KZN294 Maphumulo | C163: KZN KWAZULU-NATAL
B164: DC29 iLembe | C164: KZN KWAZULU-NATAL
B165: KZN431 Ingwe | C165: KZN KWAZULU-NATAL
B166: KZN432 Kwa Sani | C166: KZN KWAZULU-NATAL
B167: KZN433 Greater Kokstad | C167: KZN KWAZULU-NATAL
B168: KZN434 Ubuhlebezwe | C168: KZN KWAZULU-NATAL
B169: KZN435 Umzimkhulu | C169: KZN KWAZULU-NATAL
B170: DC43 Sisonke | C170: KZN KWAZULU-NATAL
B171: LIM331 Greater Giyani | C171: LIM LIMPOPO
B172: LIM332 Greater Letaba | C172: LIM LIMPOPO
B173: LIM333 Greater Tzaneen | C173: LIM LIMPOPO
B174: LIM334 Ba-Phalaborwa | C174: LIM LIMPOPO
B175: LIM335 Maruleng | C175: LIM LIMPOPO
B176: DC33 Mopani | C176: LIM LIMPOPO
B177: LIM341 Musina | C177: LIM LIMPOPO
B178: LIM342 Mutale | C178: LIM LIMPOPO
B179: LIM343 Thulamela | C179: LIM LIMPOPO
B180: LIM344 Makhado | C180: LIM LIMPOPO
B181: DC34 Vhembe | C181: LIM LIMPOPO
B182: LIM351 Blouberg | C182: LIM LIMPOPO
B183: LIM352 Aganang | C183: LIM LIMPOPO
B184: LIM353 Molemole | C184: LIM LIMPOPO
B185: LIM354 Polokwane | C185: LIM LIMPOPO
B186: LIM355 Lepelle-Nkumpi | C186: LIM LIMPOPO
B187: DC35 Capricorn | C187: LIM LIMPOPO
B188: LIM361 Thabazimbi | C188: LIM LIMPOPO
B189: LIM362 Lephalale | C189: LIM LIMPOPO
B190: LIM364 Mookgopong | C190: LIM LIMPOPO
B191: LIM365 Modimolle | C191: LIM LIMPOPO
B192: LIM366 Bela Bela | C192: LIM LIMPOPO
B193: LIM367 Mogalakwena | C193: LIM LIMPOPO
B194: DC36 Waterberg | C194: LIM LIMPOPO
B195: LIM471 Ephraim Mogale | C195: LIM LIMPOPO
B196: LIM472 Elias Motsoaledi | C196: LIM LIMPOPO
B197: LIM473 Makhuduthamaga | C197: LIM LIMPOPO
B198: LIM474 Fetakgomo | C198: LIM LIMPOPO
B199: LIM475 Greater Tubatse | C199: LIM LIMPOPO
B200: DC47 Sekhukhune | C200: LIM LIMPOPO
B201: MP301 Albert Luthuli | C201: MP MPUMALANGA
B202: MP302 Msukaligwa | C202: MP MPUMALANGA
B203: MP303 Mkhondo | C203: MP MPUMALANGA
B204: MP304 Pixley Ka Seme (MP) | C204: MP MPUMALANGA
B205: MP305 Lekwa | C205: MP MPUMALANGA
B206: MP306 Dipaleseng | C206: MP MPUMALANGA
B207: MP307 Govan Mbeki | C207: MP MPUMALANGA
B208: DC30 Gert Sibande | C208: MP MPUMALANGA
B209: MP311 Victor Khanye | C209: MP MPUMALANGA
B210: MP312 Emalahleni (Mp) | C210: MP MPUMALANGA
B211: MP313 Steve Tshwete | C211: MP MPUMALANGA
B212: MP314 Emakhazeni | C212: MP MPUMALANGA
B213: MP315 Thembisile Hani | C213: MP MPUMALANGA
... 94 more rows

Sheet Org structure
A1: Organisational Structure Votes | C1: Organisational Structure Sub-Votes | E1: Display Sub-Votes
A2: =B2&" - "&C2 -> Vote 1 - Executive and Council | B2: Vote 1 | C2: Executive and Council
A3: =B13&" - "& C13 -> Vote 2 - Budget and Treasury | B3: 1.1 | C3: Executive and Council | D3: =CONCATENATE(B3, " - ", C3) -> 1,1 - Executive and Council | E3: 1,1 - Executive and Council
A4: =B24&" - "&C24 -> Vote 3 - Corporate Services | B4: 1.2 | C4: [Name of sub-vote] | D4: 1,2 - [Name of sub-vote]
A5: =B35&" - "&C35 -> Vote 4 - Planning and Development | B5: 1.3 | C5: [Name of sub-vote] | D5: 1,3 - [Name of sub-vote]
A6: =B46&" - "&C46 -> Vote 5 - Health | B6: 1.4 | C6: [Name of sub-vote] | D6: 1,4 - [Name of sub-vote]
A7: =B57&" - "&C57 -> Vote 6 - Community and Social Services | B7: 1.5 | C7: [Name of sub-vote] | D7: 1,5 - [Name of sub-vote]
A8: =B68&" - "&C68 -> Vote 7 - Housing | B8: 1.6 | C8: [Name of sub-vote] | D8: 1,6 - [Name of sub-vote]
A9: =B79&" - "&C79 -> Vote 8 - Public Safety | B9: 1.7 | C9: [Name of sub-vote] | D9: 1,7 - [Name of sub-vote]
A10: =B90&" - "&C90 -> Vote 9 - Sport and Recreation | B10: 1.8 | C10: [Name of sub-vote] | D10: 1,8 - [Name of sub-vote]
A11: =B101&" - "&C101 -> Vote 10 - Environmental Protection | B11: 1.9 | C11: [Name of sub-vote] | D11: 1,9 - [Name of sub-vote]
A12: =B112&" - "&C112 -> Vote 11 - Solid Waste Management | B12: 1.10 | C12: [Name of sub-vote] | D12: 1.10 - [Name of sub-vote]
A13: =B123&" - "&C123 -> Vote 12 - Waste Water Management | B13: Vote 2 | C13: Budget and Treasury
A14: =B134&" - "&C134 -> Vote 13 - Road Transport | B14: 2.1 | C14: Official Housing | D14: =CONCATENATE(B14, " - ", C14) -> 2,1 - Official Housing | E14: 2,1 - Official Housing
A15: =B145&" - "&C145 -> Vote 14 - Water | B15: 2.2 | C15: Rates | D15: 2,2 - Rates | E15: 2,2 - Rates
A16: =B156&" - "&C156 -> Vote 15 - Electricity | B16: 2.3 | C16: Commonage | D16: 2,3 - Commonage | E16: 2,3 - Commonage
B17: 2.4 | C17: Municipal Buildings | D17: 2,4 - Municipal Buildings | E17: 2,4 - Municipal Buildings
B18: 2.5 | C18: Budget and Treasury Office | D18: 2,5 - Budget and Treasury Office | E18: 2,5 - Budget and Treasury Office
B19: 2.6 | C19: Airport | D19: 2,6 - Airport | E19: 2,6 - Airport
B20: 2.7 | C20: Abattoir | D20: 2,7 - Abattoir | E20: 2,6 - Airport
B21: 2.8 | C21: [Name of sub-vote] | D21: 2,8 - [Name of sub-vote]
B22: 2.9 | C22: [Name of sub-vote] | D22: 2,9 - [Name of sub-vote]
B23: 2.10 | C23: [Name of sub-vote] | D23: 2.10 - [Name of sub-vote]
B24: Vote 3 | C24: Corporate Services
B25: 3.1 | C25: Corporate Services | D25: =CONCATENATE(B25, " - ", C25) -> 3,1 - Corporate Services | E25: 3,1 - Corporate Services
B26: 3.2 | C26: [Name of sub-vote] | D26: 3,2 - [Name of sub-vote]
B27: 3.3 | C27: [Name of sub-vote] | D27: 3,3 - [Name of sub-vote]
B28: 3.4 | C28: [Name of sub-vote] | D28: 3,4 - [Name of sub-vote]
B29: 3.5 | C29: [Name of sub-vote] | D29: 3,5 - [Name of sub-vote]
B30: 3.6 | C30: [Name of sub-vote] | D30: 3,6 - [Name of sub-vote]
B31: 3.7 | C31: [Name of sub-vote] | D31: 3,7 - [Name of sub-vote]
B32: 3.8 | C32: [Name of sub-vote] | D32: 3,8 - [Name of sub-vote]
B33: 3.9 | C33: [Name of sub-vote] | D33: 3,9 - [Name of sub-vote]
B34: 3.10 | C34: [Name of sub-vote] | D34: 3.10 - [Name of sub-vote]
B35: Vote 4 | C35: Planning and Development
B36: 4.1 | C36: [Name of sub-vote] | D36: =CONCATENATE(B36, " - ", C36) -> 4,1 - [Name of sub-vote] | E36: 4.1 - [Name of sub-vote]
B37: 4.2 | C37: [Name of sub-vote] | D37: 4,2 - [Name of sub-vote]
B38: 4.3 | C38: [Name of sub-vote] | D38: 4,3 - [Name of sub-vote]
B39: 4.4 | C39: [Name of sub-vote] | D39: 4,4 - [Name of sub-vote]
B40: 4.5 | C40: [Name of sub-vote] | D40: 4,5 - [Name of sub-vote]
B41: 4.6 | C41: [Name of sub-vote] | D41: 4,6 - [Name of sub-vote]
B42: 4.7 | C42: [Name of sub-vote] | D42: 4,7 - [Name of sub-vote]
B43: 4.8 | C43: [Name of sub-vote] | D43: 4,8 - [Name of sub-vote]
B44: 4.9 | C44: [Name of sub-vote] | D44: 4,9 - [Name of sub-vote]
B45: 4.10 | C45: [Name of sub-vote] | D45: 4.10 - [Name of sub-vote]
B46: Vote 5 | C46: Health
B47: 5.1 | C47: Health | D47: =CONCATENATE(B47, " - ", C47) -> 5,1 - Health | E47: 5,1 - Health
B48: 5.2 | C48: Clinics | D48: 5,2 - Clinics | E48: 5,2 - Clinics
B49: 5.3 | C49: [Name of sub-vote] | D49: 5,3 - [Name of sub-vote]
B50: 5.4 | C50: [Name of sub-vote] | D50: 5,4 - [Name of sub-vote]
B51: 5.5 | C51: [Name of sub-vote] | D51: 5,5 - [Name of sub-vote]
B52: 5.6 | C52: [Name of sub-vote] | D52: 5,6 - [Name of sub-vote]
B53: 5.7 | C53: [Name of sub-vote] | D53: 5,7 - [Name of sub-vote]
B54: 5.8 | C54: [Name of sub-vote] | D54: 5,8 - [Name of sub-vote]
B55: 5.9 | C55: [Name of sub-vote] | D55: 5,9 - [Name of sub-vote]
B56: 5.10 | C56: [Name of sub-vote] | D56: 5.10 - [Name of sub-vote]
B57: Vote 6 | C57: Community and Social Services
B58: 6.1 | C58: Cemetry | D58: =CONCATENATE(B58, " - ", C58) -> 6,1 - Cemetry | E58: 6,1 - Cemetry
B59: 6.2 | C59: Library | D59: 6,2 - Library | E59: 6,2 - Library
B60: 6.3 | C60: Museum | D60: 6,3 - Museum | E60: 6,3 - Museum
B61: 6.4 | C61: [Name of sub-vote] | D61: 6,4 - [Name of sub-vote]
B62: 6.5 | C62: [Name of sub-vote] | D62: 6,5 - [Name of sub-vote]
B63: 6.6 | C63: [Name of sub-vote] | D63: 6,6 - [Name of sub-vote]
B64: 6.7 | C64: [Name of sub-vote] | D64: 6,7 - [Name of sub-vote]
B65: 6.8 | C65: [Name of sub-vote] | D65: 6,8 - [Name of sub-vote]
B66: 6.9 | C66: [Name of sub-vote] | D66: 6,9 - [Name of sub-vote]
B67: 6.10 | C67: [Name of sub-vote] | D67: 6.10 - [Name of sub-vote]
B68: Vote 7 | C68: Housing
B69: 7.1 | C69: [Name of sub-vote] | D69: =CONCATENATE(B69, " - ", C69) -> 7,1 - [Name of sub-vote] | E69: 7.1 - [Name of sub-vote]
B70: 7.2 | C70: [Name of sub-vote] | D70: 7,2 - [Name of sub-vote]
B71: 7.3 | C71: [Name of sub-vote] | D71: 7,3 - [Name of sub-vote]
B72: 7.4 | C72: [Name of sub-vote] | D72: 7,4 - [Name of sub-vote]
B73: 7.5 | C73: [Name of sub-vote] | D73: 7,5 - [Name of sub-vote]
B74: 7.6 | C74: [Name of sub-vote] | D74: 7,6 - [Name of sub-vote]
B75: 7.7 | C75: [Name of sub-vote] | D75: 7,7 - [Name of sub-vote]
B76: 7.8 | C76: [Name of sub-vote] | D76: 7,8 - [Name of sub-vote]
B77: 7.9 | C77: [Name of sub-vote] | D77: 7,9 - [Name of sub-vote]
B78: 7.10 | C78: [Name of sub-vote] | D78: 7.10 - [Name of sub-vote]
B79: Vote 8 | C79: Public Safety
B80: 8.1 | C80: Fire Service | D80: =CONCATENATE(B80, " - ", C80) -> 8,1 - Fire Service | E80: 8,1 - Fire Service
B81: 8.2 | C81: Civil Defence | D81: 8,2 - Civil Defence | E81: 8,2 - Civil Defence
B82: 8.3 | C82: Pound | D82: 8,3 - Pound | E82: 8,3 - Pound
B83: 8.4 | C83: [Name of sub-vote] | D83: 8,4 - [Name of sub-vote]
B84: 8.5 | C84: [Name of sub-vote] | D84: 8,5 - [Name of sub-vote]
B85: 8.6 | C85: [Name of sub-vote] | D85: 8,6 - [Name of sub-vote]
B86: 8.7 | C86: [Name of sub-vote] | D86: 8,7 - [Name of sub-vote]
B87: 8.8 | C87: [Name of sub-vote] | D87: 8,8 - [Name of sub-vote]
B88: 8.9 | C88: [Name of sub-vote] | D88: 8,9 - [Name of sub-vote]
B89: 8.10 | C89: [Name of sub-vote] | D89: 8.10 - [Name of sub-vote]
B90: Vote 9 | C90: Sport and Recreation
B91: 9.1 | C91: Nature Reserve | D91: =CONCATENATE(B91, " - ", C91) -> 9,1 - Nature Reserve | E91: 9,1 - Nature Reserve
B92: 9.2 | C92: Parks and Gardens | D92: 9,2 - Parks and Gardens | E92: 9,2 - Parks and Gardens
B93: 9.3 | C93: Swimming Pool | D93: 9,3 - Swimming Pool | E93: 9,3 - Swimming Pool
B94: 9.4 | C94: Caravan Park | D94: 9,4 - Caravan Park | E94: 9,4 - Caravan Park
B95: 9.5 | C95: [Name of sub-vote] | D95: 9,5 - [Name of sub-vote]
B96: 9.6 | C96: [Name of sub-vote] | D96: 9,6 - [Name of sub-vote]
B97: 9.7 | C97: [Name of sub-vote] | D97: 9,7 - [Name of sub-vote]
B98: 9.8 | C98: [Name of sub-vote] | D98: 9,8 - [Name of sub-vote]
B99: 9.9 | C99: [Name of sub-vote] | D99: 9,9 - [Name of sub-vote]
B100: 9.10 | C100: [Name of sub-vote] | D100: 9.10 - [Name of sub-vote]
B101: Vote 10 | C101: Environmental Protection
B102: 10.1 | C102: [Name of sub-vote] | D102: =CONCATENATE(B102, " - ", C102) -> 10,1 - [Name of sub-vote] | E102: 10.1 - [Name of sub-vote]
B103: 10.2 | C103: [Name of sub-vote] | D103: 10,2 - [Name of sub-vote]
B104: 10.3 | C104: [Name of sub-vote] | D104: 10,3 - [Name of sub-vote]
B105: 10.4 | C105: [Name of sub-vote] | D105: 10,4 - [Name of sub-vote]
B106: 10.5 | C106: [Name of sub-vote] | D106: 10,5 - [Name of sub-vote]
B107: 10.6 | C107: [Name of sub-vote] | D107: 10,6 - [Name of sub-vote]
B108: 10.7 | C108: [Name of sub-vote] | D108: 10,7 - [Name of sub-vote]
B109: 10.8 | C109: [Name of sub-vote] | D109: 10,8 - [Name of sub-vote]
B110: 10.9 | C110: [Name of sub-vote] | D110: 10,9 - [Name of sub-vote]
B111: 10.10 | C111: [Name of sub-vote] | D111: 10.10 - [Name of sub-vote]
B112: Vote 11 | C112: Solid Waste Management
B113: 11.1 | C113: Refuse removal | D113: =CONCATENATE(B113, " - ", C113) -> 11,1 - Refuse removal | E113: 11,1 - Refuse removal
B114: 11.2 | C114: [Name of sub-vote] | D114: 11,2 - [Name of sub-vote]
B115: 11.3 | C115: [Name of sub-vote] | D115: 11,3 - [Name of sub-vote]
B116: 11.4 | C116: [Name of sub-vote] | D116: 11,4 - [Name of sub-vote]
B117: 11.5 | C117: [Name of sub-vote] | D117: 11,5 - [Name of sub-vote]
B118: 11.6 | C118: [Name of sub-vote] | D118: 11,6 - [Name of sub-vote]
B119: 11.7 | C119: [Name of sub-vote] | D119: 11,7 - [Name of sub-vote]
B120: 11.8 | C120: [Name of sub-vote] | D120: 11,8 - [Name of sub-vote]
B121: 11.9 | C121: [Name of sub-vote] | D121: 11,9 - [Name of sub-vote]
B122: 11.10 | C122: [Name of sub-vote] | D122: 11.10 - [Name of sub-vote]
B123: Vote 12 | C123: Waste Water Management
B124: 12.1 | C124: Sewerage | D124: =CONCATENATE(B124, " - ", C124) -> 12,1 - Sewerage | E124: 12,1 - Sewerage
B125: 12.2 | C125: [Name of sub-vote] | D125: 12,2 - [Name of sub-vote]
B126: 12.3 | C126: [Name of sub-vote] | D126: 12,3 - [Name of sub-vote]
B127: 12.4 | C127: [Name of sub-vote] | D127: 12,4 - [Name of sub-vote]
B128: 12.5 | C128: [Name of sub-vote] | D128: 12,5 - [Name of sub-vote]
B129: 12.6 | C129: [Name of sub-vote] | D129: 12,6 - [Name of sub-vote]
B130: 12.7 | C130: [Name of sub-vote] | D130: 12,7 - [Name of sub-vote]
B131: 12.8 | C131: [Name of sub-vote] | D131: 12,8 - [Name of sub-vote]
B132: 12.9 | C132: [Name of sub-vote] | D132: 12,9 - [Name of sub-vote]
B133: 12.10 | C133: [Name of sub-vote] | D133: 12.10 - [Name of sub-vote]
B134: Vote 13 | C134: Road Transport
B135: 13.1 | C135: Main Roads | D135: =CONCATENATE(B135, " - ", C135) -> 13,1 - Main Roads | E135: 13,1 - Main Roads
B136: 13.2 | C136: Public Works | D136: 13,2 - Public Works | E136: 13,2 - Public Works
B137: 13.3 | C137: Streets and Pavements | D137: 13,3 - Streets and Pavements | E137: 13,3 - Streets and Pavements
B138: 13.4 | C138: Traffic and licencing | D138: 13,4 - Traffic and licencing | E138: 13,4 - Traffic and licencing
B139: 13.5 | C139: [Name of sub-vote] | D139: 13,5 - [Name of sub-vote]
B140: 13.6 | C140: [Name of sub-vote] | D140: 13,6 - [Name of sub-vote]
B141: 13.7 | C141: [Name of sub-vote] | D141: 13,7 - [Name of sub-vote]
B142: 13.8 | C142: [Name of sub-vote] | D142: 13,8 - [Name of sub-vote]
B143: 13.9 | C143: [Name of sub-vote] | D143: 13,9 - [Name of sub-vote]
B144: 13.10 | C144: [Name of sub-vote] | D144: 13.10 - [Name of sub-vote]
B145: Vote 14 | C145: Water
B146: 14.1 | C146: Water Distribution | D146: =CONCATENATE(B146, " - ", C146) -> 14,1 - Water Distribution | E146: 14,1 - Water Distribution
B147: 14.2 | C147: Water Storage | D147: 14,2 - Water Storage | E147: 14,2 - Water Storage
B148: 14.3 | C148: [Name of sub-vote] | D148: 14,3 - [Name of sub-vote]
B149: 14.4 | C149: [Name of sub-vote] | D149: 14,4 - [Name of sub-vote]
B150: 14.5 | C150: [Name of sub-vote] | D150: 14,5 - [Name of sub-vote]
B151: 14.6 | C151: [Name of sub-vote] | D151: 14,6 - [Name of sub-vote]
B152: 14.7 | C152: [Name of sub-vote] | D152: 14,7 - [Name of sub-vote]
B153: 14.8 | C153: [Name of sub-vote] | D153: 14,8 - [Name of sub-vote]
B154: 14.9 | C154: [Name of sub-vote] | D154: 14,9 - [Name of sub-vote]
B155: 14.10 | C155: [Name of sub-vote] | D155: 14.10 - [Name of sub-vote]
B156: Vote 15 | C156: Electricity
B157: 15.1 | C157: Electricity Administration | D157: =CONCATENATE(B157, " - ", C157) -> 15,1 - Electricity Administration | E157: 15,1 - Electricity Administration
B158: 15.2 | C158: Electricity Distribution | D158: 15,2 - Electricity Distribution | E158: 15,2 - Electricity Distribution
B159: 15.3 | C159: Electricity Generation | D159: 15,3 - Electricity Generation | E159: 15,3 - Electricity Generation
B160: 15.4 | C160: [Name of sub-vote] | D160: 15,4 - [Name of sub-vote]
B161: 15.5 | C161: [Name of sub-vote] | D161: 15,5 - [Name of sub-vote]
B162: 15.6 | C162: [Name of sub-vote] | D162: 15,6 - [Name of sub-vote]
B163: 15.7 | C163: [Name of sub-vote] | D163: 15,7 - [Name of sub-vote]
B164: 15.8 | C164: [Name of sub-vote] | D164: 15,8 - [Name of sub-vote]
B165: 15.9 | C165: [Name of sub-vote] | D165: 15,9 - [Name of sub-vote]
B166: 15.10 | C166: [Name of sub-vote] | D166: 15.10 - [Name of sub-vote]

Sheet Contacts
A1: =muni&" - "&" Contact Information" -> NC074 Kareeberg - Contact Information
A3: A. GENERAL INFORMATION
A4: Municipality | B4: =muni -> NC074 Kareeberg | C4: Set name on 'Instructions' sheet
A6: Grade | B6: 2 | C6: 1 Grade in terms of the Remuneration of Public Office Bearers Act.
A8: Province | B8: =IF(B4>" ",VLOOKUP(B4,'Lookup and lists'!B28:C311,2, FALSE)," ") -> NC NORTHERN CAPE
A10: Web Address | B10: www.kareeberg.co.za
A12: e-mail Address | B12: kareeberg@xsinet.co.za
A14: B. CONTACT INFORMATION
A15: Postal address:
A16: P.O. Box | B16: 10
A17: City / Town | B17: CARNARVON
A18: Postal Code | B18: 8925
A20: Street address
A21: Building
A22: Street No. & Name | B22: Hanau Street
A23: City / Town | B23: CARNARVON
A24: Postal Code | B24: 8925
A26: General Contacts
A27: Telephone number | B27: 053-3823012
A28: Fax number | B28: 053-3823142
A30: C. POLITICAL LEADERSHIP
A31: Speaker: | C31: Secretary/PA to the Speaker:
A32: Name | C32: Name
A33: Telephone number | C33: Telephone number
A34: Cell number | C34: Cell number
A35: Fax number | C35: Fax number
A36: E-mail address | C36: E-mail address
A38: Mayor/Executive Mayor: | C38: Secretary/PA to the Mayor/Executive Mayor:
A39: Name | B39: N.I. Titus | C39: Name
A40: Telephone number | B40: 053-3833053 | C40: Telephone number
A41: Cell number | B41: 0832567311 | C41: Cell number
A42: Fax number | B42: 053-3823142 | C42: Fax number
A43: E-mail address | C43: E-mail address
A45: Deputy Mayor/Executive Mayor: | C45: Secretary/PA to the Deputy Mayor/Executive Mayor:
A46: Name | C46: Name
A47: Telephone number | C47: Telephone number
A48: Cell number | C48: Cell number
A49: Fax number | C49: Fax number
A50: E-mail address | C50: E-mail address
A52: D. MANAGEMENT LEADERSHIP
A53: Municipal Manager: | C53: Secretary/PA to the Municipal Manager:
A54: Name | B54: W. de Bruin | C54: Name
A55: Telephone number | B55: 053-3823012 | C55: Telephone number
A56: Cell number | B56: 0763363003 | C56: Cell number
A57: Fax number | B57: 053-3823142 | C57: Fax number
A58: E-mail address | B58: wilmar@gmail.com | C58: E-mail address
A60: Chief Financial Officer | C60: Secretary/PA to the Chief Financial Officer
A61: Name | B61: P.B. Rossouw | C61: Name
A62: Telephone number | B62: 053-3823012 | C62: Telephone number
A63: Cell number | B63: 832308617 | C63: Cell number
A64: Fax number | B64: 053-3823142 | C64: Fax number
A65: E-mail address | B65: brennan.rossouw@yahoo.com | C65: E-mail address
A67: Official responsible for submitting financial information
A68: Name | B68: A. van Schalkwyk
A69: Telephone number | B69: 053-3823012
A70: Cell number | B70: 0832308627
A71: Fax number | B71: 053-3823142
A72: E-mail address | B72: kareeberg@xsinet.co.za
A73: Official responsible for submitting financial information
A74: Name | B74: T. de Kock
A75: Telephone number | B75: 053-3823012
A76: Cell number
A77: Fax number | B77: 053-3823142
A78: E-mail address | B78: kareeberg0@gmail.com
A79: Official responsible for submitting financial information
A80: Name
A81: Telephone number
A82: Cell number
A83: Fax number
A84: E-mail address

Sheet C1-Sum
A1: =muni& " - "&s71sum& " - "&date -> NC074 Kareeberg - Table C1 Monthly Budget Statement Summary - M06 December
A2: =desc -> Description | B2: =Head1 -> 2015/16 | C2: =Head2 -> Budget Year 2016/17
B3: =Head5 -> Audited Outcome | C3: =Head6 -> Original Budget | D3: =Head7 -> Adjusted Budget | E3: =Head38 -> Monthly actual | F3: =Head39 -> YearTD actual | G3: =Head40 -> YearTD budget | H3: =Head41 -> YTD variance | I3: =Head41 -> YTD variance | J3: =Head8 -> Full Year Forecast
A4: R thousands | I4: %
A5: Financial Performance
A6: Property rates | B6: =SUM('C4-FinPerf RE'!C6:C7) -> 4633424 | C6: =SUM('C4-FinPerf RE'!D6:D7) -> 4867665 | D6: =SUM('C4-FinPerf RE'!E6:E7) -> 4867665 | E6: =SUM('C4-FinPerf RE'!F6:F7) -> 0 | F6: =SUM('C4-FinPerf RE'!G6:G7) -> 4706797.88 | G6: =SUM('C4-FinPerf RE'!H6:H7) -> 4703923 | H6: =F6-G6 -> 2874.88 | I6: =IF(H6=0,"",H6/G6) -> 0.0006111664668 | J6: =SUM('C4-FinPerf RE'!K6:K7) -> 4867665
A7: Service charges | B7: =SUM('C4-FinPerf RE'!C8:C12) -> 19758336 | C7: =SUM('C4-FinPerf RE'!D8:D12) -> 20851190 | D7: =SUM('C4-FinPerf RE'!E8:E12) -> 20851190 | E7: =SUM('C4-FinPerf RE'!F8:F12) -> 0 | F7: =SUM('C4-FinPerf RE'!G8:G12) -> 3532142.68 | G7: =SUM('C4-FinPerf RE'!H8:H12) -> 3275745 | H7: =F7-G7 -> 256397.68 | I7: =IF(H7=0,"",H7/G7) -> 0.07827156265 | J7: =SUM('C4-FinPerf RE'!K8:K12) -> 20851190
A8: Investment revenue | B8: ='C4-FinPerf RE'!C14 -> 1808471 | C8: ='C4-FinPerf RE'!D14 -> 1297000 | D8: ='C4-FinPerf RE'!E14 -> 1297000 | E8: ='C4-FinPerf RE'!F14 -> 0 | F8: ='C4-FinPerf RE'!G14 -> 81833.1 | G8: ='C4-FinPerf RE'!H14 -> 154815 | H8: =F8-G8 -> -72981.9 | I8: =IF(H8=0,"",H8/G8) -> -0.4714136227 | J8: ='C4-FinPerf RE'!K14 -> 1297000
A9: Transfers recognised - operational | B9: ='C4-FinPerf RE'!C20 -> 22742216 | C9: ='C4-FinPerf RE'!D20 -> 23074998 | D9: ='C4-FinPerf RE'!E20 -> 23074998 | E9: ='C4-FinPerf RE'!F20 -> 0 | F9: ='C4-FinPerf RE'!G20 -> 8151395.74 | G9: ='C4-FinPerf RE'!H20 -> 7920250 | H9: =F9-G9 -> 231145.74 | I9: =IF(H9=0,"",H9/G9) -> 0.02918414697 | J9: ='C4-FinPerf RE'!K20 -> 23074998
A10: Other own revenue | B10: ='C4-FinPerf RE'!C13+'C4-FinPerf RE'!C15+'C4-FinPerf RE'!C16+'C4-FinPerf RE'!C17+'C4-FinPerf RE'!C18+'C4-FinPerf RE'!C19+'C4-FinPerf RE'!C21+'C4-FinPerf RE'!C22 -> 1955589 | C10: ='C4-FinPerf RE'!D13+'C4-FinPerf RE'!D15+'C4-FinPerf RE'!D16+'C4-FinPerf RE'!D17+'C4-FinPerf RE'!D18+'C4-FinPerf RE'!D19+'C4-FinPerf RE'!D21+'C4-FinPerf RE'!D22 -> 10057918 | D10: ='C4-FinPerf RE'!E13+'C4-FinPerf RE'!E15+'C4-FinPerf RE'!E16+'C4-FinPerf RE'!E17+'C4-FinPerf RE'!E18+'C4-FinPerf RE'!E19+'C4-FinPerf RE'!E21+'C4-FinPerf RE'!E22 -> 10057918 | E10: ='C4-FinPerf RE'!F13+'C4-FinPerf RE'!F15+'C4-FinPerf RE'!F16+'C4-FinPerf RE'!F17+'C4-FinPerf RE'!F18+'C4-FinPerf RE'!F19+'C4-FinPerf RE'!F21+'C4-FinPerf RE'!F22 -> 0 | F10: ='C4-FinPerf RE'!G13+'C4-FinPerf RE'!G15+'C4-FinPerf RE'!G16+'C4-FinPerf RE'!G17+'C4-FinPerf RE'!G18+'C4-FinPerf RE'!G19+'C4-FinPerf RE'!G21+'C4-FinPerf RE'!G22 -> 234258.54 | G10: ='C4-FinPerf RE'!H13+'C4-FinPerf RE'!H15+'C4-FinPerf RE'!H16+'C4-FinPerf RE'!H17+'C4-FinPerf RE'!H18+'C4-FinPerf RE'!H19+'C4-FinPerf RE'!H21+'C4-FinPerf RE'!H22 -> 691651.621 | H10: =F10-G10 -> -457393.081 | I10: =IF(H10=0,"",H10/G10) -> -0.6613055867 | J10: ='C4-FinPerf RE'!K13+'C4-FinPerf RE'!K15+'C4-FinPerf RE'!K16+'C4-FinPerf RE'!K17+'C4-FinPerf RE'!K18+'C4-FinPerf RE'!K19+'C4-FinPerf RE'!K21+'C4-FinPerf RE'!K22 -> 10057918
A11: Total Revenue (excluding capital transfers and contributions) | B11: =SUM(B6:B10) -> 50898036 | C11: 60148771 | D11: 60148771 | E11: 0 | F11: 16706427.94 | G11: 16746384.62 | H11: =F11-G11 -> -39956.68097 | I11: =IF(H11=0,"",H11/G11) -> -0.002385988491 | J11: 60148771
A12: Employee costs | B12: ='C4-FinPerf RE'!C26 -> 17101451 | C12: ='C4-FinPerf RE'!D26 -> 21001756 | D12: ='C4-FinPerf RE'!E26 -> 21001756 | E12: ='C4-FinPerf RE'!F26 -> 0 | F12: ='C4-FinPerf RE'!G26 -> 2519103.04 | G12: ='C4-FinPerf RE'!H26 -> 3280627 | H12: -761523.96 | I12: -0.2321275659 | J12: ='C4-FinPerf RE'!K26 -> 21001756
A13: Remuneration of Councillors | B13: ='C4-FinPerf RE'!C27 -> 2129257 | C13: ='C4-FinPerf RE'!D27 -> 2499391 | D13: ='C4-FinPerf RE'!E27 -> 2499391 | E13: ='C4-FinPerf RE'!F27 -> 0 | F13: ='C4-FinPerf RE'!G27 -> 343802.9 | G13: ='C4-FinPerf RE'!H27 -> 394846 | H13: -51043.1 | I13: -0.1292734383 | J13: ='C4-FinPerf RE'!K27 -> 2499391
A14: Depreciation & asset impairment | B14: ='C4-FinPerf RE'!C29 -> 3415871 | C14: ='C4-FinPerf RE'!D29 -> 3681354 | D14: ='C4-FinPerf RE'!E29 -> 3681354 | E14: ='C4-FinPerf RE'!F29 -> 0 | F14: ='C4-FinPerf RE'!G29 -> 0 | G14: ='C4-FinPerf RE'!H29 -> 0 | H14: 0 | J14: ='C4-FinPerf RE'!K29 -> 3681354
A15: Finance charges | B15: ='C4-FinPerf RE'!C30 -> 1989338 | C15: ='C4-FinPerf RE'!D30 -> 1073129 | D15: ='C4-FinPerf RE'!E30 -> 1073129 | E15: ='C4-FinPerf RE'!F30 -> 0 | F15: ='C4-FinPerf RE'!G30 -> 0 | G15: ='C4-FinPerf RE'!H30 -> 0 | H15: 0 | J15: ='C4-FinPerf RE'!K30 -> 1073129
A16: Materials and bulk purchases | B16: =SUM('C4-FinPerf RE'!C31:C32) -> 9557062 | C16: =SUM('C4-FinPerf RE'!D31:D32) -> 11479076 | D16: =SUM('C4-FinPerf RE'!E31:E32) -> 11479076 | E16: =SUM('C4-FinPerf RE'!F31:F32) -> 0 | F16: =SUM('C4-FinPerf RE'!G31:G32) -> 1927557.43 | G16: =SUM('C4-FinPerf RE'!H31:H32) -> 2536109 | H16: -608551.57 | I16: -0.2399548166 | J16: =SUM('C4-FinPerf RE'!K31:K32) -> 11479076
A17: Transfers and grants | B17: ='C4-FinPerf RE'!C34 -> 8975821 | C17: ='C4-FinPerf RE'!D34 -> 9191274 | D17: ='C4-FinPerf RE'!E34 -> 9191274 | E17: ='C4-FinPerf RE'!F34 -> 0 | F17: ='C4-FinPerf RE'!G34 -> 1775737.83 | G17: ='C4-FinPerf RE'!H34 -> 2462818 | H17: -687080.17 | I17: -0.2789813011 | J17: ='C4-FinPerf RE'!K34 -> 9191274
A18: Other expenditure | B18: ='C4-FinPerf RE'!C37-SUM('C1-Sum'!B12:B17) -> 10662947 | C18: ='C4-FinPerf RE'!D37-SUM('C1-Sum'!C12:C17) -> 13022790 | D18: ='C4-FinPerf RE'!E37-SUM('C1-Sum'!D12:D17) -> 13022790 | E18: ='C4-FinPerf RE'!F37-SUM('C1-Sum'!E12:E17) -> 0 | F18: ='C4-FinPerf RE'!G37-SUM('C1-Sum'!F12:F17) -> 1362510.06 | G18: ='C4-FinPerf RE'!H37-SUM('C1-Sum'!G12:G17) -> 870735 | H18: 491775.06 | I18: 0.5647815466 | J18: ='C4-FinPerf RE'!K37-SUM('C1-Sum'!J12:J17) -> 13022790
A19: Total Expenditure | B19: =SUM(B12:B18) -> 53831747 | C19: 61948770 | D19: 61948770 | E19: 0 | F19: 7928711.26 | G19: 9545135 | H19: -1616423.74 | I19: -0.1693452989 | J19: =SUM(J12:J18) -> 61948770
A20: Surplus/(Deficit) | B20: =B11-B19 -> -2933711 | C20: -1799999 | D20: -1799999 | E20: 0 | F20: 8777716.68 | G20: 7201249.621 | H20: 1576467.059 | I20: 0.2189157635 | J20: =J11-J19 -> -1799999
A21: Transfers recognised - capital | B21: ='C4-FinPerf RE'!C40 -> 7042151 | C21: ='C4-FinPerf RE'!D40 -> 23669000 | D21: ='C4-FinPerf RE'!E40 -> 23669000 | E21: ='C4-FinPerf RE'!F40 -> 0 | F21: ='C4-FinPerf RE'!G40 -> 59193 | G21: ='C4-FinPerf RE'!H40 -> 6334500 | H21: -6275307 | I21: -0.9906554582 | J21: ='C4-FinPerf RE'!K40 -> 23669000
A22: Contributions & Contributed assets | B22: =SUM('C4-FinPerf RE'!C41:C42) -> 362323 | C22: =SUM('C4-FinPerf RE'!D41:D42) -> 0 | D22: =SUM('C4-FinPerf RE'!E41:E42) -> 0 | E22: =SUM('C4-FinPerf RE'!F41:F42) -> 0 | F22: =SUM('C4-FinPerf RE'!G41:G42) -> 0 | G22: =SUM('C4-FinPerf RE'!H41:H42) -> 0 | H22: 0 | J22: =SUM('C4-FinPerf RE'!K41:K42) -> 0
A23: Surplus/(Deficit) after capital transfers & contributions | B23: =B20+B21+B22 -> 4470763 | C23: 21869001 | D23: 21869001 | E23: 0 | F23: 8836909.68 | G23: 13535749.62 | H23: -4698839.941 | I23: -0.3471429417 | J23: =J20+J21+J22 -> 21869001
A24: Share of surplus/ (deficit) of associate | B24: ='C4-FinPerf RE'!C48 -> 0 | C24: ='C4-FinPerf RE'!D48 -> 0 | D24: ='C4-FinPerf RE'!E48 -> 0 | E24: ='C4-FinPerf RE'!F48 -> 0 | F24: ='C4-FinPerf RE'!G48 -> 0 | G24: ='C4-FinPerf RE'!H48 -> 0 | H24: 0 | J24: ='C4-FinPerf RE'!K48 -> 0
A25: Surplus/ (Deficit) for the year | B25: =B23+B24 -> 4470763 | C25: 21869001 | D25: 21869001 | E25: 0 | F25: 8836909.68 | G25: 13535749.62 | H25: -4698839.941 | I25: -0.3471429417 | J25: =J23+J24 -> 21869001
A27: Capital expenditure & funds sources
A28: Capital expenditure | B28: ='C5-Capex'!C40 -> 7475563 | C28: ='C5-Capex'!D40 -> 23669000 | D28: ='C5-Capex'!E40 -> 23669000 | E28: ='C5-Capex'!F40 -> 0 | F28: ='C5-Capex'!G40 -> 59193 | G28: ='C5-Capex'!H40 -> 2742000 | H28: =F28-G28 -> -2682807 | I28: =IF(H28=0,"",H28/G28) -> -0.9784124726 | J28: ='C5-Capex'!K40 -> 23669000
A29: Capital transfers recognised | B29: ='C5-Capex'!C70 -> 7404474 | C29: ='C5-Capex'!D70 -> 23669000 | D29: ='C5-Capex'!E70 -> 23669000 | E29: ='C5-Capex'!F70 -> 0 | F29: ='C5-Capex'!G70 -> 59193 | G29: ='C5-Capex'!H70 -> 2742000 | H29: -2682807 | I29: -0.9784124726 | J29: ='C5-Capex'!K70 -> 23669000
A30: Public contributions & donations | B30: ='C5-Capex'!C71 -> 0 | C30: ='C5-Capex'!D71 -> 0 | D30: ='C5-Capex'!E71 -> 0 | E30: ='C5-Capex'!F71 -> 0 | F30: ='C5-Capex'!G71 -> 0 | G30: ='C5-Capex'!H71 -> 0 | H30: 0 | J30: ='C5-Capex'!K71 -> 0
A31: Borrowing | B31: ='C5-Capex'!C72 -> 0 | C31: ='C5-Capex'!D72 -> 0 | D31: ='C5-Capex'!E72 -> 0 | E31: ='C5-Capex'!F72 -> 0 | F31: ='C5-Capex'!G72 -> 0 | G31: ='C5-Capex'!H72 -> 0 | H31: 0 | J31: ='C5-Capex'!K72 -> 0
A32: Internally generated funds | B32: ='C5-Capex'!C73 -> 71089 | C32: ='C5-Capex'!D73 -> 0 | D32: ='C5-Capex'!E73 -> 0 | E32: ='C5-Capex'!F73 -> 0 | F32: ='C5-Capex'!G73 -> 0 | G32: ='C5-Capex'!H73 -> 0 | H32: 0 | J32: ='C5-Capex'!K73 -> 0
A33: Total sources of capital funds | B33: =SUM(B29:B32) -> 7475563 | C33: 23669000 | D33: 23669000 | E33: =SUM(E29:E32) -> 0 | F33: =SUM(F29:F32) -> 59193 | G33: =SUM(G29:G32) -> 2742000 | H33: -2682807 | I33: -0.9784124726 | J33: 23669000
A35: Financial position
A36: Total current assets | B36: ='C6-FinPos'!C13 -> 27064903 | C36: ='C6-FinPos'!D13 -> 29984639 | D36: ='C6-FinPos'!E13 -> 29984639 | F36: ='C6-FinPos'!F13 -> 43751880.9 | J36: ='C6-FinPos'!G13 -> 29984639
A37: Total non current assets | B37: ='C6-FinPos'!C25 -> 127885877 | C37: ='C6-FinPos'!D25 -> 157313635 | D37: ='C6-FinPos'!E25 -> 157313635 | F37: ='C6-FinPos'!F25 -> 127945071.5 | J37: ='C6-FinPos'!G25 -> 157313635
A38: Total current liabilities | B38: ='C6-FinPos'!C35 -> 4471772 | C38: ='C6-FinPos'!D35 -> 9261496 | D38: ='C6-FinPos'!E35 -> 9261496 | F38: ='C6-FinPos'!F35 -> 12380511.65 | J38: ='C6-FinPos'!G35 -> 9261496
A39: Total non current liabilities | B39: ='C6-FinPos'!C40 -> 31005006 | C39: ='C6-FinPos'!D40 -> 12586825 | D39: ='C6-FinPos'!E40 -> 12586825 | F39: ='C6-FinPos'!F40 -> 31005005.14 | J39: ='C6-FinPos'!G40 -> 12586825
A40: Community wealth/Equity | B40: ='C6-FinPos'!C48 -> 119474002 | C40: ='C6-FinPos'!D48 -> 165449953 | D40: ='C6-FinPos'!E48 -> 165449953 | F40: ='C6-FinPos'!F48 -> 128311435.6 | J40: ='C6-FinPos'!G48 -> 165449953
A42: Cash flows
A43: Net cash from (used) operating | B43: ='C7-CFlow'!C18 -> 7965498 | C43: ='C7-CFlow'!D18 -> 25420654 | D43: ='C7-CFlow'!E18 -> 25420654 | E43: ='C7-CFlow'!F18 -> 0 | F43: ='C7-CFlow'!G18 -> 13334397.16 | G43: ='C7-CFlow'!H18 -> 10489351.92 | H43: =G43-F43 -> -2845045.243 | I43: =IF(H43=0,"",H43/G43) -> -0.2712317468 | J43: ='C7-CFlow'!K18 -> 25420654
A44: Net cash from (used) investing | B44: ='C7-CFlow'!C28 -> -7100473 | C44: ='C7-CFlow'!D28 -> -23660510 | D44: ='C7-CFlow'!E28 -> -23660510 | E44: ='C7-CFlow'!F28 -> 0 | F44: ='C7-CFlow'!G28 -> -57949.79 | G44: ='C7-CFlow'!H28 -> -6331694 | H44: =G44-F44 -> -6273744.21 | I44: =IF(H44=0,"",H44/G44) -> 0.9908476641 | J44: ='C7-CFlow'!K28 -> -23660510
A45: Net cash from (used) financing | B45: ='C7-CFlow'!C37 -> 12180 | C45: ='C7-CFlow'!D37 -> 10000 | D45: ='C7-CFlow'!E37 -> 10000 | E45: ='C7-CFlow'!F37 -> 0 | F45: ='C7-CFlow'!G37 -> 670 | G45: ='C7-CFlow'!H37 -> 4400 | H45: =G45-F45 -> 3730 | I45: =IF(H45=0,"",H45/G45) -> 0.8477272727 | J45: ='C7-CFlow'!K37 -> 10000
A46: Cash/cash equivalents at the month/year end | B46: ='C7-CFlow'!C41 -> 23253650 | C46: ='C7-CFlow'!D41 -> 27052446 | D46: ='C7-CFlow'!E41 -> 27052446 | E46: ='C7-CFlow'!F41 -> 0 | F46: ='C7-CFlow'!G41 -> 36530767.37 | G46: ='C7-CFlow'!H41 -> 29444359.92 | H46: =G46-F46 -> -7086407.453 | I46: =IF(H46=0,"",H46/G46) -> -0.2406711327 | J46: ='C7-CFlow'!K41 -> 25023794
A48: Debtors & creditors analysis | B48: ='SC3'!C3 -> 0-30 Days | C48: ='SC3'!D3 -> 31-60 Days | D48: ='SC3'!E3 -> 61-90 Days | E48: ='SC3'!F3 -> 91-120 Days | F48: ='SC3'!G3 -> 121-150 Dys | G48: ='SC3'!H3 -> 151-180 Dys | H48: ='SC3'!I3 -> 181 Dys-1 Yr | I48: ='SC3'!J3 -> Over 1Yr | J48: Total
A49: =LEFT('SC3'!A4,20) -> Debtors Age Analysis
A50: ='SC3'!A14 -> Total By Income Source | B50: ='SC3'!C14 -> 0 | C50: ='SC3'!D14 -> 0 | D50: ='SC3'!E14 -> 0 | E50: ='SC3'!F14 -> 0 | F50: ='SC3'!G14 -> 0 | G50: ='SC3'!H14 -> 0 | H50: ='SC3'!I14 -> 0 | I50: ='SC3'!J14 -> 0 | J50: ='SC3'!K14 -> 0
A51: =LEFT('SC4'!A5,22) -> Creditors Age Analysis
A52: Total Creditors | B52: ='SC4'!C15 -> 0 | C52: ='SC4'!D15 -> 0 | D52: ='SC4'!E15 -> 0 | E52: ='SC4'!F15 -> 0 | F52: ='SC4'!G15 -> 0 | G52: ='SC4'!H15 -> 0 | H52: ='SC4'!I15 -> 0 | I52: ='SC4'!J15 -> 0 | J52: ='SC4'!K15 -> 0

Sheet C2-FinPerf SC
A1: =muni& " - "&S71A& " - "&date -> NC074 Kareeberg - Table C2 Monthly Budget Statement - Financial Performance (standard classification) - M06 December
A2: =desc -> Description | B2: =head27 -> Ref | C2: =Head1 -> 2015/16 | D2: =Head2 -> Budget Year 2016/17
C3: =Head5 -> Audited Outcome | D3: =Head6 -> Original Budget | E3: =Head7 -> Adjusted Budget | F3: =Head38 -> Monthly actual | G3: =Head39 -> YearTD actual | H3: =Head40 -> YearTD budget | I3: =Head41 -> YTD variance | J3: =Head41 -> YTD variance | K3: =Head8 -> Full Year Forecast
A4: R thousands | B4: 1 | J4: %
A5: Revenue - Standard
A6: Governance and administration | C6: =SUM(C7:C9) -> 38470502 | D6: 36433929 | E6: 36433929 | F6: 0 | G6: 7804506.52 | H6: 13065443 | I6: =G6-H6 -> -5260936.48 | J6: =IF(I6=0,"",I6/H6) -> -0.4026603981 | K6: =SUM(K7:K9) -> 36433929
A7: Executive and council | C7: ='C2C'!C7 -> 24623744 | D7: ='C2C'!D7 -> 14801570 | E7: ='C2C'!E7 -> 14801570 | F7: ='C2C'!F7 -> 0 | G7: ='C2C'!G7 -> 594380.77 | H7: ='C2C'!H7 -> 8012959 | I7: -7418578.23 | J7: =IF(I7=0,"",I7/H7) -> -0.9258225619 | K7: ='C2C'!K7 -> 14801570
A8: Budget and treasury office | C8: ='C2C'!C10 -> 13846758 | D8: ='C2C'!D10 -> 21632359 | E8: ='C2C'!E10 -> 21632359 | F8: ='C2C'!F10 -> 0 | G8: ='C2C'!G10 -> 7210125.75 | H8: ='C2C'!H10 -> 5052484 | I8: 2157641.75 | J8: 0.4270457363 | K8: ='C2C'!K10 -> 21632359
A9: Corporate services | C9: ='C2C'!C11 -> 0 | D9: ='C2C'!D11 -> 0 | E9: ='C2C'!E11 -> 0 | F9: ='C2C'!F11 -> 0 | G9: ='C2C'!G11 -> 0 | H9: ='C2C'!H11 -> 0 | I9: 0 | K9: ='C2C'!K11 -> 0
A10: Community and public safety | C10: =SUM(C11:C15) -> 62889 | D10: 1355755 | E10: 1355755 | F10: 0 | G10: 198788.74 | H10: 503 | I10: 198285.74 | J10: 394.2062425 | K10: =SUM(K11:K15) -> 1355755
A11: Community and social services | C11: ='C2C'!C17 -> 16946 | D11: ='C2C'!D17 -> 1337650 | E11: ='C2C'!E17 -> 1337650 | F11: ='C2C'!F17 -> 0 | G11: ='C2C'!G17 -> 197893.74 | H11: ='C2C'!H17 -> 227 | I11: 197666.74 | J11: 870.7785903 | K11: ='C2C'!K17 -> 1337650
A12: Sport and recreation | C12: ='C2C'!C26 -> 45893 | D12: ='C2C'!D26 -> 17400 | E12: ='C2C'!E26 -> 17400 | F12: ='C2C'!F26 -> 0 | G12: ='C2C'!G26 -> 895 | H12: ='C2C'!H26 -> 276 | I12: 619 | J12: 2.242753623 | K12: ='C2C'!K26 -> 17400
A13: Public safety | C13: ='C2C'!C27 -> 50 | D13: ='C2C'!D27 -> 705 | E13: ='C2C'!E27 -> 705 | F13: ='C2C'!F27 -> 0 | G13: ='C2C'!G27 -> 0 | H13: ='C2C'!H27 -> 0 | I13: 0 | K13: ='C2C'!K27 -> 705
A14: Housing | C14: ='C2C'!C33 -> 0 | D14: ='C2C'!D33 -> 0 | E14: ='C2C'!E33 -> 0 | F14: ='C2C'!F33 -> 0 | G14: ='C2C'!G33 -> 0 | H14: ='C2C'!H33 -> 0 | I14: =G14-H14 -> 0 | J14: =IF(I14=0,"",I14/H14) ->  | K14: ='C2C'!K33 -> 0
A15: Health | C15: ='C2C'!C34 -> 0 | D15: ='C2C'!D34 -> 0 | E15: ='C2C'!E34 -> 0 | F15: ='C2C'!F34 -> 0 | G15: ='C2C'!G34 -> 0 | H15: ='C2C'!H34 -> 0 | I15: 0 | K15: ='C2C'!K34 -> 0
A16: Economic and environmental services | C16: =SUM(C17:C19) -> 8550 | D16: 2000 | E16: 2000 | F16: 60 | G16: 480 | H16: 342 | I16: 138 | J16: 0.4035087719 | K16: =SUM(K17:K19) -> 2000
A17: Planning and development | C17: ='C2C'!C39 -> 0 | D17: ='C2C'!D39 -> 0 | E17: ='C2C'!E39 -> 0 | F17: ='C2C'!F39 -> 0 | G17: ='C2C'!G39 -> 0 | H17: ='C2C'!H39 -> 0 | I17: 0 | K17: ='C2C'!K39 -> 0
A18: Road transport | C18: ='C2C'!C43 -> 8550 | D18: ='C2C'!D43 -> 2000 | E18: ='C2C'!E43 -> 2000 | F18: ='C2C'!F43 -> 60 | G18: ='C2C'!G43 -> 480 | H18: ='C2C'!H43 -> 342 | I18: 138 | J18: 0.4035087719 | K18: ='C2C'!K43 -> 2000
A19: Environmental protection | C19: ='C2C'!C49 -> 0 | D19: ='C2C'!D49 -> 0 | E19: ='C2C'!E49 -> 0 | F19: ='C2C'!F49 -> 0 | G19: ='C2C'!G49 -> 0 | H19: ='C2C'!H49 -> 0 | I19: 0 | K19: ='C2C'!K49 -> 0
A20: Trading services | C20: =SUM(C21:C24) -> 19760569 | D20: =SUM(D21:D24) -> 46026087 | E20: 46026087 | F20: 0 | G20: 8761845.68 | H20: 6302880 | I20: 2458965.68 | J20: 0.3901336659 | K20: =SUM(K21:K24) -> 46026087
A21: Electricity | C21: ='C2C'!C54 -> 8819088 | D21: ='C2C'!D54 -> 11576718 | E21: ='C2C'!E54 -> 11576718 | F21: ='C2C'!F54 -> 0 | G21: ='C2C'!G54 -> 2331977.51 | H21: ='C2C'!H54 -> 1893578 | I21: =G21-H21 -> 438399.51 | J21: 0.2315191188 | K21: ='C2C'!K54 -> 11576718
A22: Water | C22: ='C2C'!C57 -> 4535451 | D22: ='C2C'!D57 -> 22472063 | E22: ='C2C'!E57 -> 22472063 | F22: ='C2C'!F57 -> 0 | G22: ='C2C'!G57 -> 2251740.57 | H22: ='C2C'!H57 -> 2566401 | I22: =G22-H22 -> -314660.43 | J22: -0.1226076634 | K22: ='C2C'!K57 -> 22472063
A23: Waste water management | C23: ='C2C'!C60 -> 2802900 | D23: ='C2C'!D60 -> 5505536 | E23: ='C2C'!E60 -> 5505536 | F23: ='C2C'!F60 -> 0 | G23: ='C2C'!G60 -> 2042308.8 | H23: ='C2C'!H60 -> 769083 | I23: =G23-H23 -> 1273225.8 | J23: 1.655511564 | K23: ='C2C'!K60 -> 5505536
A24: Waste management | C24: ='C2C'!C64 -> 3603130 | D24: ='C2C'!D64 -> 6471770 | E24: ='C2C'!E64 -> 6471770 | F24: ='C2C'!F64 -> 0 | G24: ='C2C'!G64 -> 2135818.8 | H24: ='C2C'!H64 -> 1073818 | I24: =G24-H24 -> 1062000.8 | J24: 0.9889951556 | K24: ='C2C'!K64 -> 6471770
A25: Other | B25: 4 | C25: ='C2C'!C66 -> 0 | D25: ='C2C'!D66 -> 0 | E25: ='C2C'!E66 -> 0 | F25: ='C2C'!F66 -> 0 | G25: ='C2C'!G66 -> 0 | H25: ='C2C'!H66 -> 0 | I25: =G25-H25 -> 0 | K25: ='C2C'!K66 -> 0
A26: Total Revenue - Standard | B26: 2 | C26: =C6+C10+C16+C20+C25 -> 58302510 | D26: =D6+D10+D16+D20+D25 -> 83817771 | E26: 83817771 | F26: 60 | G26: 16765620.94 | H26: 19369168 | I26: -2603547.06 | J26: -0.1344170829 | K26: =K6+K10+K16+K20+K25 -> 83817771
A28: Expenditure - Standard
A29: =A6 -> Governance and administration | C29: =SUM(C30:C32) -> 31217029 | D29: 33981610 | E29: 33981610 | F29: 0 | G29: 4623749.36 | H29: 5677670 | I29: =G29-H29 -> -1053920.64 | J29: =IF(I29=0,"",I29/H29) -> -0.1856255541 | K29: =SUM(K30:K32) -> 33981610
A30: =A7 -> Executive and council | C30: ='C2C'!C76 -> 20097428 | D30: ='C2C'!D76 -> 19968856 | E30: ='C2C'!E76 -> 19968856 | F30: ='C2C'!F76 -> 0 | G30: ='C2C'!G76 -> 3504322.16 | H30: ='C2C'!H76 -> 4306058 | I30: -801735.84 | J30: =IF(I30=0,"",I30/H30) -> -0.1861878869 | K30: ='C2C'!K76 -> 19968856
A31: Budget and treasury office | C31: ='C2C'!C79 -> 8720315 | D31: ='C2C'!D79 -> 10879776 | E31: ='C2C'!E79 -> 10879776 | F31: ='C2C'!F79 -> 0 | G31: ='C2C'!G79 -> 749086.59 | H31: ='C2C'!H79 -> 1026775 | I31: -277688.41 | J31: -0.2704471866 | K31: ='C2C'!K79 -> 10879776
A32: Corporate services | C32: ='C2C'!C80 -> 2399286 | D32: ='C2C'!D80 -> 3132978 | E32: ='C2C'!E80 -> 3132978 | F32: ='C2C'!F80 -> 0 | G32: ='C2C'!G80 -> 370340.61 | H32: ='C2C'!H80 -> 344837 | I32: 25503.61 | J32: 0.07395844993 | K32: ='C2C'!K80 -> 3132978
A33: Community and public safety | C33: =SUM(C34:C38) -> 1533161 | D33: 3923581 | E33: 3923581 | F33: 0 | G33: 166105.92 | H33: 423679 | I33: -257573.08 | J33: -0.6079439387 | K33: =SUM(K34:K38) -> 3923581
A34: Community and social services | C34: ='C2C'!C86 -> 797626 | D34: ='C2C'!D86 -> 2941091 | E34: ='C2C'!E86 -> 2941091 | F34: ='C2C'!F86 -> 0 | G34: ='C2C'!G86 -> 64873.75 | H34: ='C2C'!H86 -> 299661 | I34: -234787.25 | J34: -0.7835095324 | K34: ='C2C'!K86 -> 2941091
A35: Sport and recreation | C35: ='C2C'!C95 -> 623191 | D35: ='C2C'!D95 -> 848522 | E35: ='C2C'!E95 -> 848522 | F35: ='C2C'!F95 -> 0 | G35: ='C2C'!G95 -> 94522.56 | H35: ='C2C'!H95 -> 106367 | I35: -11844.44 | J35: -0.1113544614 | K35: ='C2C'!K95 -> 848522
A36: Public safety | C36: ='C2C'!C96 -> 74335 | D36: ='C2C'!D96 -> 82200 | E36: ='C2C'!E96 -> 82200 | F36: ='C2C'!F96 -> 0 | G36: ='C2C'!G96 -> 4569.61 | H36: ='C2C'!H96 -> 13165 | I36: -8595.39 | J36: -0.6528970756 | K36: ='C2C'!K96 -> 82200
A37: Housing | C37: ='C2C'!C102 -> 0 | D37: ='C2C'!D102 -> 0 | E37: ='C2C'!E102 -> 0 | F37: ='C2C'!F102 -> 0 | G37: ='C2C'!G102 -> 0 | H37: ='C2C'!H102 -> 0 | I37: 0 | K37: ='C2C'!K102 -> 0
A38: Health | C38: ='C2C'!C103 -> 38009 | D38: ='C2C'!D103 -> 51768 | E38: ='C2C'!E103 -> 51768 | F38: ='C2C'!F103 -> 0 | G38: ='C2C'!G103 -> 2140 | H38: ='C2C'!H103 -> 4486 | I38: -2346 | J38: -0.522960321 | K38: ='C2C'!K103 -> 51768
A39: Economic and environmental services | C39: =SUM(C40:C42) -> 3128936 | D39: 3597745 | E39: 3597745 | F39: 0 | G39: 315075.08 | H39: 431863 | I39: -116787.92 | J39: -0.2704281682 | K39: =SUM(K40:K42) -> 3597745
A40: Planning and development | C40: ='C2C'!C108 -> 0 | D40: ='C2C'!D108 -> 0 | E40: ='C2C'!E108 -> 0 | F40: ='C2C'!F108 -> 0 | G40: ='C2C'!G108 -> 0 | H40: ='C2C'!H108 -> 0 | I40: 0 | K40: ='C2C'!K108 -> 0
A41: Road transport | C41: ='C2C'!C112 -> 3128936 | D41: ='C2C'!D112 -> 3597745 | E41: ='C2C'!E112 -> 3597745 | F41: ='C2C'!F112 -> 0 | G41: ='C2C'!G112 -> 315075.08 | H41: ='C2C'!H112 -> 431863 | I41: -116787.92 | J41: -0.2704281682 | K41: ='C2C'!K112 -> 3597745
A42: Environmental protection | C42: ='C2C'!C118 -> 0 | D42: ='C2C'!D118 -> 0 | E42: ='C2C'!E118 -> 0 | F42: ='C2C'!F118 -> 0 | G42: ='C2C'!G118 -> 0 | H42: ='C2C'!H118 -> 0 | I42: 0 | K42: ='C2C'!K118 -> 0
A43: Trading services | C43: =SUM(C44:C47) -> 17952621 | D43: =SUM(D44:D47) -> 20445835 | E43: 20445835 | F43: 0 | G43: 2823780.9 | H43: 3014759 | I43: -190978.1 | J43: -0.06334771701 | K43: =SUM(K44:K47) -> 20445835
A44: Electricity | C44: ='C2C'!C123 -> 10857776 | D44: ='C2C'!D123 -> 11413242 | E44: ='C2C'!E123 -> 11413242 | F44: ='C2C'!F123 -> 0 | G44: ='C2C'!G123 -> 2040683.13 | H44: ='C2C'!H123 -> 2155379 | I44: -114695.87 | J44: -0.05321378282 | K44: ='C2C'!K123 -> 11413242
A45: Water | C45: ='C2C'!C126 -> 694903 | D45: ='C2C'!D126 -> 1862863 | E45: ='C2C'!E126 -> 1862863 | F45: ='C2C'!F126 -> 0 | G45: ='C2C'!G126 -> 87988.19 | H45: ='C2C'!H126 -> 195302 | I45: -107313.81 | J45: -0.549476247 | K45: ='C2C'!K126 -> 1862863
A46: Waste water management | C46: ='C2C'!C129 -> 3494206 | D46: ='C2C'!D129 -> 3661452 | E46: ='C2C'!E129 -> 3661452 | F46: ='C2C'!F129 -> 0 | G46: ='C2C'!G129 -> 642897.53 | H46: ='C2C'!H129 -> 600768 | I46: 42129.53 | J46: 0.0701261219 | K46: ='C2C'!K129 -> 3661452
A47: Waste management | C47: ='C2C'!C133 -> 2905736 | D47: ='C2C'!D133 -> 3508278 | E47: ='C2C'!E133 -> 3508278 | F47: ='C2C'!F133 -> 0 | G47: ='C2C'!G133 -> 52212.05 | H47: ='C2C'!H133 -> 63310 | I47: -11097.95 | J47: -0.175295372 | K47: ='C2C'!K133 -> 3508278
A48: Other | C48: ='C2C'!C135 -> 0 | D48: ='C2C'!D135 -> 0 | E48: ='C2C'!E135 -> 0 | F48: ='C2C'!F135 -> 0 | G48: ='C2C'!G135 -> 0 | H48: ='C2C'!H135 -> 0 | I48: 0 | K48: ='C2C'!K135 -> 0
A49: Total Expenditure - Standard | B49: 3 | C49: =C29+C33+C39+C43+C48 -> 53831747 | D49: =D29+D33+D39+D43+D48 -> 61948771 | E49: 61948771 | F49: 0 | G49: 7928711.26 | H49: 9547971 | I49: -1619259.74 | J49: -0.1695920254 | K49: =K29+K33+K39+K43+K48 -> 61948771
A50: Surplus/ (Deficit) for the year | C50: =C26-C49 -> 4470763 | D50: 21869000 | E50: 21869000 | F50: 60 | G50: 8836909.68 | H50: 9821197 | I50: =I26-I49 -> -984287.32 | J50: =IF(I50=0,"",I50/H50) -> -0.1002207083 | K50: =K26-K49 -> 21869000
A51: =head27a -> References
A52: 1. Government Finance Statistics Functions and Sub-functions are standardised to assist the compilation of national and international accounts for comparison purposes
A53: 2. Total Revenue by standard classification must reconcile to Total Operating Revenue shown in the Financial Performance Statement
A54: 3. Total Expenditure by standard classification must reconcile to total operating expenditure shown in 'Financial Performance Statement'
A55: 4. All amounts must be classified under a standard classification (modified GFS). The GFS function 'Other' is only for Abbatoirs, Air Transport, Markets and Tourism - and if used must be supported by footnotes. Nothing else may be placed under 'Other'. Assign associate share to relevant classification

Sheet C2C
A1: =muni& " - "&S71A& " - "&date -> NC074 Kareeberg - Table C2 Monthly Budget Statement - Financial Performance (standard classification) - M06 December
A2: =desc -> Description | B2: =head27 -> Ref | C2: =Head1 -> 2015/16 | D2: =Head2 -> Budget Year 2016/17
C3: =Head5 -> Audited Outcome | D3: =Head6 -> Original Budget | E3: =Head7 -> Adjusted Budget | F3: =Head38 -> Monthly actual | G3: =Head39 -> YearTD actual | H3: =Head40 -> YearTD budget | I3: =Head41 -> YTD variance | J3: =Head41 -> YTD variance | K3: =Head8 -> Full Year Forecast
A4: R thousands | B4: 1 | J4: %
A5: Revenue - Standard
A6: Municipal governance and administration | C6: =C7+C10+C11 -> 38470502 | D6: =D7+D10+D11 -> 36433929 | E6: 36433929 | F6: 0 | G6: 7804506.52 | H6: 13065443 | I6: =G6-H6 -> -5260936.48 | J6: =IF(I6=0,"",I6/H6) -> -0.4026603981 | K6: 36433929
A7: Executive and council | C7: =SUM(C8:C9) -> 24623744 | D7: =SUM(D8:D9) -> 14801570 | E7: 14801570 | F7: 0 | G7: 594380.77 | H7: 8012959 | I7: =G7-H7 -> -7418578.23 | J7: =IF(I7=0,"",I7/H7) -> -0.9258225619 | K7: 14801570
A8: Mayor and Council | C8: 24623744 | D8: 14801570 | E8: 14801570 | F8: 0 | G8: 594380.77 | H8: 8012959 | I8: -7418578.23 | J8: -0.9258225619 | K8: 14801570
A9: Municipal Manager | D9: 0 | E9: 0 | F9: 0 | G9: 0 | I9: 0 | K9: 0
A10: Budget and treasury office | C10: 13846758 | D10: 21632359 | E10: 21632359 | F10: 0 | G10: 7210125.75 | H10: 5052484 | I10: 2157641.75 | J10: 0.4270457363 | K10: 21632359
A11: Corporate services | C11: =SUM(C12:C15) -> 0 | D11: =SUM(D12:D15) -> 0 | E11: 0 | F11: 0 | G11: 0 | H11: 0 | I11: 0 | K11: 0
A12: Human Resources | I12: 0
A13: Information Technology | I13: 0
A14: Property Services | I14: 0
A15: Other Admin | I15: 0
A16: Community and public safety | C16: =C17+C26+C27+C33+C34 -> 62889 | D16: =D17+D26+D27+D33+D34 -> 1355755 | E16: 1355755 | F16: 0 | G16: 198788.74 | H16: 503 | I16: 198285.74 | J16: 394.2062425 | K16: 1355755
A17: Community and social services | C17: =SUM(C18:C25) -> 16946 | D17: =SUM(D18:D25) -> 1337650 | E17: 1337650 | F17: 0 | G17: 197893.74 | H17: 227 | I17: 197666.74 | J17: 870.7785903 | K17: 1337650
A18: Libraries and Archives | C18: 1796 | D18: 1331730 | E18: 1331730 | F18: 0 | G18: 195373.74 | H18: 227 | I18: 195146.74 | J18: 859.6772687 | K18: 1331730
A19: Museums & Art Galleries etc | D19: 0 | E19: 0 | F19: 0 | G19: 0 | I19: 0 | K19: 0
A20: Community halls and Facilities | D20: 0 | E20: 0 | F20: 0 | G20: 0 | I20: 0 | K20: 0
A21: Cemeteries & Crematoriums | C21: 15150 | D21: 5920 | E21: 5920 | F21: 0 | G21: 2520 | I21: 2520 | K21: 5920
A22: Child Care | D22: 0 | E22: 0 | F22: 0 | G22: 0 | I22: 0 | K22: 0
A23: Aged Care | D23: 0 | E23: 0 | F23: 0 | G23: 0 | I23: 0 | K23: 0
A24: Other Community | D24: 0 | E24: 0 | F24: 0 | G24: 0 | I24: 0 | K24: 0
A25: Other Social | D25: 0 | E25: 0 | F25: 0 | G25: 0 | I25: 0 | K25: 0
A26: Sport and recreation | C26: 45893 | D26: 17400 | E26: 17400 | F26: 0 | G26: 895 | H26: 276 | I26: 619 | J26: 2.242753623 | K26: 17400
A27: Public safety | C27: =SUM(C28:C32) -> 50 | D27: =SUM(D28:D32) -> 705 | E27: 705 | F27: 0 | G27: 0 | H27: 0 | I27: 0 | K27: 705
A28: Police | I28: 0
A29: Fire | I29: 0
A30: Civil Defence | I30: 0
A31: Street Lighting | I31: 0
A32: Other | C32: 50 | D32: 705 | E32: 705 | F32: 0 | G32: 0 | H32: 0 | I32: 0 | K32: 705
A33: Housing | I33: 0
A34: Health | C34: =SUM(C35:C37) -> 0 | D34: =SUM(D35:D37) -> 0 | E34: 0 | F34: 0 | G34: 0 | H34: 0 | I34: 0 | K34: 0
A35: Clinics | I35: 0
A36: Ambulance | I36: 0
A37: Other | I37: 0
A38: Economic and environmental services | C38: =C39+C43+C49 -> 8550 | D38: =D39+D43+D49 -> 2000 | E38: 2000 | F38: 60 | G38: 480 | H38: 342 | I38: 138 | J38: 0.4035087719 | K38: 2000
A39: Planning and development | C39: =SUM(C40:C42) -> 0 | D39: =SUM(D40:D42) -> 0 | E39: 0 | F39: 0 | G39: 0 | H39: 0 | I39: 0 | K39: 0
A40: Economic Development/Planning | I40: 0
A41: Town Planning/Building enforcement | I41: 0
A42: Licensing & Regulation | I42: 0
A43: Road transport | C43: =SUM(C44:C48) -> 8550 | D43: =SUM(D44:D48) -> 2000 | E43: 2000 | F43: 60 | G43: 480 | H43: 342 | I43: 138 | J43: 0.4035087719 | K43: 2000
A44: Roads | D44: 400 | E44: 400 | F44: 0 | G44: 0 | H44: 342 | I44: -342 | J44: -1 | K44: 400
A45: Public Buses | D45: 0 | E45: 0 | F45: 0 | G45: 0 | I45: 0 | K45: 0
A46: Parking Garages | D46: 0 | E46: 0 | F46: 0 | G46: 0 | I46: 0 | K46: 0
A47: Vehicle Licensing and Testing | C47: 7800 | D47: 1500 | E47: 1500 | F47: 60 | G47: 480 | I47: 480 | K47: 1500
A48: Other | C48: 750 | D48: 100 | E48: 100 | F48: 0 | G48: 0 | I48: 0 | K48: 100
A49: Environmental protection | C49: =SUM(C50:C52) -> 0 | D49: =SUM(D50:D52) -> 0 | E49: 0 | F49: 0 | G49: 0 | H49: 0 | I49: 0 | K49: 0
A50: Pollution Control | I50: 0
A51: Biodiversity & Landscape | I51: 0
A52: Other | I52: 0
A53: Trading services | C53: =C54+C57+C60+C64 -> 19760569 | D53: =D54+D57+D60+D64 -> 46026087 | E53: 46026087 | F53: 0 | G53: 8761845.68 | H53: 6302880 | I53: 2458965.68 | J53: 0.3901336659 | K53: =K54+K57+K60+K64 -> 46026087
A54: Electricity | C54: =SUM(C55:C56) -> 8819088 | D54: =SUM(D55:D56) -> 11576718 | E54: 11576718 | F54: 0 | G54: 2331977.51 | H54: 1893578 | I54: 438399.51 | J54: 0.2315191188 | K54: 11576718
A55: Electricity Distribution | C55: 8819088 | D55: 11576718 | E55: 11576718 | F55: 0 | G55: 2331977.51 | H55: 1893578 | I55: 438399.51 | J55: 0.2315191188 | K55: 11576718
A56: Electricity Generation | I56: 0
A57: Water | C57: =SUM(C58:C59) -> 4535451 | D57: =SUM(D58:D59) -> 22472063 | E57: 22472063 | F57: 0 | G57: 2251740.57 | H57: 2566401 | I57: -314660.43 | J57: -0.1226076634 | K57: 22472063
A58: Water Distribution | D58: 22472063 | E58: 22472063 | F58: 0 | G58: 0 | H58: 2566401 | I58: -2566401 | J58: -1 | K58: 22472063
A59: Water Storage | C59: 4535451 | D59: 0 | E59: 0 | F59: 0 | G59: 2251740.57 | I59: 2251740.57
A60: Waste water management | C60: =SUM(C61:C63) -> 2802900 | D60: =SUM(D61:D63) -> 5505536 | E60: 5505536 | F60: 0 | G60: 2042308.8 | H60: 769083 | I60: 1273225.8 | J60: 1.655511564 | K60: 5505536
A61: Sewerage | C61: 2802900 | D61: 5505536 | E61: 5505536 | F61: 0 | G61: 2042308.8 | H61: 769083 | I61: 1273225.8 | J61: 1.655511564 | K61: 5505536
A62: Storm Water Management | I62: 0
A63: Public Toilets | I63: 0
A64: Waste management | C64: =SUM(C65) -> 3603130 | D64: =SUM(D65) -> 6471770 | E64: 6471770 | F64: 0 | G64: 2135818.8 | H64: 1073818 | I64: 1062000.8 | J64: 0.9889951556 | K64: 6471770
A65: Solid Waste | C65: 3603130 | D65: 6471770 | E65: 6471770 | F65: 0 | G65: 2135818.8 | H65: 1073818 | I65: 1062000.8 | J65: 0.9889951556 | K65: 6471770
A66: Other | C66: =SUM(C67:C71) -> 0 | D66: =SUM(D67:D71) -> 0 | E66: 0 | F66: 0 | G66: 0 | H66: 0 | I66: 0 | K66: 0
A67: Air Transport | I67: 0
A68: Abattoirs | I68: 0
A69: Tourism | I69: 0
A70: Forestry | I70: 0
A71: Markets | I71: =G71-H71 -> 0 | J71: =IF(I71=0,"",I71/H71) -> 
A72: ="Total "&A5 -> Total Revenue - Standard | B72: 2 | C72: =C6+C16+C38+C53+C66 -> 58302510 | D72: 83817771 | E72: 83817771 | F72: 60 | G72: 16765620.94 | H72: 19369168 | I72: =G72-H72 -> -2603547.06 | J72: =IF(I72=0,"",I72/H72) -> -0.1344170829 | K72: =K6+K16+K38+K53+K66 -> 83817771
A74: Expenditure - Standard
A75: =A6 -> Municipal governance and administration | C75: =C76+C79+C80 -> 31217029 | D75: 33981610 | E75: 33981610 | F75: 0 | G75: 4623749.36 | H75: 5677670 | I75: =G75-H75 -> -1053920.64 | J75: =IF(I75=0,"",I75/H75) -> -0.1856255541 | K75: 33981610
A76: =A7 -> Executive and council | C76: =SUM(C77:C78) -> 20097428 | D76: 19968856 | E76: 19968856 | F76: 0 | G76: 3504322.16 | H76: 4306058 | I76: -801735.84 | J76: -0.1861878869 | K76: 19968856
A77: Mayor and Council | C77: 20097428 | D77: 19968856 | E77: 19968856 | F77: 0 | G77: 3504322.16 | H77: 4306058 | I77: -801735.84 | J77: -0.1861878869 | K77: 19968856
A78: Municipal Manager | D78: 0 | E78: 0 | F78: 0 | G78: 0 | I78: 0 | K78: 0
A79: Budget and treasury office | C79: 8720315 | D79: 10879776 | E79: 10879776 | F79: 0 | G79: 749086.59 | H79: 1026775 | I79: -277688.41 | J79: -0.2704471866 | K79: 10879776
A80: Corporate services | C80: =SUM(C81:C84) -> 2399286 | D80: 3132978 | E80: 3132978 | F80: 0 | G80: 370340.61 | H80: 344837 | I80: 25503.61 | J80: 0.07395844993 | K80: 3132978
A81: Human Resources | C81: 2399286 | D81: 3132978 | E81: 3132978 | F81: 0 | G81: 370340.61 | H81: 344837 | I81: 25503.61 | J81: 0.07395844993 | K81: 3132978
A82: Information Technology | I82: 0
A83: Property Services | I83: 0
A84: Other Admin | I84: 0
A85: Community and public safety | C85: =C86+C95+C96+C102+C103 -> 1533161 | D85: 3923581 | E85: 3923581 | F85: 0 | G85: 166105.92 | H85: 423679 | I85: -257573.08 | J85: -0.6079439387 | K85: 3923581
A86: Community and social services | C86: =SUM(C87:C94) -> 797626 | D86: 2941091 | E86: 2941091 | F86: 0 | G86: 64873.75 | H86: 299661 | I86: -234787.25 | J86: -0.7835095324 | K86: 2941091
A87: Libraries and Archives | C87: 551475 | D87: 2681176 | E87: 2681176 | F87: 0 | G87: 20337.97 | H87: 299661 | I87: -279323.03 | J87: -0.9321300736 | K87: 2681176
A88: Museums & Art Galleries etc | C88: 20306 | D88: 34808 | E88: 34808 | F88: 0 | G88: 2959.18 | I88: 2959.18 | K88: 34808
A89: Community halls and Facilities | D89: 0 | E89: 0 | F89: 0 | G89: 0 | I89: 0 | K89: 0
A90: Cemeteries & Crematoriums | C90: 225845 | D90: 225107 | E90: 225107 | F90: 0 | G90: 41576.6 | I90: 41576.6 | K90: 225107
A91: Child Care | D91: 0 | E91: 0 | F91: 0 | G91: 0 | I91: 0 | K91: 0
A92: Aged Care | D92: 0 | E92: 0 | F92: 0 | G92: 0 | I92: 0 | K92: 0
A93: Other Community | D93: 0 | E93: 0 | F93: 0 | G93: 0 | I93: 0 | K93: 0
A94: Other Social | D94: 0 | E94: 0 | F94: 0 | G94: 0 | I94: 0 | K94: 0
A95: Sport and recreation | C95: 623191 | D95: 848522 | E95: 848522 | F95: 0 | G95: 94522.56 | H95: 106367 | I95: -11844.44 | J95: -0.1113544614 | K95: 848522
A96: Public safety | C96: =SUM(C97:C101) -> 74335 | D96: 82200 | E96: 82200 | F96: 0 | G96: 4569.61 | H96: 13165 | I96: -8595.39 | J96: -0.6528970756 | K96: 82200
A97: Police | D97: 0 | E97: 0 | F97: 0 | G97: 0 | H97: 13165 | I97: -13165 | J97: -1 | K97: 0
A98: Fire | C98: 19092 | D98: 25038 | E98: 25038 | F98: 0 | G98: 4074.61 | I98: 4074.61 | K98: 25038
A99: Civil Defence | C99: 600 | D99: 5528 | E99: 5528 | F99: 0 | G99: 495 | I99: 495 | K99: 5528
A100: Street Lighting | D100: 0 | E100: 0 | F100: 0 | G100: 0 | I100: 0 | K100: 0
A101: Other | C101: 54643 | D101: 51634 | E101: 51634 | F101: 0 | G101: 0 | I101: 0 | K101: 51634
A102: Housing | I102: 0
A103: Health | C103: =SUM(C104:C106) -> 38009 | D103: 51768 | E103: 51768 | F103: 0 | G103: 2140 | H103: 4486 | I103: -2346 | J103: -0.522960321 | K103: 51768
A104: Clinics | C104: 38009 | D104: 51768 | E104: 51768 | F104: 0 | G104: 2140 | H104: 4486 | I104: -2346 | J104: -0.522960321 | K104: 51768
A105: Ambulance | I105: 0
A106: Other | I106: 0
A107: Economic and environmental services | C107: =C108+C112+C118 -> 3128936 | D107: 3597745 | E107: 3597745 | F107: 0 | G107: 315075.08 | H107: 431863 | I107: -116787.92 | J107: -0.2704281682 | K107: 3597745
A108: Planning and development | C108: =SUM(C109:C111) -> 0 | D108: 0 | E108: 0 | F108: 0 | G108: 0 | H108: 0 | I108: 0 | K108: 0
A109: Economic Development/Planning | I109: 0
A110: Town Planning/Building enforcement | I110: 0
A111: Licensing & Regulation | I111: 0
A112: Road transport | C112: =SUM(C113:C117) -> 3128936 | D112: 3597745 | E112: 3597745 | F112: 0 | G112: 315075.08 | H112: 431863 | I112: -116787.92 | J112: -0.2704281682 | K112: 3597745
A113: Roads | C113: 1146487 | D113: 1153822 | E113: 1153822 | F113: 0 | G113: 90212.13 | H113: 431863 | I113: -341650.87 | J113: -0.7911093796 | K113: 1153822
A114: Public Buses | D114: 0 | E114: 0 | F114: 0 | G114: 0 | I114: 0 | K114: 0
A115: Parking Garages | D115: 0 | E115: 0 | F115: 0 | G115: 0 | I115: 0 | K115: 0
A116: Vehicle Licensing and Testing | C116: 157527 | D116: 205351 | E116: 205351 | F116: 0 | G116: 28608.24 | I116: 28608.24 | K116: 205351
A117: Other | C117: 1824922 | D117: 2238572 | E117: 2238572 | F117: 0 | G117: 196254.71 | I117: 196254.71 | K117: 2238572
A118: Environmental protection | C118: =SUM(C119:C121) -> 0 | D118: 0 | E118: 0 | F118: 0 | G118: 0 | H118: 0 | I118: 0 | K118: 0
A119: Pollution Control | I119: 0
A120: Biodiversity & Landscape | I120: 0
A121: Other | I121: 0
A122: Trading services | C122: =C123+C126+C129+C133 -> 17952621 | D122: =D123+D126+D129+D133 -> 20445835 | E122: 20445835 | F122: 0 | G122: 2823780.9 | H122: 3014759 | I122: -190978.1 | J122: -0.06334771701 | K122: =K123+K126+K129+K133 -> 20445835
A123: Electricity | C123: =SUM(C124:C125) -> 10857776 | D123: 11413242 | E123: 11413242 | F123: 0 | G123: 2040683.13 | H123: 2155379 | I123: -114695.87 | J123: -0.05321378282 | K123: 11413242
A124: Electricity Distribution | C124: 680740 | D124: 673796 | E124: 673796 | F124: 0 | G124: 126333.43 | H124: 2155379 | I124: -2029045.57 | J124: -0.9413869069 | K124: 673796
A125: Electricity Generation | C125: 10177036 | D125: 10739446 | E125: 10739446 | F125: 0 | G125: 1914349.7 | I125: 1914349.7 | K125: 10739446
A126: Water | C126: =SUM(C127:C128) -> 694903 | D126: 1862863 | E126: 1862863 | F126: 0 | G126: 87988.19 | H126: 195302 | I126: -107313.81 | J126: -0.549476247 | K126: 1862863
A127: Water Distribution | C127: 579371 | D127: 697898 | E127: 697898 | F127: 0 | G127: 37835.26 | H127: 195302 | I127: -157466.74 | J127: -0.806273054 | K127: 697898
A128: Water Storage | C128: 115532 | D128: 1164965 | E128: 1164965 | F128: 0 | G128: 50152.93 | I128: 50152.93 | K128: 1164965
A129: Waste water management | C129: =SUM(C130:C132) -> 3494206 | D129: 3661452 | E129: 3661452 | F129: 0 | G129: 642897.53 | H129: 600768 | I129: 42129.53 | J129: 0.0701261219 | K129: 3661452
A130: Sewerage | C130: 3494206 | D130: 3661452 | E130: 3661452 | F130: 0 | G130: 642897.53 | H130: 600768 | I130: 42129.53 | J130: 0.0701261219 | K130: 3661452
A131: Storm Water Management | I131: 0
A132: Public Toilets | I132: 0
A133: Waste management | C133: =SUM(C134) -> 2905736 | D133: 3508278 | E133: 3508278 | F133: 0 | G133: 52212.05 | H133: 63310 | I133: -11097.95 | J133: -0.175295372 | K133: 3508278
A134: Solid Waste | C134: 2905736 | D134: 3508278 | E134: 3508278 | F134: 0 | G134: 52212.05 | H134: 63310 | I134: -11097.95 | J134: -0.175295372 | K134: 3508278
A135: Other | C135: =SUM(C136:C140) -> 0 | D135: 0 | E135: 0 | F135: 0 | G135: 0 | H135: 0 | I135: 0 | K135: 0
A136: Air Transport | I136: 0
A137: Abattoirs | I137: 0
A138: Tourism | I138: 0
A139: Forestry | I139: =G139-H139 -> 0 | J139: =IF(I139=0,"",I139/H139) -> 
A140: =A71 -> Markets | I140: =G140-H140 -> 0 | J140: =IF(I140=0,"",I140/H140) -> 
A141: ="Total "&A74 -> Total Expenditure - Standard | B141: 3 | C141: =C75+C85+C107+C122+C135 -> 53831747 | D141: =D75+D85+D107+D122+D135 -> 61948771 | E141: 61948771 | F141: 0 | G141: 7928711.26 | H141: 9547971 | I141: -1619259.74 | J141: =IF(I141=0,"",I141/H141) -> -0.1695920254 | K141: =K75+K85+K107+K122+K135 -> 61948771
A142: =result -> Surplus/ (Deficit) for the year | C142: =C72-C141 -> 4470763 | D142: 21869000 | E142: 21869000 | F142: 60 | G142: 8836909.68 | H142: 9821197 | I142: =G142-H142 -> -984287.32 | J142: =IF(I142=0,"",I142/H142) -> -0.1002207083 | K142: 21869000
A143: =head27a -> References
A144: 1. Government Finance Statistics Functions and Sub-functions are standardised to assist national and international accounts and comparison
A145: 2. Total Revenue by Standard Classification must reconcile to total operating revenue shown in Financial Performance (revenue and expenditure)
A146: 3. Total Expenditure by Standard Classification must reconcile to total operating expenditure shown in Financial Performance (revenue and expenditure)
A147: 4. All amounts must be classified under a Standard (modified GFS) classification. The GFS function 'Other' is only for Abbatoirs, Air Transport, Markets and Tourism - and if used must be supported by footnotes. Nothing else may be placed under 'Other'. Assign associate share to relevant classification
A150: check oprev balance | C150: =C72 -> 58302510 | D150: 0 | E150: 0 | F150: 0 | G150: 0 | H150: 0 | I150: 0 | K150: 0
A151: check opexp balance | C151: 0 | D151: 0 | E151: 0 | F151: 0 | G151: 0 | H151: 0 | I151: 0 | K151: 0

Sheet C3-FinPerf V
A1: =muni& " - "&S71C& " - "&date -> NC074 Kareeberg - Table C3 Monthly Budget Statement - Financial Performance (revenue and expenditure by municipal vote) - M06 December
A2: =Vdesc -> Vote Description | B2: =head27 -> Ref | C2: =Head1 -> 2015/16 | D2: =Head2 -> Budget Year 2016/17
C3: =Head5 -> Audited Outcome | D3: =Head6 -> Original Budget | E3: =Head7 -> Adjusted Budget | F3: =Head38 -> Monthly actual | G3: =Head39 -> YearTD actual | H3: =Head40 -> YearTD budget | I3: =Head41 -> YTD variance | J3: =Head41 -> YTD variance | K3: =Head8 -> Full Year Forecast
A4: R thousands | J4: %
A5: Revenue by Vote | B5: 1
A6: ='Org structure'!A2 -> Vote 1 - Executive and Council | C6: ='C3C'!C6 -> 24623744 | D6: ='C3C'!D6 -> 14801570 | E6: ='C3C'!E6 -> 14801570 | F6: ='C3C'!F6 -> 0 | G6: ='C3C'!G6 -> 594380.77 | H6: ='C3C'!H6 -> 8012959 | I6: =G6-H6 -> -7418578.23 | J6: =IF(I6=0,"",I6/H6) -> -0.9258225619 | K6: ='C3C'!K6 -> 14801570
A7: ='Org structure'!A3 -> Vote 2 - Budget and Treasury | C7: ='C3C'!C17 -> 13846758 | D7: ='C3C'!D17 -> 21632359 | E7: ='C3C'!E17 -> 21632359 | F7: ='C3C'!F17 -> 0 | G7: ='C3C'!G17 -> 7210125.75 | H7: ='C3C'!H17 -> 5052484 | I7: =G7-H7 -> 2157641.75 | J7: =IF(I7=0,"",I7/H7) -> 0.4270457363 | K7: ='C3C'!K17 -> 21632359
A8: ='Org structure'!A4 -> Vote 3 - Corporate Services | C8: ='C3C'!C28 -> 0 | D8: ='C3C'!D28 -> 0 | E8: ='C3C'!E28 -> 0 | F8: ='C3C'!F28 -> 0 | G8: ='C3C'!G28 -> 0 | H8: ='C3C'!H28 -> 0 | I8: 0 | K8: ='C3C'!K28 -> 0
A9: ='Org structure'!A5 -> Vote 4 - Planning and Development | C9: ='C3C'!C39 -> 0 | D9: ='C3C'!D39 -> 0 | E9: ='C3C'!E39 -> 0 | F9: ='C3C'!F39 -> 0 | G9: ='C3C'!G39 -> 0 | H9: ='C3C'!H39 -> 0 | I9: 0 | K9: ='C3C'!K39 -> 0
A10: ='Org structure'!A6 -> Vote 5 - Health | C10: ='C3C'!C50 -> 0 | D10: ='C3C'!D50 -> 0 | E10: ='C3C'!E50 -> 0 | F10: ='C3C'!F50 -> 0 | G10: ='C3C'!G50 -> 0 | H10: ='C3C'!H50 -> 0 | I10: 0 | K10: ='C3C'!K50 -> 0
A11: ='Org structure'!A7 -> Vote 6 - Community and Social Services | C11: ='C3C'!C61 -> 16946 | D11: ='C3C'!D61 -> 1337650 | E11: ='C3C'!E61 -> 1337650 | F11: ='C3C'!F61 -> 0 | G11: ='C3C'!G61 -> 197893.74 | H11: ='C3C'!H61 -> 1581256 | I11: -1383362.26 | J11: -0.8748502836 | K11: ='C3C'!K61 -> 1337650
A12: ='Org structure'!A8 -> Vote 7 - Housing | C12: ='C3C'!C72 -> 0 | D12: ='C3C'!D72 -> 0 | E12: ='C3C'!E72 -> 0 | F12: ='C3C'!F72 -> 0 | G12: ='C3C'!G72 -> 0 | H12: ='C3C'!H72 -> 0 | I12: 0 | K12: ='C3C'!K72 -> 0
A13: ='Org structure'!A9 -> Vote 8 - Public Safety | C13: ='C3C'!C83 -> 50 | D13: ='C3C'!D83 -> 705 | E13: ='C3C'!E83 -> 705 | F13: ='C3C'!F83 -> 0 | G13: ='C3C'!G83 -> 0 | H13: ='C3C'!H83 -> 276 | I13: -276 | J13: -1 | K13: ='C3C'!K83 -> 705
A14: ='Org structure'!A10 -> Vote 9 - Sport and Recreation | C14: ='C3C'!C94 -> 45893 | D14: ='C3C'!D94 -> 17400 | E14: ='C3C'!E94 -> 17400 | F14: ='C3C'!F94 -> 0 | G14: ='C3C'!G94 -> 895 | H14: ='C3C'!H94 -> 227 | I14: 668 | J14: 2.942731278 | K14: ='C3C'!K94 -> 17400
A15: ='Org structure'!A11 -> Vote 10 - Environmental Protection | C15: ='C3C'!C105 -> 0 | D15: ='C3C'!D105 -> 0 | E15: ='C3C'!E105 -> 0 | F15: ='C3C'!F105 -> 0 | G15: ='C3C'!G105 -> 0 | H15: ='C3C'!H105 -> 0 | I15: 0 | K15: ='C3C'!K105 -> 0
A16: ='Org structure'!A12 -> Vote 11 - Solid Waste Management | C16: ='C3C'!C116 -> 3603130 | D16: ='C3C'!D116 -> 6471770 | E16: ='C3C'!E116 -> 6471770 | F16: ='C3C'!F116 -> 0 | G16: ='C3C'!G116 -> 2135818.8 | H16: ='C3C'!H116 -> 1073818 | I16: 1062000.8 | J16: 0.9889951556 | K16: ='C3C'!K116 -> 6471770
A17: ='Org structure'!A13 -> Vote 12 - Waste Water Management | C17: ='C3C'!C127 -> 2802900 | D17: ='C3C'!D127 -> 5505536 | E17: ='C3C'!E127 -> 5505536 | F17: ='C3C'!F127 -> 0 | G17: ='C3C'!G127 -> 2042308.8 | H17: ='C3C'!H127 -> 769083 | I17: 1273225.8 | J17: 1.655511564 | K17: ='C3C'!K127 -> 5505536
A18: ='Org structure'!A14 -> Vote 13 - Road Transport | C18: ='C3C'!C138 -> 8550 | D18: ='C3C'!D138 -> 2000 | E18: ='C3C'!E138 -> 2000 | F18: ='C3C'!F138 -> 60 | G18: ='C3C'!G138 -> 480 | H18: ='C3C'!H138 -> 342 | I18: 138 | J18: 0.4035087719 | K18: ='C3C'!K138 -> 2000
A19: ='Org structure'!A15 -> Vote 14 - Water | C19: ='C3C'!C149 -> 4535451 | D19: ='C3C'!D149 -> 22472063 | E19: ='C3C'!E149 -> 22472063 | F19: ='C3C'!F149 -> 0 | G19: ='C3C'!G149 -> 2251740.57 | H19: ='C3C'!H149 -> 2566401 | I19: -314660.43 | J19: -0.1226076634 | K19: ='C3C'!K149 -> 22472063
A20: ='Org structure'!A16 -> Vote 15 - Electricity | C20: ='C3C'!C160 -> 8819088 | D20: ='C3C'!D160 -> 11576718 | E20: ='C3C'!E160 -> 11576718 | F20: ='C3C'!F160 -> 0 | G20: ='C3C'!G160 -> 2331977.51 | H20: ='C3C'!H160 -> 1893578 | I20: 438399.51 | J20: 0.2315191188 | K20: ='C3C'!K160 -> 11576718
A21: Total Revenue by Vote | B21: 2 | C21: =SUM(C6:C20) -> 58302510 | D21: =SUM(D6:D20) -> 83817771 | E21: 83817771 | F21: 60 | G21: 16765620.94 | H21: 20950424 | I21: -4184803.06 | J21: -0.1997478934 | K21: =SUM(K6:K20) -> 83817771
A23: Expenditure by Vote | B23: 1
A24: ='Org structure'!A2 -> Vote 1 - Executive and Council | C24: ='C3C'!C174 -> 20097428 | D24: ='C3C'!D174 -> 19968856 | E24: ='C3C'!E174 -> 19968856 | F24: ='C3C'!F174 -> 0 | G24: ='C3C'!G174 -> 3504322.16 | H24: ='C3C'!H174 -> 4306058 | I24: =G24-H24 -> -801735.84 | J24: =IF(I24=0,"",I24/H24) -> -0.1861878869 | K24: ='C3C'!K174 -> 19968856
A25: ='Org structure'!A3 -> Vote 2 - Budget and Treasury | C25: ='C3C'!C185 -> 8720315 | D25: ='C3C'!D185 -> 10879776 | E25: ='C3C'!E185 -> 10879776 | F25: ='C3C'!F185 -> 12.1 | G25: ='C3C'!G185 -> 749086.59 | H25: ='C3C'!H185 -> 1026775 | I25: -277688.41 | J25: -0.2704471866 | K25: ='C3C'!K185 -> 10879776
A26: ='Org structure'!A4 -> Vote 3 - Corporate Services | C26: ='C3C'!C196 -> 2399286 | D26: ='C3C'!D196 -> 3132978 | E26: ='C3C'!E196 -> 3132978 | F26: ='C3C'!F196 -> 0 | G26: ='C3C'!G196 -> 370340.61 | H26: ='C3C'!H196 -> 344837 | I26: 25503.61 | J26: 0.07395844993 | K26: ='C3C'!K196 -> 3132978
A27: ='Org structure'!A5 -> Vote 4 - Planning and Development | C27: ='C3C'!C207 -> 0 | D27: ='C3C'!D207 -> 0 | E27: ='C3C'!E207 -> 0 | F27: ='C3C'!F207 -> 0 | G27: ='C3C'!G207 -> 0 | H27: ='C3C'!H207 -> 0 | I27: 0 | K27: ='C3C'!K207 -> 0
A28: ='Org structure'!A6 -> Vote 5 - Health | C28: ='C3C'!C218 -> 38009 | D28: ='C3C'!D218 -> 51768 | E28: ='C3C'!E218 -> 51768 | F28: ='C3C'!F218 -> 0 | G28: ='C3C'!G218 -> 2140 | H28: ='C3C'!H218 -> 4486 | I28: -2346 | J28: -0.522960321 | K28: ='C3C'!K218 -> 51768
A29: ='Org structure'!A7 -> Vote 6 - Community and Social Services | C29: ='C3C'!C229 -> 797626 | D29: ='C3C'!D229 -> 2941091 | E29: ='C3C'!E229 -> 2941091 | F29: ='C3C'!F229 -> 0 | G29: ='C3C'!G229 -> 64873.75 | H29: ='C3C'!H229 -> 299661 | I29: -234787.25 | J29: -0.7835095324 | K29: ='C3C'!K229 -> 2941091
A30: ='Org structure'!A8 -> Vote 7 - Housing | C30: ='C3C'!C240 -> 0 | D30: ='C3C'!D240 -> 0 | E30: ='C3C'!E240 -> 0 | F30: ='C3C'!F240 -> 0 | G30: ='C3C'!G240 -> 0 | H30: ='C3C'!H240 -> 0 | I30: 0 | J30: =IF(I30=0,"",I30/H30) ->  | K30: ='C3C'!K240 -> 0
A31: ='Org structure'!A9 -> Vote 8 - Public Safety | C31: ='C3C'!C251 -> 74335 | D31: ='C3C'!D251 -> 82200 | E31: ='C3C'!E251 -> 82200 | F31: ='C3C'!F251 -> 0 | G31: ='C3C'!G251 -> 4569.61 | H31: ='C3C'!H251 -> 13165 | I31: -8595.39 | J31: -0.6528970756 | K31: ='C3C'!K251 -> 82200
A32: ='Org structure'!A10 -> Vote 9 - Sport and Recreation | C32: ='C3C'!C262 -> 623191 | D32: ='C3C'!D262 -> 848522 | E32: ='C3C'!E262 -> 848522 | F32: ='C3C'!F262 -> 248.95 | G32: ='C3C'!G262 -> 94522.56 | H32: ='C3C'!H262 -> 106367 | I32: -11844.44 | J32: -0.1113544614 | K32: ='C3C'!K262 -> 848522
A33: ='Org structure'!A11 -> Vote 10 - Environmental Protection | C33: ='C3C'!C273 -> 0 | D33: ='C3C'!D273 -> 0 | E33: ='C3C'!E273 -> 0 | F33: ='C3C'!F273 -> 0 | G33: ='C3C'!G273 -> 0 | H33: ='C3C'!H273 -> 0 | I33: 0 | J33: =IF(I33=0,"",I33/H33) ->  | K33: ='C3C'!K273 -> 0
A34: ='Org structure'!A12 -> Vote 11 - Solid Waste Management | C34: ='C3C'!C284 -> 2905736 | D34: ='C3C'!D284 -> 3508278 | E34: ='C3C'!E284 -> 3508278 | F34: ='C3C'!F284 -> 0 | G34: ='C3C'!G284 -> 52212.05 | H34: ='C3C'!H284 -> 63310 | I34: -11097.95 | J34: =IF(I34=0,"",I34/H34) -> -0.175295372 | K34: ='C3C'!K284 -> 3508278
A35: ='Org structure'!A13 -> Vote 12 - Waste Water Management | C35: ='C3C'!C295 -> 3494206 | D35: ='C3C'!D295 -> 3661452 | E35: ='C3C'!E295 -> 3661452 | F35: ='C3C'!F295 -> 0 | G35: ='C3C'!G295 -> 642897.53 | H35: ='C3C'!H295 -> 600768 | I35: 42129.53 | J35: =IF(I35=0,"",I35/H35) -> 0.0701261219 | K35: ='C3C'!K295 -> 3661452
A36: ='Org structure'!A14 -> Vote 13 - Road Transport | C36: ='C3C'!C306 -> 3128936 | D36: ='C3C'!D306 -> 3597745 | E36: ='C3C'!E306 -> 3597745 | F36: ='C3C'!F306 -> 0 | G36: ='C3C'!G306 -> 315075.08 | H36: ='C3C'!H306 -> 431863 | I36: -116787.92 | J36: =IF(I36=0,"",I36/H36) -> -0.2704281682 | K36: ='C3C'!K306 -> 3597745
A37: ='Org structure'!A15 -> Vote 14 - Water | C37: ='C3C'!C317 -> 694903 | D37: ='C3C'!D317 -> 1862863 | E37: ='C3C'!E317 -> 1862863 | F37: ='C3C'!F317 -> 0 | G37: ='C3C'!G317 -> 87988.19 | H37: ='C3C'!H317 -> 195302 | I37: -107313.81 | J37: =IF(I37=0,"",I37/H37) -> -0.549476247 | K37: ='C3C'!K317 -> 1862863
A38: ='Org structure'!A16 -> Vote 15 - Electricity | C38: ='C3C'!C328 -> 10857776 | D38: ='C3C'!D328 -> 11413242 | E38: ='C3C'!E328 -> 11413242 | F38: ='C3C'!F328 -> 0 | G38: ='C3C'!G328 -> 2040683.13 | H38: ='C3C'!H328 -> 2155379 | I38: -114695.87 | J38: -0.05321378282 | K38: ='C3C'!K328 -> 11413242
A39: Total Expenditure by Vote | B39: 2 | C39: =SUM(C24:C38) -> 53831747 | D39: =SUM(D24:D38) -> 61948771 | E39: 61948771 | F39: 261.05 | G39: 7928711.26 | H39: 9547971 | I39: -1619259.74 | J39: =IF(I39=0,"",I39/H39) -> -0.1695920254 | K39: =SUM(K24:K38) -> 61948771
A40: =result -> Surplus/ (Deficit) for the year | B40: 2 | C40: =C21-C39 -> 4470763 | D40: 21869000 | E40: 21869000 | F40: -201.05 | G40: 8836909.68 | H40: 11402453 | I40: =I21-I39 -> -2565543.32 | J40: =IF(I40=0,"",I40/H40) -> -0.2249992453 | K40: =K21-K39 -> 21869000
A41: =head27a -> References
A42: 1. Insert 'Vote'; e.g. Department, if different to standard classification structure
A43: 2. Must reconcile to Monthly Budget Statement - Financial Performance Statement (standard classification)

Sheet C3C
A1: =muni& " - "&S71C& " - "&"A"& " - "&date -> NC074 Kareeberg - Table C3 Monthly Budget Statement - Financial Performance (revenue and expenditure by municipal vote) - A - M06 December
A2: =Vdesc -> Vote Description | B2: =head27 -> Ref | C2: =Head1 -> 2015/16 | D2: =Head2 -> Budget Year 2016/17 | L2: =Head4 -> 
A3: R thousand | C3: =Head5 -> Audited Outcome | D3: =Head6 -> Original Budget | E3: =Head7 -> Adjusted Budget | F3: =Head38 -> Monthly actual | G3: =Head39 -> YearTD actual | H3: =Head40 -> YearTD budget | I3: =Head41 -> YTD variance | J3: =Head41 -> YTD variance | K3: =Head8 -> Full Year Forecast | L3: =Head12 -> Forecast 2010/11 | M3: =Head13 -> Forecast 2011/12 | N3: =Head14 -> Forecast 2012/13 | O3: =Head15 -> Forecast 2013/14 | P3: =Head16 -> Forecast 2014/15 | Q3: =Head17 -> Forecast 2015/16 | R3: =Head18 -> Forecast 2016/17 | S3: =Head19 -> Forecast 2017/18 | T3: =Head20 -> Forecast 2018/19 | U3: =Head21 -> Forecast 2019/20 | V3: =Head22 -> Forecast 2020/21 | W3: =Head23 -> Forecast 2021/22
J4: %
A5: Revenue by Vote | B5: 1
A6: ='Org structure'!A2 -> Vote 1 - Executive and Council | C6: =SUM(C7:C16) -> 24623744 | D6: =SUM(D7:D16) -> 14801570 | E6: 14801570 | F6: 0 | G6: 594380.77 | H6: 8012959 | I6: =G6-H6 -> -7418578.23 | J6: =IF(I6=0,"",I6/H6) -> -0.9258225619 | K6: 14801570
A7: ='Org structure'!E3 -> 1,1 - Executive and Council | C7: 24623744 | D7: 14801570 | E7: 14801570 | F7: 0 | G7: 594380.77 | H7: 8012959 | I7: -7418578.23 | J7: -0.9258225619 | K7: 14801570
A8: ='Org structure'!E4 -> 0 | I8: 0
A9: ='Org structure'!E5 -> 0 | I9: 0
A10: ='Org structure'!E6 -> 0 | I10: 0
A11: ='Org structure'!E7 -> 0 | I11: 0
A12: ='Org structure'!E8 -> 0 | I12: 0
A13: ='Org structure'!E9 -> 0 | I13: 0
A14: ='Org structure'!E10 -> 0 | I14: 0
A15: ='Org structure'!E11 -> 0 | I15: 0
A16: ='Org structure'!E12 -> 0 | I16: 0
A17: ='Org structure'!A3 -> Vote 2 - Budget and Treasury | C17: =SUM(C18:C27) -> 13846758 | D17: =SUM(D18:D27) -> 21632359 | E17: 21632359 | F17: 0 | G17: 7210125.75 | H17: 5052484 | I17: 2157641.75 | J17: 0.4270457363 | K17: 21632359
A18: ='Org structure'!E14 -> 2,1 - Official Housing | C18: 6000 | D18: 6000 | E18: 6000 | F18: 0 | G18: 1000 | I18: 1000 | K18: 6000
A19: ='Org structure'!E15 -> 2,2 - Rates | C19: 11788014 | D19: 12307391 | E19: 12307391 | F19: 0 | G19: 6588560.12 | H19: 5052484 | I19: 1536076.12 | J19: 0.3040239454 | K19: 12307391
A20: ='Org structure'!E16 -> 2,3 - Commonage | C20: 211084 | D20: 240755 | E20: 240755 | F20: 0 | G20: 162073.66 | I20: 162073.66 | K20: 240755
A21: ='Org structure'!E17 -> 2,4 - Municipal Buildings | C21: 94099 | D21: 43922 | E21: 43922 | F21: 0 | G21: 5354 | I21: 5354 | K21: 43922
A22: ='Org structure'!E18 -> 2,5 - Budget and Treasury Office | C22: 1747261 | D22: 9033991 | E22: 9033991 | F22: 0 | G22: 453137.97 | I22: 453137.97 | K22: 9033991
A23: ='Org structure'!E19 -> 2,6 - Airport | C23: 300 | D23: 300 | E23: 300 | F23: 0 | G23: 0 | I23: 0 | K23: 300
A24: ='Org structure'!E20 -> 2,6 - Airport | F24: 0 | G24: 0 | I24: 0
A25: ='Org structure'!E21 -> 0 | I25: 0
A26: ='Org structure'!E22 -> 0 | I26: 0
A27: ='Org structure'!E23 -> 0 | I27: 0
A28: ='Org structure'!A4 -> Vote 3 - Corporate Services | C28: =SUM(C29:C38) -> 0 | D28: 0 | E28: 0 | F28: 0 | G28: 0 | H28: 0 | I28: 0 | K28: 0
A29: ='Org structure'!E25 -> 3,1 - Corporate Services | I29: 0
A30: ='Org structure'!E26 -> 0 | I30: 0
A31: ='Org structure'!E27 -> 0 | I31: 0
A32: ='Org structure'!E28 -> 0 | I32: 0
A33: ='Org structure'!E29 -> 0 | I33: 0
A34: ='Org structure'!E30 -> 0 | I34: 0
A35: ='Org structure'!E31 -> 0 | I35: 0
A36: ='Org structure'!E32 -> 0 | I36: 0
A37: ='Org structure'!E33 -> 0 | I37: 0
A38: ='Org structure'!E34 -> 0 | I38: 0
A39: ='Org structure'!A5 -> Vote 4 - Planning and Development | C39: =SUM(C40:C49) -> 0 | D39: 0 | E39: 0 | F39: 0 | G39: 0 | H39: 0 | I39: 0 | K39: 0
A40: ='Org structure'!E36 -> 4.1 - [Name of sub-vote] | I40: 0
A41: ='Org structure'!E37 -> 0 | I41: 0
A42: ='Org structure'!E38 -> 0 | I42: 0
A43: ='Org structure'!E39 -> 0 | I43: 0
A44: ='Org structure'!E40 -> 0 | I44: 0
A45: ='Org structure'!E41 -> 0 | I45: 0
A46: ='Org structure'!E42 -> 0 | I46: 0
A47: ='Org structure'!E43 -> 0 | I47: 0
A48: ='Org structure'!E44 -> 0 | I48: 0
A49: ='Org structure'!E45 -> 0 | I49: 0
A50: ='Org structure'!A6 -> Vote 5 - Health | C50: =SUM(C51:C60) -> 0 | D50: =SUM(D51:D60) -> 0 | E50: 0 | F50: 0 | G50: 0 | H50: 0 | I50: 0 | K50: 0
A51: ='Org structure'!E47 -> 5,1 - Health | I51: 0
A52: ='Org structure'!E48 -> 5,2 - Clinics | I52: 0
A53: ='Org structure'!E49 -> 0 | I53: 0
A54: ='Org structure'!E50 -> 0 | I54: 0
A55: ='Org structure'!E51 -> 0 | I55: 0
A56: ='Org structure'!E52 -> 0 | I56: 0
A57: ='Org structure'!E53 -> 0 | I57: 0
A58: ='Org structure'!E54 -> 0 | I58: 0
A59: ='Org structure'!E55 -> 0 | I59: 0
A60: ='Org structure'!E56 -> 0 | I60: 0
A61: ='Org structure'!A7 -> Vote 6 - Community and Social Services | C61: =SUM(C62:C71) -> 16946 | D61: =SUM(D62:D71) -> 1337650 | E61: 1337650 | F61: 0 | G61: 197893.74 | H61: 1581256 | I61: -1383362.26 | J61: -0.8748502836 | K61: 1337650
A62: ='Org structure'!E58 -> 6,1 - Cemetry | C62: 15150 | D62: 5920 | E62: 5920 | F62: 0 | G62: 2520 | H62: 1581256 | I62: -1578736 | J62: -0.9984063302 | K62: 5920
A63: ='Org structure'!E59 -> 6,2 - Library | C63: 1796 | D63: 1331730 | E63: 1331730 | F63: 0 | G63: 195373.74 | I63: 195373.74 | K63: 1331730
A64: ='Org structure'!E60 -> 6,3 - Museum | I64: 0
A65: ='Org structure'!E61 -> 0 | I65: 0
A66: ='Org structure'!E62 -> 0 | I66: 0
A67: ='Org structure'!E63 -> 0 | I67: 0
A68: ='Org structure'!E64 -> 0 | I68: 0
A69: ='Org structure'!E65 -> 0 | I69: 0
A70: ='Org structure'!E66 -> 0 | I70: =G70-H70 -> 0 | J70: =IF(I70=0,"",I70/H70) -> 
A71: ='Org structure'!E67 -> 0 | I71: 0
A72: ='Org structure'!A8 -> Vote 7 - Housing | C72: =SUM(C73:C82) -> 0 | D72: 0 | E72: 0 | F72: 0 | G72: 0 | H72: 0 | I72: 0 | K72: 0
A73: ='Org structure'!E69 -> 7.1 - [Name of sub-vote] | I73: 0
A74: ='Org structure'!E70 -> 0 | I74: 0
A75: ='Org structure'!E71 -> 0 | I75: 0
A76: ='Org structure'!E72 -> 0 | I76: 0
A77: ='Org structure'!E73 -> 0 | I77: 0
A78: ='Org structure'!E74 -> 0 | I78: 0
A79: ='Org structure'!E75 -> 0 | I79: 0
A80: ='Org structure'!E76 -> 0 | I80: 0
A81: ='Org structure'!E77 -> 0 | I81: 0
A82: ='Org structure'!E78 -> 0 | I82: 0
A83: ='Org structure'!A9 -> Vote 8 - Public Safety | C83: =SUM(C84:C93) -> 50 | D83: =SUM(D84:D93) -> 705 | E83: 705 | F83: 0 | G83: 0 | H83: 276 | I83: -276 | J83: -1 | K83: 705
A84: ='Org structure'!E80 -> 8,1 - Fire Service | D84: 0 | E84: 0 | F84: 0 | G84: 0 | H84: 276 | I84: -276 | J84: -1 | K84: 0
A85: ='Org structure'!E81 -> 8,2 - Civil Defence | D85: 0 | E85: 0 | F85: 0 | G85: 0 | I85: 0 | K85: 0
A86: ='Org structure'!E82 -> 8,3 - Pound | C86: 50 | D86: 705 | E86: 705 | F86: 0 | G86: 0 | I86: 0 | K86: 705
A87: ='Org structure'!E83 -> 0 | I87: 0
A88: ='Org structure'!E84 -> 0 | I88: 0
A89: ='Org structure'!E85 -> 0 | I89: 0
A90: ='Org structure'!E86 -> 0 | I90: 0
A91: ='Org structure'!E87 -> 0 | I91: 0
A92: ='Org structure'!E88 -> 0 | I92: 0
A93: ='Org structure'!E89 -> 0 | I93: 0
A94: ='Org structure'!A10 -> Vote 9 - Sport and Recreation | C94: =SUM(C95:C104) -> 45893 | D94: =SUM(D95:D104) -> 17400 | E94: 17400 | F94: 0 | G94: 895 | H94: 227 | I94: 668 | J94: 2.942731278 | K94: 17400
A95: ='Org structure'!E91 -> 9,1 - Nature Reserve | C95: 42222 | D95: 5100 | E95: 5100 | F95: 0 | G95: 0 | H95: 227 | I95: -227 | J95: -1 | K95: 5100
A96: ='Org structure'!E92 -> 9,2 - Parks and Gardens | C96: 330 | D96: 200 | E96: 200 | F96: 0 | G96: 0 | I96: 0 | K96: 200
A97: ='Org structure'!E93 -> 9,3 - Swimming Pool | D97: 9000 | E97: 9000 | F97: 0 | G97: 0 | I97: 0 | K97: 9000
A98: ='Org structure'!E94 -> 9,4 - Caravan Park | C98: 3341 | D98: 3100 | E98: 3100 | F98: 0 | G98: 895 | I98: 895 | K98: 3100
A99: ='Org structure'!E95 -> 0 | I99: 0
A100: ='Org structure'!E96 -> 0 | I100: 0
A101: ='Org structure'!E97 -> 0 | I101: 0
A102: ='Org structure'!E98 -> 0 | I102: 0
A103: ='Org structure'!E99 -> 0 | I103: 0
A104: ='Org structure'!E100 -> 0 | I104: 0
A105: ='Org structure'!A11 -> Vote 10 - Environmental Protection | C105: =SUM(C106:C115) -> 0 | D105: =SUM(D106:D115) -> 0 | E105: 0 | F105: 0 | G105: 0 | H105: 0 | I105: 0 | K105: 0
A106: ='Org structure'!E102 -> 10.1 - [Name of sub-vote] | I106: 0
A107: ='Org structure'!E103 -> 0 | I107: 0
A108: ='Org structure'!E104 -> 0 | I108: 0
A109: ='Org structure'!E105 -> 0 | I109: 0
A110: ='Org structure'!E106 -> 0 | I110: 0
A111: ='Org structure'!E107 -> 0 | I111: 0
A112: ='Org structure'!E108 -> 0 | I112: 0
A113: ='Org structure'!E109 -> 0 | I113: 0
A114: ='Org structure'!E110 -> 0 | I114: 0
A115: ='Org structure'!E111 -> 0 | I115: 0
A116: ='Org structure'!A12 -> Vote 11 - Solid Waste Management | C116: =SUM(C117:C126) -> 3603130 | D116: =SUM(D117:D126) -> 6471770 | E116: 6471770 | F116: 0 | G116: 2135818.8 | H116: 1073818 | I116: 1062000.8 | J116: 0.9889951556 | K116: 6471770
A117: ='Org structure'!E113 -> 11,1 - Refuse removal | C117: 3603130 | D117: 6471770 | E117: 6471770 | F117: 0 | G117: 2135818.8 | H117: 1073818 | I117: 1062000.8 | J117: 0.9889951556 | K117: 6471770
A118: ='Org structure'!E114 -> 0 | I118: 0
A119: ='Org structure'!E115 -> 0 | I119: 0
A120: ='Org structure'!E116 -> 0 | I120: 0
A121: ='Org structure'!E117 -> 0 | I121: 0
A122: ='Org structure'!E118 -> 0 | I122: 0
A123: ='Org structure'!E119 -> 0 | I123: 0
A124: ='Org structure'!E120 -> 0 | I124: 0
A125: ='Org structure'!E121 -> 0 | I125: 0
A126: ='Org structure'!E122 -> 0 | I126: 0
A127: ='Org structure'!A13 -> Vote 12 - Waste Water Management | C127: =SUM(C128:C137) -> 2802900 | D127: =SUM(D128:D137) -> 5505536 | E127: 5505536 | F127: 0 | G127: 2042308.8 | H127: 769083 | I127: 1273225.8 | J127: 1.655511564 | K127: 5505536
A128: ='Org structure'!E124 -> 12,1 - Sewerage | C128: 2802900 | D128: 5505536 | E128: 5505536 | F128: 0 | G128: 2042308.8 | H128: 769083 | I128: 1273225.8 | J128: 1.655511564 | K128: 5505536
A129: ='Org structure'!E125 -> 0 | I129: 0
A130: ='Org structure'!E126 -> 0 | I130: 0
A131: ='Org structure'!E127 -> 0 | I131: 0
A132: ='Org structure'!E128 -> 0 | I132: 0
A133: ='Org structure'!E129 -> 0 | I133: 0
A134: ='Org structure'!E130 -> 0 | I134: =G134-H134 -> 0 | J134: =IF(I134=0,"",I134/H134) -> 
A135: ='Org structure'!E131 -> 0 | I135: 0
A136: ='Org structure'!E132 -> 0 | I136: 0
A137: ='Org structure'!E133 -> 0 | I137: 0
A138: ='Org structure'!A14 -> Vote 13 - Road Transport | C138: =SUM(C139:C148) -> 8550 | D138: =SUM(D139:D148) -> 2000 | E138: 2000 | F138: 60 | G138: 480 | H138: 342 | I138: 138 | J138: 0.4035087719 | K138: 2000
A139: ='Org structure'!E135 -> 13,1 - Main Roads | D139: 0 | E139: 0 | F139: 0 | G139: 0 | H139: 342 | I139: -342 | J139: -1 | K139: 0
A140: ='Org structure'!E136 -> 13,2 - Public Works | C140: 750 | D140: 100 | E140: 100 | F140: 0 | G140: 0 | I140: 0 | K140: 100
A141: ='Org structure'!E137 -> 13,3 - Streets and Pavements | D141: 400 | E141: 400 | F141: 0 | G141: 0 | I141: 0 | K141: 400
A142: ='Org structure'!E138 -> 13,4 - Traffic and licencing | C142: 7800 | D142: 1500 | E142: 1500 | F142: 60 | G142: 480 | I142: 480 | K142: 1500
A143: ='Org structure'!E139 -> 0 | I143: 0
A144: ='Org structure'!E140 -> 0 | I144: 0
A145: ='Org structure'!E141 -> 0 | I145: 0
A146: ='Org structure'!E142 -> 0 | I146: 0
A147: ='Org structure'!E143 -> 0 | I147: 0
A148: ='Org structure'!E144 -> 0 | I148: 0
A149: ='Org structure'!A15 -> Vote 14 - Water | C149: =SUM(C150:C159) -> 4535451 | D149: =SUM(D150:D159) -> 22472063 | E149: 22472063 | F149: 0 | G149: 2251740.57 | H149: 2566401 | I149: -314660.43 | J149: -0.1226076634 | K149: 22472063
A150: ='Org structure'!E146 -> 14,1 - Water Distribution | D150: 0 | E150: 0 | F150: 0 | G150: 0 | H150: 2566401 | I150: -2566401 | J150: -1 | K150: 0
A151: ='Org structure'!E147 -> 14,2 - Water Storage | C151: 4535451 | D151: 22472063 | E151: 22472063 | F151: 0 | G151: 2251740.57 | I151: 2251740.57 | K151: 22472063
A152: ='Org structure'!E148 -> 0 | I152: 0
A153: ='Org structure'!E149 -> 0 | I153: 0
A154: ='Org structure'!E150 -> 0 | I154: 0
A155: ='Org structure'!E151 -> 0 | I155: 0
A156: ='Org structure'!E152 -> 0 | I156: 0
A157: ='Org structure'!E153 -> 0 | I157: 0
A158: ='Org structure'!E154 -> 0 | I158: 0
A159: ='Org structure'!E155 -> 0 | I159: 0
A160: ='Org structure'!A16 -> Vote 15 - Electricity | C160: =SUM(C161:C170) -> 8819088 | D160: =SUM(D161:D170) -> 11576718 | E160: 11576718 | F160: 0 | G160: 2331977.51 | H160: 1893578 | I160: 438399.51 | J160: 0.2315191188 | K160: 11576718
A161: ='Org structure'!E157 -> 15,1 - Electricity Administration | C161: 8819088 | D161: 11576718 | E161: 11576718 | F161: 0 | G161: 2331977.51 | H161: 1893578 | I161: 438399.51 | J161: 0.2315191188 | K161: 11576718
A162: ='Org structure'!E158 -> 15,2 - Electricity Distribution | I162: 0
A163: ='Org structure'!E159 -> 15,3 - Electricity Generation | I163: 0
A164: ='Org structure'!E160 -> 0 | I164: 0
A165: ='Org structure'!E161 -> 0 | I165: 0
A166: ='Org structure'!E162 -> 0 | I166: 0
A167: ='Org structure'!E163 -> 0 | I167: 0
A168: ='Org structure'!E164 -> 0 | I168: 0
A169: ='Org structure'!E165 -> 0 | I169: 0
A170: ='Org structure'!E166 -> 0 | I170: 0 | L170: =SUM(L78:L81) -> 0 | M170: 0 | N170: 0 | O170: 0 | P170: 0 | Q170: 0 | R170: 0 | S170: 0 | T170: 0 | U170: 0 | V170: 0 | W170: 0
A171: Total Revenue by Vote | B171: 2 | C171: =C6+C17+C28+C39+C50+C61+C72+C83+C94+C105+C116+C127+C138+C149+C160 -> 58302510 | D171: =D6+D17+D28+D39+D50+D61+D72+D83+D94+D105+D116+D127+D138+D149+D160 -> 83817771 | E171: 83817771 | F171: 60 | G171: 16765620.94 | H171: 20950424 | I171: -4184803.06 | J171: -0.1997478934 | K171: 83817771
I172: 0
A173: Expenditure by Vote | B173: 1 | I173: 0
A174: ='Org structure'!A2 -> Vote 1 - Executive and Council | C174: =SUM(C175:C184) -> 20097428 | D174: 19968856 | E174: 19968856 | F174: 0 | G174: 3504322.16 | H174: 4306058 | I174: -801735.84 | J174: -0.1861878869 | K174: 19968856
A175: ='Org structure'!E3 -> 1,1 - Executive and Council | C175: 20097428 | D175: 19968856 | E175: 19968856 | F175: 0 | G175: 3504322.16 | H175: 4306058 | I175: -801735.84 | J175: -0.1861878869 | K175: 19968856
A176: ='Org structure'!E4 -> 0 | I176: 0
A177: ='Org structure'!E5 -> 0 | I177: 0
A178: ='Org structure'!E6 -> 0 | I178: 0
A179: ='Org structure'!E7 -> 0 | I179: 0
A180: ='Org structure'!E8 -> 0 | I180: 0
A181: ='Org structure'!E9 -> 0 | I181: 0
A182: ='Org structure'!E10 -> 0 | I182: 0
A183: ='Org structure'!E11 -> 0 | I183: 0
A184: ='Org structure'!E12 -> 0 | I184: 0
A185: ='Org structure'!A3 -> Vote 2 - Budget and Treasury | C185: =SUM(C186:C195) -> 8720315 | D185: =SUM(D186:D195) -> 10879776 | E185: =SUM(E186:E195) -> 10879776 | F185: 12.1 | G185: 749086.59 | H185: 1026775 | I185: -277688.41 | J185: -0.2704471866 | K185: 10879776
A186: ='Org structure'!E14 -> 2,1 - Official Housing | C186: 1221 | D186: 4833 | E186: 4833 | F186: 12.1 | G186: 220.1 | H186: 1026775 | I186: -1026554.9 | J186: -0.9997856395 | K186: 4833
A187: ='Org structure'!E15 -> 2,2 - Rates | D187: 0 | E187: 0 | F187: 0 | G187: 0 | I187: 0 | K187: 0
A188: ='Org structure'!E16 -> 2,3 - Commonage | C188: 78911 | D188: 108866 | E188: 108866 | F188: 0 | G188: 8540.19 | I188: 8540.19 | K188: 108866
A189: ='Org structure'!E17 -> 2,4 - Municipal Buildings | C189: 292638 | D189: 290466 | E189: 290466 | F189: 0 | G189: 33615.22 | I189: 33615.22 | K189: 290466
A190: ='Org structure'!E18 -> 2,5 - Budget and Treasury Office | C190: 8293844 | D190: 10408923 | E190: 10408923 | F190: 0 | G190: 691082.89 | I190: 691082.89 | K190: 10408923
A191: ='Org structure'!E19 -> 2,6 - Airport | C191: 53683 | D191: 66148 | E191: 66148 | F191: 0 | G191: 15602.19 | I191: 15602.19 | K191: 66148
A192: ='Org structure'!E20 -> 2,6 - Airport | C192: 18 | D192: 540 | E192: 540 | F192: 0 | G192: 26 | I192: 26 | K192: 540
A193: ='Org structure'!E21 -> 0 | I193: 0
A194: ='Org structure'!E22 -> 0 | I194: 0
A195: ='Org structure'!E23 -> 0 | I195: 0
A196: ='Org structure'!A4 -> Vote 3 - Corporate Services | C196: =SUM(C197:C206) -> 2399286 | D196: 3132978 | E196: 3132978 | F196: 0 | G196: 370340.61 | H196: 344837 | I196: 25503.61 | J196: 0.07395844993 | K196: 3132978
A197: ='Org structure'!E25 -> 3,1 - Corporate Services | C197: 2399286 | D197: 3132978 | E197: 3132978 | F197: 0 | G197: 370340.61 | H197: 344837 | I197: 25503.61 | J197: 0.07395844993 | K197: 3132978
A198: ='Org structure'!E26 -> 0 | I198: =G198-H198 -> 0 | J198: =IF(I198=0,"",I198/H198) -> 
A199: ='Org structure'!E27 -> 0 | I199: 0
A200: ='Org structure'!E28 -> 0 | I200: 0
... 147 more rows

Sheet C4-FinPerf RE
A1: =muni& " - "&S71B& " - "&date -> NC074 Kareeberg - Table C4 Monthly Budget Statement - Financial Performance (revenue and expenditure) - M06 December
A2: =desc -> Description | B2: =head27 -> Ref | C2: =Head1 -> 2015/16 | D2: =Head2 -> Budget Year 2016/17
C3: =Head5 -> Audited Outcome | D3: =Head6 -> Original Budget | E3: =Head7 -> Adjusted Budget | F3: =Head38 -> Monthly actual | G3: =Head39 -> YearTD actual | H3: =Head40 -> YearTD budget | I3: =Head41 -> YTD variance | J3: =Head41 -> YTD variance | K3: =Head8 -> Full Year Forecast
A4: R thousands | J4: %
A5: Revenue By Source
A6: Property rates | C6: 4438366 | D6: 4677665 | E6: 4677665 | F6: 0 | G6: 4681129.12 | H6: 4677665 | I6: =G6-H6 -> 3464.12 | J6: =IF(I6=0,"",I6/H6) -> 0.000740566073 | K6: 4677665
A7: Property rates - penalties & collection charges | C7: 195058 | D7: 190000 | E7: 190000 | F7: 0 | G7: 25668.76 | H7: 26258 | I7: -589.24 | J7: -0.02244039912 | K7: 190000
A8: Service charges - electricity revenue | C8: 8818988 | D8: 9373717 | E8: 9373717 | F8: 0 | G8: 1646645.51 | H8: 1472622 | I8: 174023.51 | J8: 0.1181725589 | K8: 9373717
A9: Service charges - water revenue | C9: 4535391 | D9: 4826367 | E9: 4826367 | F9: 0 | G9: 743079.57 | H9: 758228 | I9: -15148.43 | J9: -0.01997872672 | K9: 4826367
A10: Service charges - sanitation revenue | C10: 2802900 | D10: 2796618 | E10: 2796618 | F10: 0 | G10: 498225.8 | H10: 439351 | I10: 58874.8 | J10: 0.1340040196 | K10: 2796618
A11: Service charges - refuse revenue | C11: 3601057 | D11: 3854488 | E11: 3854488 | F11: 0 | G11: 644191.8 | H11: 605544 | I11: 38647.8 | J11: 0.06382327296 | K11: 3854488
A12: Service charges - other | D12: 0 | E12: 0 | F12: 0 | G12: 0 | H12: 0 | I12: 0 | K12: 0
A13: Rental of facilities and equipment | C13: 327129 | D13: 304577 | E13: 304577 | F13: 0 | G13: 170157.66 | H13: 48299.66698 | I13: 121857.993 | J13: 2.52295721 | K13: 304577
A14: Interest earned - external investments | C14: 1808471 | D14: 1297000 | E14: 1297000 | F14: 0 | G14: 81833.1 | H14: 154815 | I14: -72981.9 | J14: -0.4714136227 | K14: 1297000
A15: Interest earned - outstanding debtors | C15: 2221 | D15: 3300 | E15: 3300 | F15: 0 | G15: 332.89 | H15: 524 | I15: -191.11 | J15: -0.3647137405 | K15: 3300
A16: Dividends received | D16: 0 | E16: 0 | F16: 0 | G16: 0 | H16: 0 | I16: 0 | K16: 0
A17: Fines | C17: 14895 | D17: 12230 | E17: 12230 | F17: 0 | G17: 1468 | H17: 948 | I17: 520 | J17: 0.5485232068 | K17: 12230
A18: Licences and permits | C18: 12105 | D18: 7420 | E18: 7420 | F18: 0 | G18: 4377 | H18: 561.0764818 | I18: 3815.923518 | J18: 6.801075507 | K18: 7420
A19: Agency services | C19: 178420 | D19: 103333 | E19: 103333 | F19: 0 | G19: 44236.19 | H19: 11568.57751 | I19: 32667.61249 | J19: 2.823822761 | K19: 103333
A20: Transfers recognised - operational | C20: 22742216 | D20: 23074998 | E20: 23074998 | F20: 0 | G20: 8151395.74 | H20: 7920250 | I20: 231145.74 | J20: 0.02918414697 | K20: 23074998
A21: Other revenue | C21: 1420819 | D21: 9627058 | E21: 9627058 | F21: 0 | G21: 13686.8 | H21: 629750.3 | I21: -616063.5 | J21: -0.9782663065 | K21: 9627058
A22: Gains on disposal of PPE | D22: 0 | E22: 0 | F22: 0 | G22: 0 | H22: 0 | I22: 0 | K22: 0
A23: Total Revenue (excluding capital transfers and contributions) | C23: =SUM(C6:C22) -> 50898036 | D23: 60148771 | E23: 60148771 | F23: 0 | G23: 16706427.94 | H23: 16746384.62 | I23: -39956.68097 | J23: -0.002385988491 | K23: =SUM(K6:K22) -> 60148771
A25: Expenditure By Type
A26: Employee related costs | C26: 17101451 | D26: 21001756 | E26: 21001756 | F26: 0 | G26: 2519103.04 | H26: 3280627 | I26: =G26-H26 -> -761523.96 | J26: =IF(I26=0,"",I26/H26) -> -0.2321275659 | K26: 21001756
A27: Remuneration of councillors | C27: 2129257 | D27: 2499391 | E27: 2499391 | F27: 0 | G27: 343802.9 | H27: 394846 | I27: -51043.1 | J27: -0.1292734383 | K27: 2499391
A28: Debt impairment | C28: 228859 | D28: 2558767 | E28: 2558767 | F28: 0 | G28: 0 | H28: 0 | I28: 0 | K28: 2558767
A29: Depreciation & asset impairment | C29: 3415871 | D29: 3681354 | E29: 3681354 | F29: 0 | G29: 0 | H29: 0 | I29: 0 | K29: 3681354
A30: Finance charges | C30: 1989338 | D30: 1073129 | E30: 1073129 | F30: 0 | G30: 0 | H30: 0 | I30: 0 | K30: 1073129
A31: Bulk purchases | C31: 8627114 | D31: 10675944 | E31: 10675944 | F31: 0 | G31: 1902842.7 | H31: 2432874 | I31: -530031.3 | J31: -0.2178622074 | K31: 10675944
A32: Other materials | C32: 929948 | D32: 803132 | E32: 803132 | F32: 0 | G32: 24714.73 | H32: 103235 | I32: -78520.27 | J32: -0.7605973749 | K32: 803132
A33: Contracted services | C33: 1100434 | D33: 1968218 | E33: 1968218 | F33: 0 | G33: 186221.87 | H33: 252996 | I33: -66774.13 | J33: -0.2639335405 | K33: 1968218
A34: Transfers and grants | C34: 8975821 | D34: 9191274 | E34: 9191274 | F34: 0 | G34: 1775737.83 | H34: 2462818 | I34: -687080.17 | J34: -0.2789813011 | K34: 9191274
A35: Other expenditure | C35: 9331845 | D35: 8493805 | E35: 8493805 | F35: 0 | G35: 1176288.19 | H35: 617739 | I35: 558549.19 | J35: 0.9041831421 | K35: 8493805
A36: Loss on disposal of PPE | C36: 1809 | D36: 2000 | E36: 2000 | F36: 0 | G36: 0 | H36: 0 | I36: 0 | K36: 2000
A37: Total Expenditure | C37: =SUM(C26:C36) -> 53831747 | D37: =SUM(D26:D36) -> 61948770 | E37: =SUM(E26:E36) -> 61948770 | F37: 0 | G37: 7928711.26 | H37: 9545135 | I37: -1616423.74 | J37: -0.1693452989 | K37: 61948770
A39: Surplus/(Deficit) | C39: =C23-C37 -> -2933711 | D39: -1799999 | E39: -1799999 | F39: 0 | G39: 8777716.68 | H39: 7201249.621 | I39: =I23-I37 -> 1576467.059 | J39: 0.2189157635 | K39: =K23-K37 -> -1799999
A40: Transfers recognised - capital | C40: 7042151 | D40: 23669000 | E40: 23669000 | F40: 0 | G40: 59193 | H40: 6334500 | I40: =G40-H40 -> -6275307 | J40: -0.9906554582 | K40: 23669000
A41: Contributions recognised - capital | D41: 0 | E41: 0 | F41: 0 | G41: 0 | I41: =G41-H41 -> 0 | K41: 0
A42: Contributed assets | C42: 362323 | D42: 0 | E42: 0 | F42: 0 | G42: 0 | I42: =G42-H42 -> 0 | K42: 0
A43: Surplus/(Deficit) after capital transfers & contributions | C43: =C39+SUM(C40:C42) -> 4470763 | D43: 21869001 | E43: 21869001 | F43: 0 | G43: 8836909.68 | H43: 13535749.62 | K43: =K39+SUM(K40:K42) -> 21869001
A44: Taxation | I44: =G44-H44 -> 0 | J44: =IF(I44=0,"",I44/H44) -> 
A45: Surplus/(Deficit) after taxation | C45: =C43-C44 -> 4470763 | D45: 21869001 | E45: 21869001 | F45: 0 | G45: 8836909.68 | H45: 13535749.62 | K45: =K43-K44 -> 21869001
A46: Attributable to minorities
A47: Surplus/(Deficit) attributable to municipality | C47: =SUM(C45:C46) -> 4470763 | D47: 21869001 | E47: 21869001 | F47: 0 | G47: 8836909.68 | H47: 13535749.62 | K47: =SUM(K45:K46) -> 21869001
A48: Share of surplus/ (deficit) of associate
A49: Surplus/ (Deficit) for the year | C49: =C47+C48 -> 4470763 | D49: 21869001 | E49: 21869001 | F49: 0 | G49: 8836909.68 | H49: 13535749.62 | K49: =K47+K48 -> 21869001
A50: =head27a -> References
A51: 1. Material variances to be explained on Table SC1
A54: =A23&" including capital transfers/contributions etc" -> Total Revenue (excluding capital transfers and contributions) including capital transfers/contributions etc | C54: =C23+SUM(C40:C42) -> 58302510 | D54: 83817771 | E54: 83817771 | F54: 0 | G54: 16765620.94 | H54: 23080884.62 | K54: =K23+SUM(K40:K42) -> 83817771

Sheet C5-Capex
A1: =muni& " - "&S71D& " - "&date -> NC074 Kareeberg - Table C5 Monthly Budget Statement - Capital Expenditure (municipal vote, standard classification and funding) - M06 December
A2: =Vdesc -> Vote Description | B2: =head27 -> Ref | C2: =Head1 -> 2015/16 | D2: =Head2 -> Budget Year 2016/17
C3: =Head5 -> Audited Outcome | D3: =Head6 -> Original Budget | E3: =Head7 -> Adjusted Budget | F3: =Head38 -> Monthly actual | G3: =Head39 -> YearTD actual | H3: =Head40 -> YearTD budget | I3: =Head41 -> YTD variance | J3: =Head41 -> YTD variance | K3: =Head8 -> Full Year Forecast
A4: R thousands | B4: 1 | J4: %
A5: Multi-Year expenditure appropriation | B5: 2
A6: ='Org structure'!A2 -> Vote 1 - Executive and Council | C6: ='C5C'!C7 -> 0 | D6: ='C5C'!D7 -> 0 | E6: ='C5C'!E7 -> 0 | F6: ='C5C'!F7 -> 0 | G6: ='C5C'!G7 -> 0 | H6: ='C5C'!H7 -> 0 | I6: =G6-H6 -> 0 | J6: =IF(I6=0,"",I6/H6) ->  | K6: ='C5C'!K7 -> 0
A7: ='Org structure'!A3 -> Vote 2 - Budget and Treasury | C7: ='C5C'!C18 -> 0 | D7: ='C5C'!D18 -> 0 | E7: ='C5C'!E18 -> 0 | F7: ='C5C'!F18 -> 0 | G7: ='C5C'!G18 -> 0 | H7: ='C5C'!H18 -> 0 | I7: =G7-H7 -> 0 | J7: =IF(I7=0,"",I7/H7) ->  | K7: ='C5C'!K18 -> 0
A8: ='Org structure'!A4 -> Vote 3 - Corporate Services | C8: ='C5C'!C29 -> 0 | D8: ='C5C'!D29 -> 0 | E8: ='C5C'!E29 -> 0 | F8: ='C5C'!F29 -> 0 | G8: ='C5C'!G29 -> 0 | H8: ='C5C'!H29 -> 0 | I8: =G8-H8 -> 0 | J8: =IF(I8=0,"",I8/H8) ->  | K8: ='C5C'!K29 -> 0
A9: ='Org structure'!A5 -> Vote 4 - Planning and Development | C9: ='C5C'!C40 -> 0 | D9: ='C5C'!D40 -> 0 | E9: ='C5C'!E40 -> 0 | F9: ='C5C'!F40 -> 0 | G9: ='C5C'!G40 -> 0 | H9: ='C5C'!H40 -> 0 | I9: 0 | K9: ='C5C'!K40 -> 0
A10: ='Org structure'!A6 -> Vote 5 - Health | C10: ='C5C'!C51 -> 0 | D10: ='C5C'!D51 -> 0 | E10: ='C5C'!E51 -> 0 | F10: ='C5C'!F51 -> 0 | G10: ='C5C'!G51 -> 0 | H10: ='C5C'!H51 -> 0 | I10: 0 | K10: ='C5C'!K51 -> 0
A11: ='Org structure'!A7 -> Vote 6 - Community and Social Services | C11: ='C5C'!C62 -> 0 | D11: ='C5C'!D62 -> 0 | E11: ='C5C'!E62 -> 0 | F11: ='C5C'!F62 -> 0 | G11: ='C5C'!G62 -> 0 | H11: ='C5C'!H62 -> 0 | I11: 0 | K11: ='C5C'!K62 -> 0
A12: ='Org structure'!A8 -> Vote 7 - Housing | C12: ='C5C'!C73 -> 0 | D12: ='C5C'!D73 -> 0 | E12: ='C5C'!E73 -> 0 | F12: ='C5C'!F73 -> 0 | G12: ='C5C'!G73 -> 0 | H12: ='C5C'!H73 -> 0 | I12: 0 | K12: ='C5C'!K73 -> 0
A13: ='Org structure'!A9 -> Vote 8 - Public Safety | C13: ='C5C'!C84 -> 0 | D13: ='C5C'!D84 -> 0 | E13: ='C5C'!E84 -> 0 | F13: ='C5C'!F84 -> 0 | G13: ='C5C'!G84 -> 0 | H13: ='C5C'!H84 -> 0 | I13: 0 | K13: ='C5C'!K84 -> 0
A14: ='Org structure'!A10 -> Vote 9 - Sport and Recreation | C14: ='C5C'!C95 -> 0 | D14: ='C5C'!D95 -> 0 | E14: ='C5C'!E95 -> 0 | F14: ='C5C'!F95 -> 0 | G14: ='C5C'!G95 -> 0 | H14: ='C5C'!H95 -> 0 | I14: 0 | K14: ='C5C'!K95 -> 0
A15: ='Org structure'!A11 -> Vote 10 - Environmental Protection | C15: ='C5C'!C106 -> 0 | D15: ='C5C'!D106 -> 0 | E15: ='C5C'!E106 -> 0 | F15: ='C5C'!F106 -> 0 | G15: ='C5C'!G106 -> 0 | H15: ='C5C'!H106 -> 0 | I15: 0 | K15: ='C5C'!K106 -> 0
A16: ='Org structure'!A12 -> Vote 11 - Solid Waste Management | C16: ='C5C'!C117 -> 0 | D16: ='C5C'!D117 -> 0 | E16: ='C5C'!E117 -> 0 | F16: ='C5C'!F117 -> 0 | G16: ='C5C'!G117 -> 0 | H16: ='C5C'!H117 -> 0 | I16: 0 | K16: ='C5C'!K117 -> 0
A17: ='Org structure'!A13 -> Vote 12 - Waste Water Management | C17: ='C5C'!C128 -> 0 | D17: ='C5C'!D128 -> 0 | E17: ='C5C'!E128 -> 0 | F17: ='C5C'!F128 -> 0 | G17: ='C5C'!G128 -> 0 | H17: ='C5C'!H128 -> 0 | I17: 0 | K17: ='C5C'!K128 -> 0
A18: ='Org structure'!A14 -> Vote 13 - Road Transport | C18: ='C5C'!C139 -> 0 | D18: ='C5C'!D139 -> 0 | E18: ='C5C'!E139 -> 0 | F18: ='C5C'!F139 -> 0 | G18: ='C5C'!G139 -> 0 | H18: ='C5C'!H139 -> 0 | I18: =G18-H18 -> 0 | J18: =IF(I18=0,"",I18/H18) ->  | K18: ='C5C'!K139 -> 0
A19: ='Org structure'!A15 -> Vote 14 - Water | C19: ='C5C'!C150 -> 0 | D19: ='C5C'!D150 -> 15000000 | E19: ='C5C'!E150 -> 15000000 | F19: ='C5C'!F150 -> 0 | G19: ='C5C'!G150 -> 0 | H19: ='C5C'!H150 -> 1500000 | I19: =G19-H19 -> -1500000 | J19: =IF(I19=0,"",I19/H19) -> -1 | K19: ='C5C'!K150 -> 15000000
A20: ='Org structure'!A16 -> Vote 15 - Electricity | C20: ='C5C'!C161 -> 0 | D20: ='C5C'!D161 -> 0 | E20: ='C5C'!E161 -> 0 | F20: ='C5C'!F161 -> 0 | G20: ='C5C'!G161 -> 0 | H20: ='C5C'!H161 -> 0 | I20: =G20-H20 -> 0 | J20: =IF(I20=0,"",I20/H20) ->  | K20: ='C5C'!K161 -> 0
A21: Total Capital Multi-year expenditure | B21: 4,7 | C21: =SUM(C6:C20) -> 0 | D21: =SUM(D6:D20) -> 15000000 | E21: 15000000 | F21: 0 | G21: 0 | H21: 1500000 | I21: -1500000 | J21: =IF(I21=0,"",I21/H21) -> -1 | K21: =SUM(K6:K20) -> 15000000
A23: Single Year expenditure appropriation | B23: 2
A24: ='Org structure'!A2 -> Vote 1 - Executive and Council | C24: ='C5C'!C176 -> 184497 | D24: ='C5C'!D176 -> 0 | E24: ='C5C'!E176 -> 0 | F24: ='C5C'!F176 -> 0 | G24: ='C5C'!G176 -> 0 | H24: ='C5C'!H176 -> 0 | I24: ='C5C'!I176 -> 0 | J24: =IF(I24=0,"",I24/H24) ->  | K24: ='C5C'!K176 -> 0
A25: ='Org structure'!A3 -> Vote 2 - Budget and Treasury | C25: ='C5C'!C187 -> 52681 | D25: ='C5C'!D187 -> 0 | E25: ='C5C'!E187 -> 0 | F25: ='C5C'!F187 -> 0 | G25: ='C5C'!G187 -> 0 | H25: ='C5C'!H187 -> 0 | I25: ='C5C'!I187 -> 0 | J25: =IF(I25=0,"",I25/H25) ->  | K25: ='C5C'!K187 -> 0
A26: ='Org structure'!A4 -> Vote 3 - Corporate Services | C26: ='C5C'!C198 -> 0 | D26: ='C5C'!D198 -> 0 | E26: ='C5C'!E198 -> 0 | F26: ='C5C'!F198 -> 0 | G26: ='C5C'!G198 -> 0 | H26: ='C5C'!H198 -> 0 | I26: ='C5C'!I198 -> 0 | K26: ='C5C'!K198 -> 0
A27: ='Org structure'!A5 -> Vote 4 - Planning and Development | C27: ='C5C'!C209 -> 0 | D27: ='C5C'!D209 -> 0 | E27: ='C5C'!E209 -> 0 | F27: ='C5C'!F209 -> 0 | G27: ='C5C'!G209 -> 0 | H27: ='C5C'!H209 -> 0 | I27: ='C5C'!I209 -> 0 | K27: ='C5C'!K209 -> 0
A28: ='Org structure'!A6 -> Vote 5 - Health | C28: ='C5C'!C220 -> 0 | D28: ='C5C'!D220 -> 0 | E28: ='C5C'!E220 -> 0 | F28: ='C5C'!F220 -> 0 | G28: ='C5C'!G220 -> 0 | H28: ='C5C'!H220 -> 0 | I28: ='C5C'!I220 -> 0 | K28: ='C5C'!K220 -> 0
A29: ='Org structure'!A7 -> Vote 6 - Community and Social Services | C29: ='C5C'!C231 -> 322744 | D29: ='C5C'!D231 -> 0 | E29: ='C5C'!E231 -> 0 | F29: ='C5C'!F231 -> 0 | G29: ='C5C'!G231 -> 0 | H29: ='C5C'!H231 -> 0 | I29: ='C5C'!I231 -> 0 | K29: ='C5C'!K231 -> 0
A30: ='Org structure'!A8 -> Vote 7 - Housing | C30: ='C5C'!C242 -> 0 | D30: ='C5C'!D242 -> 0 | E30: ='C5C'!E242 -> 0 | F30: ='C5C'!F242 -> 0 | G30: ='C5C'!G242 -> 0 | H30: ='C5C'!H242 -> 0 | I30: ='C5C'!I242 -> 0 | K30: ='C5C'!K242 -> 0
A31: ='Org structure'!A9 -> Vote 8 - Public Safety | C31: ='C5C'!C253 -> 0 | D31: ='C5C'!D253 -> 0 | E31: ='C5C'!E253 -> 0 | F31: ='C5C'!F253 -> 0 | G31: ='C5C'!G253 -> 0 | H31: ='C5C'!H253 -> 0 | I31: ='C5C'!I253 -> 0 | K31: ='C5C'!K253 -> 0
A32: ='Org structure'!A10 -> Vote 9 - Sport and Recreation | C32: ='C5C'!C264 -> 3990922 | D32: ='C5C'!D264 -> 1242000 | E32: ='C5C'!E264 -> 1242000 | F32: ='C5C'!F264 -> 0 | G32: ='C5C'!G264 -> 21179 | H32: ='C5C'!H264 -> 1242000 | I32: ='C5C'!I264 -> -1220821 | J32: -0.9829476651 | K32: ='C5C'!K264 -> 1242000
A33: ='Org structure'!A11 -> Vote 10 - Environmental Protection | C33: ='C5C'!C275 -> 0 | D33: ='C5C'!D275 -> 0 | E33: ='C5C'!E275 -> 0 | F33: ='C5C'!F275 -> 0 | G33: ='C5C'!G275 -> 0 | H33: ='C5C'!H275 -> 0 | I33: ='C5C'!I275 -> 0 | K33: ='C5C'!K275 -> 0
A34: ='Org structure'!A12 -> Vote 11 - Solid Waste Management | C34: ='C5C'!C286 -> 568 | D34: ='C5C'!D286 -> 0 | E34: ='C5C'!E286 -> 0 | F34: ='C5C'!F286 -> 0 | G34: ='C5C'!G286 -> 0 | H34: ='C5C'!H286 -> 0 | I34: ='C5C'!I286 -> 0 | K34: ='C5C'!K286 -> 0
A35: ='Org structure'!A13 -> Vote 12 - Waste Water Management | C35: ='C5C'!C297 -> 8836 | D35: ='C5C'!D297 -> 2277000 | E35: ='C5C'!E297 -> 2277000 | F35: ='C5C'!F297 -> 0 | G35: ='C5C'!G297 -> 0 | H35: ='C5C'!H297 -> 0 | I35: ='C5C'!I297 -> 0 | K35: ='C5C'!K297 -> 2277000
A36: ='Org structure'!A14 -> Vote 13 - Road Transport | C36: ='C5C'!C308 -> 1445752 | D36: ='C5C'!D308 -> 4150000 | E36: ='C5C'!E308 -> 4150000 | F36: ='C5C'!F308 -> 0 | G36: ='C5C'!G308 -> 38014 | H36: ='C5C'!H308 -> 0 | I36: ='C5C'!I308 -> 38014 | K36: ='C5C'!K308 -> 4150000
A37: ='Org structure'!A15 -> Vote 14 - Water | C37: ='C5C'!C319 -> 1469563 | D37: ='C5C'!D319 -> 0 | E37: ='C5C'!E319 -> 0 | F37: ='C5C'!F319 -> 0 | G37: ='C5C'!G319 -> 0 | H37: ='C5C'!H319 -> 0 | I37: ='C5C'!I319 -> 0 | K37: ='C5C'!K319 -> 0
A38: ='Org structure'!A16 -> Vote 15 - Electricity | C38: ='C5C'!C330 -> 0 | D38: ='C5C'!D330 -> 1000000 | E38: ='C5C'!E330 -> 1000000 | F38: ='C5C'!F330 -> 0 | G38: ='C5C'!G330 -> 0 | H38: ='C5C'!H330 -> 0 | I38: ='C5C'!I330 -> 0 | K38: ='C5C'!K330 -> 1000000
A39: Total Capital single-year expenditure | B39: 4 | C39: =SUM(C24:C38) -> 7475563 | D39: 8669000 | E39: 8669000 | F39: 0 | G39: 59193 | H39: 1242000 | I39: -1182807 | J39: -0.9523405797 | K39: =SUM(K24:K38) -> 8669000
A40: Total Capital Expenditure | C40: =C39+C21 -> 7475563 | D40: 23669000 | E40: 23669000 | F40: 0 | G40: 59193 | H40: 2742000 | I40: -2682807 | J40: =IF(I40=0,"",I40/H40) -> -0.9784124726 | K40: =K39+K21 -> 23669000
A42: Capital Expenditure - Standard Classification
A43: ='C2-FinPerf SC'!A29 -> Governance and administration | C43: =SUM(C44:C46) -> 237178 | D43: 0 | E43: 0 | F43: 0 | G43: 0 | H43: 0 | I43: =G43-H43 -> 0 | J43: =IF(I43=0,"",I43/H43) ->  | K43: =SUM(K44:K46) -> 0
A44: ='C2-FinPerf SC'!A30 -> Executive and council | C44: 184497 | I44: 0 | J44: =IF(I44=0,"",I44/H44) -> 
A45: ='C2-FinPerf SC'!A31 -> Budget and treasury office | C45: 52681 | I45: 0
A46: ='C2-FinPerf SC'!A32 -> Corporate services | I46: 0
A47: ='C2-FinPerf SC'!A33 -> Community and public safety | C47: =SUM(C48:C52) -> 4313666 | D47: 1242000 | E47: 1242000 | F47: 0 | G47: 21179 | H47: 1242000 | I47: -1220821 | J47: -0.9829476651 | K47: =SUM(K48:K52) -> 1242000
A48: ='C2-FinPerf SC'!A34 -> Community and social services | C48: 322744 | D48: 0 | E48: 0 | I48: 0
A49: ='C2-FinPerf SC'!A35 -> Sport and recreation | C49: 3990922 | D49: 1242000 | E49: 1242000 | F49: 0 | G49: 21179 | H49: 1242000 | I49: -1220821 | J49: -0.9829476651 | K49: 1242000
A50: ='C2-FinPerf SC'!A36 -> Public safety | I50: 0
A51: ='C2-FinPerf SC'!A37 -> Housing | I51: 0
A52: ='C2-FinPerf SC'!A38 -> Health | I52: 0
A53: ='C2-FinPerf SC'!A39 -> Economic and environmental services | C53: =SUM(C54:C56) -> 1445752 | D53: 4150000 | E53: 4150000 | F53: 0 | G53: 38014 | H53: 0 | I53: 38014 | K53: =SUM(K54:K56) -> 4150000
A54: ='C2-FinPerf SC'!A40 -> Planning and development | I54: 0
A55: ='C2-FinPerf SC'!A41 -> Road transport | C55: 1445752 | D55: 4150000 | E55: 4150000 | F55: 0 | G55: 38014 | I55: 38014 | K55: 4150000
A56: ='C2-FinPerf SC'!A42 -> Environmental protection | I56: 0
A57: ='C2-FinPerf SC'!A43 -> Trading services | C57: =SUM(C58:C61) -> 1478967 | D57: 18277000 | E57: 18277000 | F57: 0 | G57: 0 | H57: 1500000 | I57: -1500000 | J57: -1 | K57: =SUM(K58:K61) -> 18277000
A58: ='C2-FinPerf SC'!A44 -> Electricity | D58: 1000000 | E58: 1000000 | I58: 0 | K58: 1000000
A59: ='C2-FinPerf SC'!A45 -> Water | C59: 1469563 | D59: 15000000 | E59: 15000000 | H59: 1500000 | I59: -1500000 | J59: -1 | K59: 15000000
A60: ='C2-FinPerf SC'!A46 -> Waste water management | C60: 8836 | D60: 2277000 | E60: 2277000 | I60: 0 | K60: 2277000
A61: ='C2-FinPerf SC'!A47 -> Waste management | C61: 568 | D61: 0 | I61: 0
A62: ='C2-FinPerf SC'!A48 -> Other | I62: 0
A63: Total Capital Expenditure - Standard Classification | B63: 3 | C63: =C43+C47+C53+C57+C62 -> 7475563 | D63: =D43+D47+D53+D57+D62 -> 23669000 | E63: 23669000 | F63: 0 | G63: 59193 | H63: 2742000 | I63: -2682807 | J63: -0.9784124726 | K63: =K43+K47+K53+K57+K62 -> 23669000
A65: Funded by:
A66: National Government | C66: 6822975 | D66: 23669000 | E66: 23669000 | F66: 0 | G66: 59193 | H66: 2742000 | I66: =G66-H66 -> -2682807 | J66: =IF(I66=0,"",I66/H66) -> -0.9784124726 | K66: 23669000
A67: Provincial Government | C67: 581499 | D67: 0 | E67: 0 | F67: 0 | I67: 0
A68: District Municipality | I68: 0
A69: Other transfers and grants | I69: 0
A70: Transfers recognised - capital | C70: =SUM(C66:C69) -> 7404474 | D70: 23669000 | E70: 23669000 | F70: 0 | G70: 59193 | H70: 2742000 | I70: -2682807 | J70: -0.9784124726 | K70: =SUM(K66:K69) -> 23669000
A71: Public contributions & donations | B71: 5 | I71: 0
A72: Borrowing | B72: 6 | I72: 0
A73: Internally generated funds | C73: 71089 | I73: 0
A74: Total Capital Funding | C74: =SUM(C70:C73) -> 7475563 | D74: 23669000 | E74: 23669000 | F74: =SUM(F70:F73) -> 0 | G74: =SUM(G70:G73) -> 59193 | H74: =SUM(H70:H73) -> 2742000 | I74: -2682807 | J74: -0.9784124726 | K74: 23669000
A75: =head27a -> References
A76: 1. Municipalities may choose to appropriate for capital expenditure for three years or for one year (if one year appropriation projected expenditure required for yr2 and yr3).
A77: 2. Include capital component of PPP unitary payment
A78: 3. Capital expenditure by standard classification must reconcile to the total of multi-year and single year appropriations
A79: 4. Include expenditure on investment property, intangible and biological assets
A80: 5. Must reconcile to Monthly Budget Statement Financial Performance (revenue and expenditure)
A81: 6. Include finance leases and PPP capital funding component of unitary payment - total borrowing/repayments to reconcile to changes in Table SA17
A86: check balance | C86: =C40-C74 -> 0 | D86: =D40-D74 -> 0 | E86: 0 | F86: 0 | G86: 0 | H86: 0 | K86: 0

Sheet C5C
A1: =muni& " - "&S71D& " - "&"A"& " - "&date -> NC074 Kareeberg - Table C5 Monthly Budget Statement - Capital Expenditure (municipal vote, standard classification and funding) - A - M06 December
A2: =Vdesc -> Vote Description | B2: =head27 -> Ref | C2: =Head1 -> 2015/16 | D2: =Head2 -> Budget Year 2016/17 | L2: =Head4 -> 
A3: R thousand | C3: =Head5 -> Audited Outcome | D3: =Head6 -> Original Budget | E3: =Head7 -> Adjusted Budget | F3: =Head38 -> Monthly actual | G3: =Head39 -> YearTD actual | H3: =Head40 -> YearTD budget | I3: =Head41 -> YTD variance | J3: =Head41 -> YTD variance | K3: =Head8 -> Full Year Forecast | L3: =Head12 -> Forecast 2010/11 | M3: =Head13 -> Forecast 2011/12 | N3: =Head14 -> Forecast 2012/13 | O3: =Head15 -> Forecast 2013/14 | P3: =Head16 -> Forecast 2014/15 | Q3: =Head17 -> Forecast 2015/16 | R3: =Head18 -> Forecast 2016/17 | S3: =Head19 -> Forecast 2017/18 | T3: =Head20 -> Forecast 2018/19 | U3: =Head21 -> Forecast 2019/20 | V3: =Head22 -> Forecast 2020/21 | W3: =Head23 -> Forecast 2021/22
J4: %
A5: Capital expenditure - Municipal Vote
A6: Expenditure of multi-year capital appropriation | B6: 1
A7: ='Org structure'!A2 -> Vote 1 - Executive and Council | C7: =SUM(C8:C17) -> 0 | D7: =SUM(D8:D17) -> 0 | E7: 0 | F7: 0 | G7: 0 | H7: 0 | I7: =G7-H7 -> 0 | J7: =IF(I7=0,"",I7/H7) ->  | K7: 0
A8: ='Org structure'!E3 -> 1,1 - Executive and Council | I8: 0
A9: ='Org structure'!E4 -> 0 | I9: 0
A10: ='Org structure'!E5 -> 0 | I10: 0
A11: ='Org structure'!E6 -> 0 | I11: 0
A12: ='Org structure'!E7 -> 0 | I12: 0
A13: ='Org structure'!E8 -> 0 | I13: 0
A14: ='Org structure'!E9 -> 0 | I14: 0
A15: ='Org structure'!E10 -> 0 | I15: 0
A16: ='Org structure'!E11 -> 0 | I16: 0
A17: ='Org structure'!E12 -> 0 | I17: 0
A18: ='Org structure'!A3 -> Vote 2 - Budget and Treasury | C18: =SUM(C19:C28) -> 0 | D18: =SUM(D19:D28) -> 0 | E18: 0 | F18: 0 | G18: 0 | H18: 0 | I18: 0 | K18: 0
A19: ='Org structure'!E14 -> 2,1 - Official Housing | I19: 0
A20: ='Org structure'!E15 -> 2,2 - Rates | I20: 0
A21: ='Org structure'!E16 -> 2,3 - Commonage | I21: 0
A22: ='Org structure'!E17 -> 2,4 - Municipal Buildings | I22: 0
A23: ='Org structure'!E18 -> 2,5 - Budget and Treasury Office | I23: 0
A24: ='Org structure'!E19 -> 2,6 - Airport | I24: 0
A25: ='Org structure'!E20 -> 2,6 - Airport | I25: 0
A26: ='Org structure'!E21 -> 0 | I26: 0
A27: ='Org structure'!E22 -> 0 | I27: 0
A28: ='Org structure'!E23 -> 0 | I28: 0
A29: ='Org structure'!A4 -> Vote 3 - Corporate Services | C29: =SUM(C30:C39) -> 0 | D29: 0 | E29: 0 | F29: 0 | G29: 0 | H29: 0 | I29: 0 | K29: 0
A30: ='Org structure'!E25 -> 3,1 - Corporate Services | I30: 0
A31: ='Org structure'!E26 -> 0 | I31: 0
A32: ='Org structure'!E27 -> 0 | I32: 0
A33: ='Org structure'!E28 -> 0 | I33: 0
A34: ='Org structure'!E29 -> 0 | I34: 0
A35: ='Org structure'!E30 -> 0 | I35: 0
A36: ='Org structure'!E31 -> 0 | I36: 0
A37: ='Org structure'!E32 -> 0 | I37: 0
A38: ='Org structure'!E33 -> 0 | I38: 0
A39: ='Org structure'!E34 -> 0 | I39: 0
A40: ='Org structure'!A5 -> Vote 4 - Planning and Development | C40: =SUM(C41:C50) -> 0 | D40: 0 | E40: 0 | F40: 0 | G40: 0 | H40: 0 | I40: 0 | K40: 0
A41: ='Org structure'!E36 -> 4.1 - [Name of sub-vote] | I41: 0
A42: ='Org structure'!E37 -> 0 | I42: 0
A43: ='Org structure'!E38 -> 0 | I43: 0
A44: ='Org structure'!E39 -> 0 | I44: 0
A45: ='Org structure'!E40 -> 0 | I45: 0
A46: ='Org structure'!E41 -> 0 | I46: 0
A47: ='Org structure'!E42 -> 0 | I47: 0
A48: ='Org structure'!E43 -> 0 | I48: 0
A49: ='Org structure'!E44 -> 0 | I49: 0
A50: ='Org structure'!E45 -> 0 | I50: 0
A51: ='Org structure'!A6 -> Vote 5 - Health | C51: =SUM(C52:C61) -> 0 | D51: =SUM(D52:D61) -> 0 | E51: 0 | F51: 0 | G51: 0 | H51: 0 | I51: 0 | K51: 0
A52: ='Org structure'!E47 -> 5,1 - Health | I52: 0
A53: ='Org structure'!E48 -> 5,2 - Clinics | I53: 0
A54: ='Org structure'!E49 -> 0 | I54: 0
A55: ='Org structure'!E50 -> 0 | I55: 0
A56: ='Org structure'!E51 -> 0 | I56: 0
A57: ='Org structure'!E52 -> 0 | I57: 0
A58: ='Org structure'!E53 -> 0 | I58: 0
A59: ='Org structure'!E54 -> 0 | I59: 0
A60: ='Org structure'!E55 -> 0 | I60: 0
A61: ='Org structure'!E56 -> 0 | I61: 0
A62: ='Org structure'!A7 -> Vote 6 - Community and Social Services | C62: =SUM(C63:C72) -> 0 | D62: =SUM(D63:D72) -> 0 | E62: 0 | F62: 0 | G62: 0 | H62: 0 | I62: 0 | K62: 0
A63: ='Org structure'!E58 -> 6,1 - Cemetry | I63: 0
A64: ='Org structure'!E59 -> 6,2 - Library | I64: 0
A65: ='Org structure'!E60 -> 6,3 - Museum | I65: 0
A66: ='Org structure'!E61 -> 0 | I66: 0
A67: ='Org structure'!E62 -> 0 | I67: 0
A68: ='Org structure'!E63 -> 0 | I68: 0
A69: ='Org structure'!E64 -> 0 | I69: 0
A70: ='Org structure'!E65 -> 0 | I70: 0
A71: ='Org structure'!E66 -> 0 | I71: =G71-H71 -> 0 | J71: =IF(I71=0,"",I71/H71) -> 
A72: ='Org structure'!E67 -> 0 | I72: 0
A73: ='Org structure'!A8 -> Vote 7 - Housing | C73: =SUM(C74:C83) -> 0 | D73: 0 | E73: 0 | F73: 0 | G73: 0 | H73: 0 | I73: 0 | K73: 0
A74: ='Org structure'!E69 -> 7.1 - [Name of sub-vote] | I74: 0
A75: ='Org structure'!E70 -> 0 | I75: 0
A76: ='Org structure'!E71 -> 0 | I76: 0
A77: ='Org structure'!E72 -> 0 | I77: 0
A78: ='Org structure'!E73 -> 0 | I78: 0
A79: ='Org structure'!E74 -> 0 | I79: 0
A80: ='Org structure'!E75 -> 0 | I80: 0
A81: ='Org structure'!E76 -> 0 | I81: 0
A82: ='Org structure'!E77 -> 0 | I82: 0
A83: ='Org structure'!E78 -> 0 | I83: 0
A84: ='Org structure'!A9 -> Vote 8 - Public Safety | C84: =SUM(C85:C94) -> 0 | D84: =SUM(D85:D94) -> 0 | E84: 0 | F84: 0 | G84: 0 | H84: 0 | I84: 0 | K84: 0
A85: ='Org structure'!E80 -> 8,1 - Fire Service | I85: 0
A86: ='Org structure'!E81 -> 8,2 - Civil Defence | I86: 0
A87: ='Org structure'!E82 -> 8,3 - Pound | I87: 0
A88: ='Org structure'!E83 -> 0 | I88: 0
A89: ='Org structure'!E84 -> 0 | I89: 0
A90: ='Org structure'!E85 -> 0 | I90: 0
A91: ='Org structure'!E86 -> 0 | I91: 0
A92: ='Org structure'!E87 -> 0 | I92: 0
A93: ='Org structure'!E88 -> 0 | I93: 0
A94: ='Org structure'!E89 -> 0 | I94: 0
A95: ='Org structure'!A10 -> Vote 9 - Sport and Recreation | C95: =SUM(C96:C105) -> 0 | D95: =SUM(D96:D105) -> 0 | E95: 0 | F95: 0 | G95: 0 | H95: 0 | I95: 0 | K95: 0
A96: ='Org structure'!E91 -> 9,1 - Nature Reserve | I96: 0
A97: ='Org structure'!E92 -> 9,2 - Parks and Gardens | I97: 0
A98: ='Org structure'!E93 -> 9,3 - Swimming Pool | I98: 0
A99: ='Org structure'!E94 -> 9,4 - Caravan Park | I99: 0
A100: ='Org structure'!E95 -> 0 | I100: 0
A101: ='Org structure'!E96 -> 0 | I101: 0
A102: ='Org structure'!E97 -> 0 | I102: 0
A103: ='Org structure'!E98 -> 0 | I103: 0
A104: ='Org structure'!E99 -> 0 | I104: 0
A105: ='Org structure'!E100 -> 0 | I105: 0
A106: ='Org structure'!A11 -> Vote 10 - Environmental Protection | C106: =SUM(C107:C116) -> 0 | D106: =SUM(D107:D116) -> 0 | E106: 0 | F106: 0 | G106: 0 | H106: 0 | I106: 0 | K106: 0
A107: ='Org structure'!E102 -> 10.1 - [Name of sub-vote] | I107: 0
A108: ='Org structure'!E103 -> 0 | I108: 0
A109: ='Org structure'!E104 -> 0 | I109: 0
A110: ='Org structure'!E105 -> 0 | I110: 0
A111: ='Org structure'!E106 -> 0 | I111: 0
A112: ='Org structure'!E107 -> 0 | I112: 0
A113: ='Org structure'!E108 -> 0 | I113: 0
A114: ='Org structure'!E109 -> 0 | I114: 0
A115: ='Org structure'!E110 -> 0 | I115: 0
A116: ='Org structure'!E111 -> 0 | I116: 0
A117: ='Org structure'!A12 -> Vote 11 - Solid Waste Management | C117: =SUM(C118:C127) -> 0 | D117: =SUM(D118:D127) -> 0 | E117: 0 | F117: 0 | G117: 0 | H117: 0 | I117: 0 | K117: 0
A118: ='Org structure'!E113 -> 11,1 - Refuse removal | I118: 0
A119: ='Org structure'!E114 -> 0 | I119: 0
A120: ='Org structure'!E115 -> 0 | I120: 0
A121: ='Org structure'!E116 -> 0 | I121: 0
A122: ='Org structure'!E117 -> 0 | I122: 0
A123: ='Org structure'!E118 -> 0 | I123: 0
A124: ='Org structure'!E119 -> 0 | I124: 0
A125: ='Org structure'!E120 -> 0 | I125: 0
A126: ='Org structure'!E121 -> 0 | I126: 0
A127: ='Org structure'!E122 -> 0 | I127: 0
A128: ='Org structure'!A13 -> Vote 12 - Waste Water Management | C128: =SUM(C129:C138) -> 0 | D128: =SUM(D129:D138) -> 0 | E128: 0 | F128: 0 | G128: 0 | H128: 0 | I128: 0 | K128: 0
A129: ='Org structure'!E124 -> 12,1 - Sewerage | I129: 0
A130: ='Org structure'!E125 -> 0 | I130: 0
A131: ='Org structure'!E126 -> 0 | I131: 0
A132: ='Org structure'!E127 -> 0 | I132: 0
A133: ='Org structure'!E128 -> 0 | I133: 0
A134: ='Org structure'!E129 -> 0 | I134: 0
A135: ='Org structure'!E130 -> 0 | I135: =G135-H135 -> 0 | J135: =IF(I135=0,"",I135/H135) -> 
A136: ='Org structure'!E131 -> 0 | I136: 0
A137: ='Org structure'!E132 -> 0 | I137: 0
A138: ='Org structure'!E133 -> 0 | I138: 0
A139: ='Org structure'!A14 -> Vote 13 - Road Transport | C139: =SUM(C140:C149) -> 0 | D139: =SUM(D140:D149) -> 0 | E139: 0 | F139: 0 | G139: 0 | H139: 0 | I139: 0 | K139: 0
A140: ='Org structure'!E135 -> 13,1 - Main Roads | I140: 0
A141: ='Org structure'!E136 -> 13,2 - Public Works | I141: 0
A142: ='Org structure'!E137 -> 13,3 - Streets and Pavements | I142: 0
A143: ='Org structure'!E138 -> 13,4 - Traffic and licencing | I143: 0
A144: ='Org structure'!E139 -> 0 | I144: 0
A145: ='Org structure'!E140 -> 0 | I145: 0
A146: ='Org structure'!E141 -> 0 | I146: 0
A147: ='Org structure'!E142 -> 0 | I147: 0
A148: ='Org structure'!E143 -> 0 | I148: 0
A149: ='Org structure'!E144 -> 0 | I149: 0
A150: ='Org structure'!A15 -> Vote 14 - Water | C150: =SUM(C151:C160) -> 0 | D150: =SUM(D151:D160) -> 15000000 | E150: 15000000 | F150: 0 | G150: 0 | H150: 1500000 | I150: -1500000 | J150: -1 | K150: 15000000
A151: ='Org structure'!E146 -> 14,1 - Water Distribution | I151: 0
A152: ='Org structure'!E147 -> 14,2 - Water Storage | D152: 15000000 | E152: 15000000 | H152: 1500000 | I152: -1500000 | J152: -1 | K152: 15000000
A153: ='Org structure'!E148 -> 0 | I153: 0
A154: ='Org structure'!E149 -> 0 | I154: 0
A155: ='Org structure'!E150 -> 0 | I155: 0
A156: ='Org structure'!E151 -> 0 | I156: 0
A157: ='Org structure'!E152 -> 0 | I157: 0
A158: ='Org structure'!E153 -> 0 | I158: 0
A159: ='Org structure'!E154 -> 0 | I159: 0
A160: ='Org structure'!E155 -> 0 | I160: 0
A161: ='Org structure'!A16 -> Vote 15 - Electricity | C161: =SUM(C162:C171) -> 0 | D161: =SUM(D162:D171) -> 0 | E161: 0 | F161: 0 | G161: 0 | H161: 0 | I161: 0 | K161: 0
A162: ='Org structure'!E157 -> 15,1 - Electricity Administration | I162: 0
A163: ='Org structure'!E158 -> 15,2 - Electricity Distribution | I163: 0
A164: ='Org structure'!E159 -> 15,3 - Electricity Generation | I164: 0
A165: ='Org structure'!E160 -> 0 | I165: 0
A166: ='Org structure'!E161 -> 0 | I166: 0
A167: ='Org structure'!E162 -> 0 | I167: 0
A168: ='Org structure'!E163 -> 0 | I168: 0
A169: ='Org structure'!E164 -> 0 | I169: 0
A170: ='Org structure'!E165 -> 0 | I170: 0
A171: ='Org structure'!E166 -> 0 | I171: 0 | L171: =SUM(L79:L82) -> 0 | M171: 0 | N171: 0 | O171: 0 | P171: 0 | Q171: 0 | R171: 0 | S171: 0 | T171: 0 | U171: 0 | V171: 0 | W171: 0
A172: Total multi-year capital expenditure | C172: =C7+C18+C29+C40+C51+C62+C73+C84+C95+C106+C117+C128+C139+C150+C161 -> 0 | D172: =D7+D18+D29+D40+D51+D62+D73+D84+D95+D106+D117+D128+D139+D150+D161 -> 15000000 | E172: 15000000 | F172: 0 | G172: 0 | H172: 1500000 | I172: -1500000 | J172: -1 | K172: 15000000
I173: 0
A174: Capital expenditure - Municipal Vote
A175: Expenditue of single-year capital appropriation | B175: 1 | I175: 0
A176: ='Org structure'!A2 -> Vote 1 - Executive and Council | C176: =SUM(C177:C186) -> 184497 | D176: 0 | E176: 0 | F176: 0 | G176: 0 | H176: 0 | I176: 0 | K176: 0
A177: ='Org structure'!E3 -> 1,1 - Executive and Council | C177: 184497 | I177: 0
A178: ='Org structure'!E4 -> 0 | I178: 0
A179: ='Org structure'!E5 -> 0 | I179: 0
A180: ='Org structure'!E6 -> 0 | I180: 0
A181: ='Org structure'!E7 -> 0 | I181: 0
A182: ='Org structure'!E8 -> 0 | I182: 0
A183: ='Org structure'!E9 -> 0 | I183: 0
A184: ='Org structure'!E10 -> 0 | I184: 0
A185: ='Org structure'!E11 -> 0 | I185: 0
A186: ='Org structure'!E12 -> 0 | I186: 0
A187: ='Org structure'!A3 -> Vote 2 - Budget and Treasury | C187: =SUM(C188:C197) -> 52681 | D187: =SUM(D188:D197) -> 0 | E187: =SUM(E188:E197) -> 0 | F187: 0 | G187: 0 | H187: 0 | I187: 0 | K187: 0
A188: ='Org structure'!E14 -> 2,1 - Official Housing | I188: 0
A189: ='Org structure'!E15 -> 2,2 - Rates | I189: 0
A190: ='Org structure'!E16 -> 2,3 - Commonage | I190: 0
A191: ='Org structure'!E17 -> 2,4 - Municipal Buildings | I191: 0
A192: ='Org structure'!E18 -> 2,5 - Budget and Treasury Office | C192: 52681 | I192: 0
A193: ='Org structure'!E19 -> 2,6 - Airport | I193: 0
A194: ='Org structure'!E20 -> 2,6 - Airport | I194: 0
A195: ='Org structure'!E21 -> 0 | I195: 0
A196: ='Org structure'!E22 -> 0 | I196: 0
A197: ='Org structure'!E23 -> 0 | I197: 0
A198: ='Org structure'!A4 -> Vote 3 - Corporate Services | C198: =SUM(C199:C208) -> 0 | D198: 0 | E198: 0 | F198: 0 | G198: 0 | H198: 0 | I198: 0 | K198: 0
A199: ='Org structure'!E25 -> 3,1 - Corporate Services | I199: 0
A200: ='Org structure'!E26 -> 0 | I200: =G200-H200 -> 0 | J200: =IF(I200=0,"",I200/H200) -> 
... 145 more rows

Sheet C6-FinPos
A1: =muni& " - "&S71E& " - "&date -> NC074 Kareeberg - Table C6 Monthly Budget Statement - Financial Position - M06 December
A2: =desc -> Description | B2: =head27 -> Ref | C2: =Head1 -> 2015/16 | D2: =Head2 -> Budget Year 2016/17
C3: =Head5 -> Audited Outcome | D3: =Head6 -> Original Budget | E3: =Head7 -> Adjusted Budget | F3: =Head39 -> YearTD actual | G3: =Head8 -> Full Year Forecast
A4: R thousands | B4: 1
A5: ASSETS
A6: Current assets
A7: Cash | C7: 649026 | D7: 1538120 | E7: 1538120 | F7: 1000262.16 | G7: 1538120
A8: Call investment deposits | C8: 22604624 | D8: 25514326 | E8: 25514326 | F8: 35530505.07 | G8: 25514326
A9: Consumer debtors | C9: 3235427 | D9: 2894188 | E9: 2894188 | F9: 6646531.63 | G9: 2894188
A10: Other debtors | C10: 40405 | D10: 29515 | E10: 29515 | F10: 40404.95 | G10: 29515
A11: Current portion of long-term receivables | C11: 7585 | D11: 8490 | E11: 8490 | F11: 6341.51 | G11: 8490
A12: Inventory | C12: 527836 | D12: 0 | E12: 0 | F12: 527835.58 | G12: 0
A13: Total current assets | C13: =SUM(C7:C12) -> 27064903 | D13: =SUM(D7:D12) -> 29984639 | E13: =SUM(E7:E12) -> 29984639 | F13: =SUM(F7:F12) -> 43751880.9 | G13: =SUM(G7:G12) -> 29984639
A15: Non current assets
A16: Long-term receivables | C16: 34199 | D16: 30816 | E16: 30816 | F16: 34199.6 | G16: 30816
A17: Investments | D17: 0 | E17: 0 | G17: 0
A18: Investment property | C18: 15451029 | D18: 15482392 | E18: 15482392 | F18: 15451028.65 | G18: 15482392
A19: Investments in Associate | D19: 0 | E19: 0 | G19: 0
A20: Property, plant and equipment | C20: 110049827 | D20: 140863240 | E20: 140863240 | F20: 110109019.8 | G20: 140863240
A21: Agricultural | D21: 0 | E21: 0 | G21: 0
A22: Biological assets | D22: 0 | E22: 0 | G22: 0
A23: Intangible assets | C23: 15085 | D23: 3700 | E23: 3700 | F23: 15085.86 | G23: 3700
A24: Other non-current assets | C24: 2335737 | D24: 933487 | E24: 933487 | F24: 2335737.51 | G24: 933487
A25: Total non current assets | C25: =SUM(C16:C24) -> 127885877 | D25: =SUM(D16:D24) -> 157313635 | E25: =SUM(E16:E24) -> 157313635 | F25: =SUM(F16:F24) -> 127945071.5 | G25: =SUM(G16:G24) -> 157313635
A26: TOTAL ASSETS | C26: =C13+C25 -> 154950780 | D26: =D13+D25 -> 187298274 | E26: =E13+E25 -> 187298274 | F26: =F13+F25 -> 171696952.4 | G26: =G13+G25 -> 187298274
A28: LIABILITIES
A29: Current liabilities
A30: Bank overdraft
A31: Borrowing
A32: Consumer deposits | C32: 320339 | D32: 380388 | E32: 380388 | F32: 321009 | G32: 380388
A33: Trade and other payables | C33: 2034758 | D33: 7221964 | E33: 7221964 | F33: 10069583.36 | G33: 7221964
A34: Provisions | C34: 2116675 | D34: 1659144 | E34: 1659144 | F34: 1989919.29 | G34: 1659144
A35: Total current liabilities | C35: =SUM(C30:C34) -> 4471772 | D35: =SUM(D30:D34) -> 9261496 | E35: =SUM(E30:E34) -> 9261496 | F35: =SUM(F30:F34) -> 12380511.65 | G35: =SUM(G30:G34) -> 9261496
A37: Non current liabilities
A38: Borrowing
A39: Provisions | C39: 31005006 | D39: 12586825 | E39: 12586825 | F39: 31005005.14 | G39: 12586825
A40: Total non current liabilities | C40: =SUM(C38:C39) -> 31005006 | D40: =SUM(D38:D39) -> 12586825 | E40: =SUM(E38:E39) -> 12586825 | F40: =SUM(F38:F39) -> 31005005.14 | G40: =SUM(G38:G39) -> 12586825
A41: TOTAL LIABILITIES | C41: =C35+C40 -> 35476778 | D41: =D35+D40 -> 21848321 | E41: =E35+E40 -> 21848321 | F41: =F35+F40 -> 43385516.79 | G41: =G35+G40 -> 21848321
A43: NET ASSETS | B43: 2 | C43: =C26-C41 -> 119474002 | D43: =D26-D41 -> 165449953 | E43: =E26-E41 -> 165449953 | F43: =F26-F41 -> 128311435.6 | G43: =G26-G41 -> 165449953
A45: COMMUNITY WEALTH/EQUITY
A46: Accumulated Surplus/(Deficit) | C46: 108085645 | D46: 154064130 | E46: 154064130 | F46: 116922555.5 | G46: 154064130
A47: Reserves | C47: 11388357 | D47: 11385823 | E47: 11385823 | F47: 11388880.1 | G47: 11385823
A48: TOTAL COMMUNITY WEALTH/EQUITY | B48: 2 | C48: =SUM(C46:C47) -> 119474002 | D48: =SUM(D46:D47) -> 165449953 | E48: =SUM(E46:E47) -> 165449953 | F48: =SUM(F46:F47) -> 128311435.6 | G48: =SUM(G46:G47) -> 165449953
A49: =head27a -> References
A50: 1. Material variances to be explained in Table SC1
A51: 2. Net assets must balance with Total Community Wealth/Equity
A54: check balance | C54: =C43-C48 -> 0 | D54: =D43-D48 -> 0 | E54: =E43-E48 -> 0 | F54: =F43-F48 -> 0 | G54: =G43-G48 -> 0

Sheet C7-CFlow
A1: =muni& " - "&S71F& " - "&date -> NC074 Kareeberg - Table C7 Monthly Budget Statement - Cash Flow - M06 December
A2: =desc -> Description | B2: =head27 -> Ref | C2: =Head1 -> 2015/16 | D2: =Head2 -> Budget Year 2016/17
C3: =Head5 -> Audited Outcome | D3: =Head6 -> Original Budget | E3: =Head7 -> Adjusted Budget | F3: =Head38 -> Monthly actual | G3: =Head39 -> YearTD actual | H3: =Head40 -> YearTD budget | I3: =Head41 -> YTD variance | J3: =Head41 -> YTD variance | K3: =Head8 -> Full Year Forecast
A4: R thousands | B4: 1 | J4: %
A5: CASH FLOW FROM OPERATING ACTIVITIES
A6: Receipts
A7: Property rates, penalties & collection charges | C7: 23822390 | D7: 3433695 | E7: 3433695 | F7: 0 | G7: 6363860.97 | H7: 951091 | I7: =G7-H7 -> 5412769.97 | J7: =IF(I7=0,"",I7/H7) -> 5.691116802 | K7: 3433695
A8: Service charges | D8: 19808629 | E8: 19808629 | F8: 0 | G8: 2040750.89 | H8: 1888605 | I8: 152145.89 | J8: =IF(I8=0,"",I8/H8) -> 0.0805599318 | K8: 19808629
A9: Other revenue | D9: 9972382 | E9: 9972382 | F9: 0 | G9: 106783.54 | H9: 417693 | I9: -310909.46 | J9: =IF(I9=0,"",I9/H9) -> -0.744349223 | K9: 9972382
A10: Government - operating | C10: 23919474 | D10: 23074998 | E10: 23074998 | F10: 0 | G10: 8151395.74 | H10: 7920250 | I10: 231145.74 | J10: =IF(I10=0,"",I10/H10) -> 0.02918414697 | K10: 23074998
A11: Government - capital | C11: 7042151 | D11: 23669000 | E11: 23669000 | F11: 0 | G11: 4200000 | H11: 7889666.667 | I11: -3689666.667 | J11: =IF(I11=0,"",I11/H11) -> -0.4676581182 | K11: 23669000
A12: Interest | C12: 1772509 | D12: 1170600 | E12: 1170600 | F12: 0 | G12: 81833.1 | H12: 85438 | I12: -3604.9 | J12: -0.04219316932 | K12: 1170600
A13: Dividends | D13: 0 | E13: 0 | I13: 0 | K13: 0
A14: Payments
A15: Suppliers and employees | C15: -37625869 | D15: -45444246 | E15: -45444246 | F15: 0 | G15: -5834489.25 | H15: -6365586 | I15: =H15-G15 -> -531096.75 | J15: 0.08343249938 | K15: -45444246
A16: Finance charges | C16: -1989337 | D16: -1073129 | E16: -1073129 | F16: 0 | G16: 0 | H16: 0 | I16: =H16-G16 -> 0 | K16: -1073129
A17: Transfers and Grants | C17: -8975820 | D17: -9191275 | E17: -9191275 | F17: 0 | G17: -1775737.83 | H17: -2297805.75 | I17: =H17-G17 -> -522067.92 | J17: 0.2272028086 | K17: -9191275
A18: NET CASH FROM/(USED) OPERATING ACTIVITIES | C18: =SUM(C7:C13)+SUM(C15:C17) -> 7965498 | D18: 25420654 | E18: 25420654 | F18: 0 | G18: 13334397.16 | H18: 10489351.92 | I18: =H18-G18 -> -2845045.243 | J18: -0.2712317468 | K18: =SUM(K7:K13)+SUM(K15:K17) -> 25420654
A20: CASH FLOWS FROM INVESTING ACTIVITIES
A21: Receipts
A22: Proceeds on disposal of PPE | C22: 4039 | D22: 0 | E22: 0 | G22: 0 | I22: =G22-H22 -> 0 | J22: =IF(I22=0,"",I22/H22) ->  | K22: 0
A23: Decrease (Increase) in non-current debtors | C23: 8727 | D23: 8490 | E23: 8490 | F23: 0 | G23: 1243.21 | H23: 2806 | I23: =G23-H23 -> -1562.79 | J23: -0.5569458304 | K23: 8490
A24: Decrease (increase) other non-current receivables | D24: 0 | E24: 0 | I24: =G24-H24 -> 0
A25: Decrease (increase) in non-current investments | I25: =G25-H25 -> 0
A26: Payments
A27: Capital assets | C27: -7113239 | D27: -23669000 | E27: -23669000 | F27: 0 | G27: -59193 | H27: -6334500 | I27: =H27-G27 -> -6275307 | J27: 0.9906554582 | K27: -23669000
A28: NET CASH FROM/(USED) INVESTING ACTIVITIES | C28: =SUM(C22:C25)+C27 -> -7100473 | D28: =SUM(D22:D25)+D27 -> -23660510 | E28: -23660510 | F28: 0 | G28: -57949.79 | H28: -6331694 | I28: =H28-G28 -> -6273744.21 | J28: 0.9908476641 | K28: =SUM(K22:K25)+K27 -> -23660510
A30: CASH FLOWS FROM FINANCING ACTIVITIES
A31: Receipts
A32: Short term loans | I32: =G32-H32 -> 0 | J32: =IF(I32=0,"",I32/H32) -> 
A33: Borrowing long term/refinancing | I33: =G33-H33 -> 0
A34: Increase (decrease) in consumer deposits | C34: 12180 | D34: 10000 | E34: 10000 | F34: 0 | G34: 670 | H34: 4400 | I34: =G34-H34 -> -3730 | J34: -0.8477272727 | K34: 10000
A35: Payments
A36: Repayment of borrowing | I36: =H36-G36 -> 0
A37: NET CASH FROM/(USED) FINANCING ACTIVITIES | C37: =SUM(C32:C34)+C36 -> 12180 | D37: 10000 | E37: 10000 | F37: 0 | G37: 670 | H37: 4400 | I37: =H37-G37 -> 3730 | J37: 0.8477272727 | K37: =SUM(K32:K34)+K36 -> 10000
A39: NET INCREASE/ (DECREASE) IN CASH HELD | C39: =C18+C28+C37 -> 877205 | D39: 1770144 | E39: 1770144 | F39: 0 | G39: 13277117.37 | H39: 4162057.917 | K39: =K18+K28+K37 -> 1770144
A40: Cash/cash equivalents at beginning: | C40: 22376445 | D40: 25282302 | E40: 25282302 | G40: =C41 -> 23253650 | H40: =IF(E40=0, D40, E40) -> 25282302 | K40: =G40 -> 23253650
A41: Cash/cash equivalents at month/year end: | C41: =C39+C40 -> 23253650 | D41: =D39+D40 -> 27052446 | E41: =E39+E40 -> 27052446 | G41: =G39+G40 -> 36530767.37 | H41: =H39+H40 -> 29444359.92 | K41: =K39+K40 -> 25023794
A42: References
A43: 1. Material variances to be explained in Table SC1

Sheet SC1
A1: =muni& " - "&S71G& " - "&date -> NC074 Kareeberg - Supporting Table SC1 Material variance explanations - M06 December
A2: =head27 -> Ref | B2: =desc -> Description
C3: Variance | D3: Reasons for material deviations | E3: Remedial or corrective steps/remarks
B4: R thousands
A5: 1 | B5: ='C4-FinPerf RE'!A5 -> Revenue By Source
B6: Service charges - electricity revenue | C6: 0 | D6: Higher usage than anticipated | E6: No steps needed
B7: Service charges - sanitation revenue | C7: 0 | D7: Higher usage than anticipated | E7: No steps needed
B8: Rental of facilities and equipment | C8: 0 | D8: This will taper off as the year progresses | E8: No steps needed
B9: Interest earned - external investments | C9: 0 | D9: Call deposits have not realised yet | E9: No steps needed
B10: Interest earned - outstanding debtors | C10: 0 | D10: Very small amount of revenue | E10: No steps needed
B11: Fines | C11: 0 | D11: No real pattern for fines can be determined, thus this revenue source is budgeted for conservatively. | E11: No steps needed
B12: Licences and permits | C12: 0 | D12: No real pattern of purchases of licences and permits can be determined, thus this revenue source is budgeted for conservatively. | E12: No steps needed
B13: Agency services | C13: 0 | D13: No real pattern for agency services can be determined, thus this revenue source is budgeted for conservatively. | E13: No steps needed
B14: Other revenue | C14: 0 | D14: VAT revenue not yet realised | E14: No steps needed
A16: 2 | B16: ='C4-FinPerf RE'!A25 -> Expenditure By Type
B17: Employee related costs | C17: 0 | D17: Appointments not made | E17: Necessary vacancies must be filled
B18: Remuneration of councillors | C18: 0 | D18: All allowances not paid | E18: No steps needed
B19: Bulk purchases | C19: 0 | D19: Less usage for the month. This will normalise from next month | E19: No steps needed
B20: Other materials | C20: 0 | D20: Cash flow restictions cause underspending on repairs and maintenance | E20: No steps needed
B21: Contracted services | C21: 0 | D21: Cash flow restictions cause underspending on repairs and maintenance | E21: No steps needed
B22: Transfers and grants | C22: 0 | D22: This will normalise from next month | E22: No steps needed
B23: Other expenditure | C23: 0 | D23: Annual fees paid out | E23: No steps needed
A25: 3 | B25: =RIGHT('C5-Capex'!A40,19) -> Capital Expenditure
B26: Upgrade of sports field | C26: 0 | D26: Project under way | E26: No steps needed
B27: Upgrade of Market Street - Carnarvon | C27: 0 | D27: Project under way | E27: No steps needed
B28: Upgrade of Sering Street - Vanwyksvlei | C28: 0 | D28: Project under way | E28: No steps needed
B29: Establishment of waterborne sewerage for Vosburg | D29: Project not started | E29: No steps needed
B30: Upgrade electricity network Riverside | D30: Project not started | E30: No steps needed
B31: Water supply to Vanwyksvlei | D31: Project not started | E31: No steps needed
A33: 4 | B33: Financial Position
A38: 5 | B38: Cash Flow
B39: August 2016 | C39: 0 | D39: Receipt of conditional grants
A43: 6 | B43: Measureable performance
A48: 7 | B48: Municipal Entities
A54: =head27a -> References
A55: 1. Revenue for each source, vote and standard classification
A56: 2. Expenditure for each type, vote and standard classification
A57: 3. Capital expenditure for each vote and standard classification
A58: 4. Explain any material variances between the annual budget and the expected financial position based on current trends
A59: 5. Cash receipts by source and cash payments by type where not explained under revenue and expenditure
A60: 6. For Sept, Dec, Mar and Jun statements explain any material variances in achievement of measurable performance objectives

Sheet SC2
A1: =muni& " - "&S71H& " - "&Head57 -> NC074 Kareeberg - Supporting Table SC2 Monthly Budget Statement - performance indicators - M06 December
A2: Description of financial indicator | B2: Basis of calculation | C2: =head27 -> Ref | D2: =Head1 -> 2015/16 | E2: =Head2 -> Budget Year 2016/17
D3: =Head5 -> Audited Outcome | E3: =Head6 -> Original Budget | F3: =Head7 -> Adjusted Budget | G3: =Head39 -> YearTD actual | H3: =Head8 -> Full Year Forecast
A5: Borrowing Management
A7: Capital Charges to Operating Expenditure | B7: Interest & principal paid/Operating Expenditure | D7: =IF(ISERROR((D42-D43)/D45),0,((D42-D43)/D45)) -> 0.03695473602 | E7: =IF(ISERROR((E42+E44)/E45),0,((E42+E44)/E45)) -> 0.07674862632 | F7: =IF(ISERROR((F42+F44)/F45),0,((F42+F44)/F45)) -> 0.07674862632 | G7: =IF(ISERROR((G42+G44)/G45),0,((G42+G44)/G45)) -> 0 | H7: =IF(ISERROR((H42+H44)/H45),0,((H42+H44)/H45)) -> 0.05766894161
A8: Borrowed funding of 'own' capital expenditure | B8: Borrowings/Capital expenditure excl. transfers and grants | D8: =IF(ISERROR(D47/D46),0,(D47/D46)) -> 0 | E8: =IF(ISERROR(E47/E46),0,(E47/E46)) -> 0 | F8: =IF(ISERROR(F47/F46),0,(F47/F46)) -> 0 | G8: =IF(ISERROR(G47/G46),0,(G47/G46)) -> 0 | H8: =IF(ISERROR(H47/H46),0,(H47/H46)) -> 0
A9: Safety of Capital
A10: Debt to Equity | B10: Loans, Accounts Payable, Overdraft & Tax Provision/ Funds & Reserves | D10: =IF(ISERROR(D48/D49),0,(D48/D49)) -> 0.0170309688 | E10: =IF(ISERROR(E48/E49),0,(E48/E49)) -> 0.04365044455 | F10: =IF(ISERROR(F48/F49),0,(F48/F49)) -> 0.04365044455 | G10: =IF(ISERROR(G48/G49),0,(G48/G49)) -> 0.07847767673 | H10: =IF(ISERROR(H48/H49),0,(H48/H49)) -> 0.04365044455
A11: Gearing | B11: Long Term Borrowing/ Funds & Reserves | D11: =IF(ISERROR(D51/D50),0,(D51/D50)) -> 0 | E11: =IF(ISERROR(E51/E50),0,(E51/E50)) -> 0 | F11: =IF(ISERROR(F51/F50),0,(F51/F50)) -> 0 | G11: =IF(ISERROR(G51/G50),0,(G51/G50)) -> 0 | H11: =IF(ISERROR(H51/H50),0,(H51/H50)) -> 0
A12: Liquidity
A13: Current Ratio | B13: Current assets/current liabilities | C13: 1 | D13: =IF(ISERROR(D52/D53),0,(D52/D53)) -> 6.052388852 | E13: =IF(ISERROR(E52/E53),0,(E52/E53)) -> 3.237558921 | F13: =IF(ISERROR(F52/F53),0,(F52/F53)) -> 3.237558921 | G13: =IF(ISERROR(G52/G53),0,(G52/G53)) -> 3.533931564 | H13: =IF(ISERROR(H52/H53),0,(H52/H53)) -> 3.237558921
A14: Liquidity Ratio | B14: Monetary Assets/Current Liabilities | D14: =IF(ISERROR(D54/D53),0,(D54/D53)) -> 5.200097411 | E14: =IF(ISERROR(E54/E53),0,(E54/E53)) -> 2.920958558 | F14: =IF(ISERROR(F54/F53),0,(F54/F53)) -> 2.920958558 | G14: =IF(ISERROR(G54/G53),0,(G54/G53)) -> 2.950667005 | H14: =IF(ISERROR(H54/H53),0,(H54/H53)) -> 2.920958558
A15: Revenue Management
A16: Annual Debtors Collection Rate (Payment Level %) | B16: Last 12 Mths Receipts/ Last 12 Mths Billing
A17: Outstanding Debtors to Revenue | B17: Total Outstanding Debtors to Annual Revenue | D17: =IF(ISERROR(D59/D55),0,(D59/D55)) -> 0.06518161133 | E17: =IF(ISERROR(E59/E55),0,(E59/E55)) -> 0.04926133902 | F17: =IF(ISERROR(F59/F55),0,(F59/F55)) -> 0.04926133902 | G17: =IF(ISERROR(G59/G55),0,(G59/G55)) -> 0.4026879782 | H17: =IF(ISERROR(H59/H55),0,(H59/H55)) -> 0.04926133902
A18: Longstanding Debtors Recovered | B18: Debtors > 12 Mths Recovered/Total Debtors > 12 Months Old | D18: =IF(ISERROR(D64/D63),0,(D64/D63)) -> 0.2217901108 | E18: =IF(ISERROR(E64/E63),0,(E64/E63)) -> 0.2755062305 | F18: =IF(ISERROR(F64/F63),0,(F64/F63)) -> 0.2755062305 | G18: =IF(ISERROR(G64/G63),0,(G64/G63)) -> 0 | H18: =IF(ISERROR(H64/H63),0,(H64/H63)) -> 0
A19: Creditors Management
A20: Creditors System Efficiency | B20: % of Creditors Paid Within Terms (within MFMA s 65(e)) | D20: 1 | E20: 1 | F20: 1 | G20: 0 | H20: 1
A21: Funding of Provisions
A22: Percentage Of Provisions Not Funded | B22: Unfunded Provisions/Total Provisions
A23: Other Indicators
A24: Electricity Distribution Losses | B24: % Volume (units purchased and generated less units sold)/units purchased and generated | C24: 2 | D24: 0.093 | E24: 0.1409 | F24: 0.1409 | G24: 0 | H24: 0.1409
A25: Water Distribution Losses | B25: % Volume (units purchased and own source less units sold)/Total units purchased and own source | C25: 2
A26: Employee costs | B26: Employee costs/Total Revenue - capital revenue | D26: =IF(ISERROR(D40/D55),0,(D40/D55)) -> 0.3359943201 | E26: =IF(ISERROR(E40/E55),0,(E40/E55)) -> 0.3491635099 | F26: =IF(ISERROR(F40/F55),0,(F40/F55)) -> 0.3491635099 | G26: =IF(ISERROR(G40/G55),0,(G40/G55)) -> 0.1507864547 | H26: =IF(ISERROR(H40/H55),0,(H40/H55)) -> 0.3491635099
A27: Repairs & Maintenance | B27: R&M/Total Revenue - capital revenue | D27: =IF(ISERROR(D41/D55),0,(D41/D55)) -> 0.03989116594 | E27: =IF(ISERROR(E41/E55),0,(E41/E55)) -> 0.04607492313 | F27: =IF(ISERROR(F41/F55),0,(F41/F55)) -> 0.04607492313 | G27: =IF(ISERROR(G41/G55),0,(G41/G55)) -> 0.01262607427 | H27: =IF(ISERROR(H41/H55),0,(H41/H55)) -> 0.04607492313
A28: Interest & Depreciation | B28: I&D/Total Revenue - capital revenue | D28: =IF(ISERROR((D42+D44)/D55),0,((D42+D44)/D55)) -> 0.1061968089 | E28: =IF(ISERROR((E42+E44)/E55),0,((E42+E44)/E55)) -> 0.07904538897 | F28: =IF(ISERROR((F42+F44)/F55),0,((F42+F44)/F55)) -> 0.07904538897 | G28: =IF(ISERROR((G42+G44)/G55),0,((G42+G44)/G55)) -> 0 | H28: =IF(ISERROR((H42+H44)/H55),0,((H42+H44)/H55)) -> 0.05939472978
A29: IDP regulation financial viability indicators
A30: i. Debt coverage | B30: (Total Operating Revenue - Operating Grants)/Debt service payments due within financial year) | D30: 25.5854267 | E30: 56.04989801 | F30: 56.04989801 | G30: 0 | H30: 56.04989801
A31: ii. O/S Service Debtors to Revenue | B31: Total outstanding service debtors/annual revenue received for services | D31: 0.1679096863 | E31: 0.142102633 | F31: 0.142102633 | G31: 0 | H31: 0.142102633
A32: iii. Cost coverage | B32: (Available cash + Investments)/monthly fixed operational expenditure | D32: 5.18362891 | E32: 5.240287289 | F32: 5.240287289 | G32: 0 | H32: 5.240287289
A33: References
A34: 1. Consumer debtors > 12 months old are excluded from current assets.
A35: 2. Material variances to be explained.
A37: Calculations
A38: ='C6-FinPos'!A38 -> Borrowing | D38: ='C6-FinPos'!C38 -> 0 | E38: ='C6-FinPos'!D38 -> 0 | F38: ='C6-FinPos'!E38 -> 0 | G38: ='C6-FinPos'!F38 -> 0 | H38: 0
A39: Total Assets | D39: ='C6-FinPos'!C26 -> 154950780 | E39: ='C6-FinPos'!D26 -> 187298274 | F39: ='C6-FinPos'!E26 -> 187298274 | G39: ='C6-FinPos'!F26 -> 171696952.4 | H39: ='C6-FinPos'!G26 -> 187298274
A40: ='C4-FinPerf RE'!A26 -> Employee related costs | D40: ='C4-FinPerf RE'!C26 -> 17101451 | E40: ='C4-FinPerf RE'!D26 -> 21001756 | F40: ='C4-FinPerf RE'!E26 -> 21001756 | G40: ='C4-FinPerf RE'!G26 -> 2519103.04 | H40: ='C4-FinPerf RE'!K26 -> 21001756
A41: =A27 -> Repairs & Maintenance | D41: ='C4-FinPerf RE'!C32+'C4-FinPerf RE'!C33 -> 2030382 | E41: ='C4-FinPerf RE'!D32+'C4-FinPerf RE'!D33 -> 2771350 | F41: ='C4-FinPerf RE'!E32+'C4-FinPerf RE'!E33 -> 2771350 | G41: ='C4-FinPerf RE'!G32+'C4-FinPerf RE'!G33 -> 210936.6 | H41: ='C4-FinPerf RE'!K32+'C4-FinPerf RE'!K33 -> 2771350
A42: Interest (finance charges) | D42: ='C4-FinPerf RE'!C30 -> 1989338 | E42: ='C4-FinPerf RE'!D30 -> 1073129 | F42: ='C4-FinPerf RE'!E30 -> 1073129 | G42: ='C4-FinPerf RE'!G30 -> 0 | H42: ='C4-FinPerf RE'!K30 -> 1073129
A43: Principal paid | D43: =-'C7-CFlow'!C36 -> 0 | E43: =-'C7-CFlow'!D36 -> 0 | F43: =-'C7-CFlow'!E36 -> 0 | G43: =-'C7-CFlow'!G36 -> 0 | H43: =-'C7-CFlow'!K36 -> 0
A44: Depreciation | D44: ='C4-FinPerf RE'!C29 -> 3415871 | E44: ='C4-FinPerf RE'!D29 -> 3681354 | F44: ='C4-FinPerf RE'!E29 -> 3681354 | H44: ='C4-FinPerf RE'!K27 -> 2499391
A45: Operating expenditure | D45: ='C4-FinPerf RE'!C37 -> 53831747 | E45: ='C4-FinPerf RE'!D37 -> 61948770 | F45: ='C4-FinPerf RE'!E37 -> 61948770 | G45: ='C4-FinPerf RE'!G37 -> 7928711.26 | H45: ='C4-FinPerf RE'!K37 -> 61948770
A46: ='C5-Capex'!A40 -> Total Capital Expenditure | D46: ='C5-Capex'!C40 -> 7475563 | E46: ='C5-Capex'!D40 -> 23669000 | F46: ='C5-Capex'!E40 -> 23669000 | G46: ='C5-Capex'!G40 -> 59193 | H46: ='C5-Capex'!K40 -> 23669000
A47: Borrowed funding for capital | D47: ='C5-Capex'!C72 -> 0 | E47: ='C5-Capex'!D72 -> 0 | F47: ='C5-Capex'!E72 -> 0 | G47: ='C5-Capex'!G72 -> 0 | H47: ='C5-Capex'!K72 -> 0
A48: Debt | D48: ='C6-FinPos'!C30+'C6-FinPos'!C31+'C6-FinPos'!C33+'C6-FinPos'!C38 -> 2034758 | E48: ='C6-FinPos'!D30+'C6-FinPos'!D31+'C6-FinPos'!D33+'C6-FinPos'!D38 -> 7221964 | F48: ='C6-FinPos'!E30+'C6-FinPos'!E31+'C6-FinPos'!E33+'C6-FinPos'!E38 -> 7221964 | G48: ='C6-FinPos'!F30+'C6-FinPos'!F31+'C6-FinPos'!F33+'C6-FinPos'!F38 -> 10069583.36 | H48: ='C6-FinPos'!G30+'C6-FinPos'!G31+'C6-FinPos'!G33+'C6-FinPos'!G38 -> 7221964
A49: Equity | D49: ='C6-FinPos'!C48 -> 119474002 | E49: ='C6-FinPos'!D48 -> 165449953 | F49: ='C6-FinPos'!E48 -> 165449953 | G49: ='C6-FinPos'!F48 -> 128311435.6 | H49: ='C6-FinPos'!G48 -> 165449953
A50: ='C6-FinPos'!A47 -> Reserves | D50: ='C6-FinPos'!C47 -> 11388357 | E50: ='C6-FinPos'!D47 -> 11385823 | F50: ='C6-FinPos'!E47 -> 11385823 | G50: ='C6-FinPos'!F47 -> 11388880.1 | H50: ='C6-FinPos'!G47 -> 11385823
A51: ='C6-FinPos'!A38 -> Borrowing | D51: ='C6-FinPos'!C38 -> 0 | E51: ='C6-FinPos'!D38 -> 0 | F51: ='C6-FinPos'!E38 -> 0 | G51: ='C6-FinPos'!F38 -> 0 | H51: ='C6-FinPos'!G38 -> 0
A52: ='C6-FinPos'!A6 -> Current assets | D52: ='C6-FinPos'!C13 -> 27064903 | E52: ='C6-FinPos'!D13 -> 29984639 | F52: ='C6-FinPos'!E13 -> 29984639 | G52: ='C6-FinPos'!F13 -> 43751880.9 | H52: ='C6-FinPos'!G13 -> 29984639
A53: ='C6-FinPos'!A29 -> Current liabilities | D53: ='C6-FinPos'!C35 -> 4471772 | E53: ='C6-FinPos'!D35 -> 9261496 | F53: ='C6-FinPos'!E35 -> 9261496 | G53: ='C6-FinPos'!F35 -> 12380511.65 | H53: ='C6-FinPos'!G35 -> 9261496
A54: Monetary assets | D54: ='C6-FinPos'!C7+'C6-FinPos'!C8 -> 23253650 | E54: ='C6-FinPos'!D7+'C6-FinPos'!D8 -> 27052446 | F54: ='C6-FinPos'!E7+'C6-FinPos'!E8 -> 27052446 | G54: ='C6-FinPos'!F7+'C6-FinPos'!F8 -> 36530767.23 | H54: ='C6-FinPos'!G7+'C6-FinPos'!G8 -> 27052446
A55: ='C4-FinPerf RE'!A23 -> Total Revenue (excluding capital transfers and contributions) | D55: ='C4-FinPerf RE'!C23 -> 50898036 | E55: ='C4-FinPerf RE'!D23 -> 60148771 | F55: ='C4-FinPerf RE'!E23 -> 60148771 | G55: ='C4-FinPerf RE'!G23 -> 16706427.94 | H55: ='C4-FinPerf RE'!K23 -> 60148771
A56: ='C4-FinPerf RE'!A20 -> Transfers recognised - operational | D56: ='C4-FinPerf RE'!C20 -> 22742216 | E56: ='C4-FinPerf RE'!D20 -> 23074998 | F56: ='C4-FinPerf RE'!E20 -> 23074998 | G56: ='C4-FinPerf RE'!G20 -> 8151395.74 | H56: ='C4-FinPerf RE'!K20 -> 23074998
A57: ='C4-FinPerf RE'!A40 -> Transfers recognised - capital | D57: ='C4-FinPerf RE'!C40 -> 7042151 | E57: ='C4-FinPerf RE'!D40 -> 23669000 | F57: ='C4-FinPerf RE'!E40 -> 23669000 | G57: ='C4-FinPerf RE'!G40 -> 59193 | H57: ='C4-FinPerf RE'!K40 -> 23669000
A58: Debt service payments | D58: ='C7-CFlow'!C12+'C7-CFlow'!C36 -> 1772509 | E58: ='C7-CFlow'!D12+'C7-CFlow'!D36 -> 1170600 | F58: ='C7-CFlow'!E12+'C7-CFlow'!E36 -> 1170600 | G58: ='C7-CFlow'!G16+'C7-CFlow'!G36 -> 0 | H58: ='C7-CFlow'!K16+'C7-CFlow'!K36 -> -1073129
A59: Outstanding debtors (receivables) | D59: ='C6-FinPos'!C9+'C6-FinPos'!C10+'C6-FinPos'!C11+'C6-FinPos'!C16 -> 3317616 | E59: ='C6-FinPos'!D9+'C6-FinPos'!D10+'C6-FinPos'!D11+'C6-FinPos'!D16 -> 2963009 | F59: ='C6-FinPos'!E9+'C6-FinPos'!E10+'C6-FinPos'!E11+'C6-FinPos'!E16 -> 2963009 | G59: ='C6-FinPos'!F9+'C6-FinPos'!F10+'C6-FinPos'!F11+'C6-FinPos'!F16 -> 6727477.69 | H59: ='C6-FinPos'!G9+'C6-FinPos'!G10+'C6-FinPos'!G11+'C6-FinPos'!G16 -> 2963009
A60: Annual services revenue | D60: =SUM('C4-FinPerf RE'!C8:C12) -> 19758336 | E60: =SUM('C4-FinPerf RE'!D8:D12) -> 20851190 | F60: =SUM('C4-FinPerf RE'!E8:E12) -> 20851190 | G60: =SUM('C4-FinPerf RE'!G8:G12) -> 3532142.68
A61: Cash + investments | B61: Including LT investments | D61: ='C6-FinPos'!C7+'C6-FinPos'!C8+'C6-FinPos'!C17-'C6-FinPos'!C30 -> 23253650 | E61: ='C6-FinPos'!D7+'C6-FinPos'!D8+'C6-FinPos'!D17-'C6-FinPos'!D30 -> 27052446 | F61: ='C6-FinPos'!E7+'C6-FinPos'!E8+'C6-FinPos'!E17-'C6-FinPos'!E30 -> 27052446 | G61: ='C6-FinPos'!F7+'C6-FinPos'!F8+'C6-FinPos'!F17-'C6-FinPos'!F30 -> 36530767.23 | H61: ='C6-FinPos'!G7+'C6-FinPos'!G8+'C6-FinPos'!G17-'C6-FinPos'!G30 -> 27052446
A62: Fixed operational expend. (monthly) | D62: ='C4-FinPerf RE'!C37/12 -> 4485978.917 | E62: ='C4-FinPerf RE'!D37/12 -> 5162397.5 | F62: ='C4-FinPerf RE'!E37/12 -> 5162397.5 | G62: ='C4-FinPerf RE'!G37/1 -> 7928711.26 | H62: ='C4-FinPerf RE'!K37/12 -> 5162397.5
A63: Longstanding debtors outstanding | D63: ='C6-FinPos'!C16 -> 34199 | E63: ='C6-FinPos'!D16 -> 30816 | F63: ='C6-FinPos'!E16 -> 30816 | G63: ='C6-FinPos'!F16 -> 34199.6 | H63: ='C6-FinPos'!G16 -> 30816
A64: Longstanding debtors recovered | D64: ='C6-FinPos'!C11 -> 7585 | E64: ='C6-FinPos'!D11 -> 8490 | F64: ='C6-FinPos'!E11 -> 8490 | G64: =F64-'C6-FinPos'!G11 -> 0 | H64: ='C6-FinPos'!H11 -> 0
A65: Attorney collections

Sheet SC3
A1: =muni& " - "&S71I& " - "&Head57 -> NC074 Kareeberg - Supporting Table SC3 Monthly Budget Statement - aged debtors - M06 December
A2: =desc -> Description | C2: =Head2 -> Budget Year 2016/17
A3: R thousands | B3: NT Code | C3: 0-30 Days | D3: 31-60 Days | E3: 61-90 Days | F3: 91-120 Days | G3: 121-150 Dys | H3: 151-180 Dys | I3: 181 Dys-1 Yr | J3: Over 1Yr | K3: Total | L3: Total over 90 days | M3: Actual Bad Debts Written Off against Debtors | N3: Impairment - Bad Debts i.t.o Council Policy
A4: Debtors Age Analysis By Income Source
A5: Trade and Other Receivables from Exchange Transactions - Water | B5: 1200 | K5: =SUM(C5:J5) -> 0 | L5: =SUM(F5:J5) -> 0
A6: Trade and Other Receivables from Exchange Transactions - Electricity | B6: 1300 | K6: =SUM(C6:J6) -> 0 | L6: =SUM(F6:J6) -> 0
A7: Receivables from Non-exchange Transactions - Property Rates | B7: 1400 | K7: =SUM(C7:J7) -> 0 | L7: 0
A8: Receivables from Exchange Transactions - Waste Water Management | B8: 1500 | K8: 0 | L8: 0
A9: Receivables from Exchange Transactions - Waste Management | B9: 1600 | K9: 0 | L9: =SUM(F9:J9) -> 0
A10: Receivables from Exchange Transactions - Property Rental Debtors | B10: 1700 | K10: 0 | L10: =SUM(F10:J10) -> 0
A11: Interest on Arrear Debtor Accounts | B11: 1810 | K11: 0 | L11: 0
A12: Recoverable unauthorised, irregular, fruitless and wasteful expenditure | B12: 1820 | K12: 0 | L12: 0
A13: Other | B13: 1900 | K13: 0 | L13: =SUM(F13:J13) -> 0
A14: Total By Income Source | B14: 2000 | C14: =SUM(C5:C13) -> 0 | D14: 0 | E14: 0 | F14: 0 | G14: 0 | H14: 0 | I14: 0 | J14: 0 | K14: 0 | L14: =SUM(L5:L13) -> 0 | M14: 0 | N14: 0
A15: =Head1&" - totals only" -> 2015/16 - totals only | K15: =SUM(C15:J15) -> 0 | L15: =SUM(F15:J15) -> 0
A16: Debtors Age Analysis By Customer Group
A17: Organs of State | B17: 2200 | K17: =SUM(C17:J17) -> 0 | L17: =SUM(F17:J17) -> 0
A18: Commercial | B18: 2300 | K18: =SUM(C18:J18) -> 0 | L18: =SUM(F18:J18) -> 0
A19: Households | B19: 2400 | K19: =SUM(C19:J19) -> 0 | L19: =SUM(F19:J19) -> 0
A20: Other | B20: 2500 | K20: =SUM(C20:J20) -> 0 | L20: =SUM(F20:J20) -> 0
A21: Total By Customer Group | B21: 2600 | C21: =SUM(C17:C20) -> 0 | D21: 0 | E21: 0 | F21: 0 | G21: 0 | H21: 0 | I21: 0 | J21: =SUM(J17:J20) -> 0 | K21: =SUM(K17:K20) -> 0 | L21: =SUM(L17:L20) -> 0 | M21: =SUM(M17:M20) -> 0 | N21: =SUM(N17:N20) -> 0
A22: Notes
A23: Material increases in value of debtors' categories compared to previous month to be explained
A24: Bad debts = amounts actually written off in the month
A25: Total by Income Source must reconcile with Total by Customer Group
C26: =C14-C21 -> 0 | D26: =D14-D21 -> 0 | E26: =E14-E21 -> 0 | F26: 0 | G26: 0 | H26: 0 | I26: 0 | J26: =J14-J21 -> 0 | K26: 0
C27: =IF(C26=0,"","MUST AGREE") ->  | D27: =IF(D26=0,"","MUST AGREE") -> 

Sheet SC4
A1: =muni& " - "&S71J& " - "&Head57 -> NC074 Kareeberg - Supporting Table SC4 Monthly Budget Statement - aged creditors - M06 December
A2: =desc -> Description | B2: NT Code | C2: =Head2 -> Budget Year 2016/17 | L2: Prior year totals for chart (same period)
C3: 0 - 30 Days | D3: 31 - 60 Days | E3: 61 - 90 Days | F3: 91 - 120 Days | G3: 121 - 150 Days | H3: 151 - 180 Days | I3: 181 Days - 1 Year | J3: Over 1 Year | K3: Total
A4: R thousands
A5: Creditors Age Analysis By Customer Type
A6: Bulk Electricity | B6: 0100 | K6: =SUM(C6:J6) -> 0
A7: Bulk Water | B7: 0200 | K7: =SUM(C7:J7) -> 0
A8: PAYE deductions | B8: 0300 | K8: 0
A9: VAT (output less input) | B9: 0400 | K9: 0
A10: Pensions / Retirement deductions | B10: 0500 | K10: 0
A11: Loan repayments | B11: 0600 | K11: 0
A12: Trade Creditors | B12: 0700 | K12: 0
A13: Auditor General | B13: 0800 | K13: 0
A14: Other | B14: 0900 | K14: =SUM(C14:J14) -> 0
A15: Total By Customer Type | B15: 1000 | C15: =SUM(C6:C14) -> 0 | D15: =SUM(D6:D14) -> 0 | E15: 0 | F15: 0 | G15: 0 | H15: 0 | I15: 0 | J15: 0 | K15: =SUM(K6:K14) -> 0 | L15: =SUM(L6:L14) -> 0
A16: Notes
A17: Material increases in value of creditors' categories compared to previous month to be explained

Sheet SC5
A1: =muni& " - "&S71K& " - "&Head57 -> NC074 Kareeberg - Supporting Table SC5 Monthly Budget Statement - investment portfolio - M06 December
A2: Investments by maturity Name of institution & investment ID | B2: Ref | C2: Period of Investment | D2: Type of Investment | E2: Expiry date of investment | F2: Accrued interest for the month | G2: Yield for the month 1 (%) | H2: Market value at beginning of the month | I2: Change in market value | J2: Market value at end of the month
A3: R thousands | C3: Yrs/Months
A4: Municipality
A5: Capital Replacement Reserve | C5: 32 days | D5: fixed deposit | I5: =J5-H5 -> 0
A6: Housing Fund | C6: 1 day | D6: call deposit | I6: =J6-H6 -> 0
A7: Job creation - De Bult | C7: 32 days | D7: notice deposit | I7: 0
A8: Land development | C8: 1 day | D8: call deposit | I8: 0
A9: Land development | C9: 32 days | D9: notice deposit | I9: 0
A10: Land development | C10: 1 day | D10: call deposit | I10: 0
A11: Civil Defence | C11: 32 days | D11: notice deposit | I11: 0
A12: EPWP Vosburg dust | I12: 0
A13: CMIP Kwaggakolk(vat) | C13: 1 day | D13: call deposit | I13: 0
A14: MSIG | C14: 1 day | D14: call deposit | I14: 0
A15: MIG Sanitation interest/vat | C15: 1 day | D15: call deposit | I15: 0
A16: Electricity | C16: 1 day | D16: call deposit | I16: 0
A17: Water Services Plan | C17: 1 day | D17: call deposit | I17: 0
A18: CMIP-Saaipoort project 301 | C18: 1 day | D18: call deposit | I18: 0
A19: Library Development Projects | C19: 1 day | D19: call deposit | I19: 0
A20: EPWP - Paving/ Cleaning | C20: 1 day | D20: call deposit | I20: 0
A21: Lotto Carnarvon | C21: 1 day | D21: call deposit | I21: 0
A22: Lotto Vosburg | C22: 1 day | D22: call deposit | I22: 0
A23: Finance Management Grant | C23: 1 day | D23: call deposit | I23: 0
A24: Transfer Fees Sub-Economic Housing | C24: 32 days | D24: notice deposit | I24: 0
A25: VB Cleaning Project | C25: 1 day | D25: call deposit | I25: 0
A26: VAT - retention | C26: 1 day | D26: call deposit | I26: 0
A27: EPWP | C27: 1 day | D27: call deposit | I27: 0
A28: MIG | C28: 1 day | D28: call deposit | I28: 0
A29: Youth development | C29: 1 day | D29: call deposit | I29: 0
A30: Leave, PMS and Long Service Funds | C30: 1 day | D30: call deposit | I30: 0
A31: Provision for Employee benefits | C31: 1 day | D31: call deposit | I31: 0
A32: Retension | C32: 1 day | D32: call deposit | I32: 0
A33: Reserves | C33: 1 day | D33: call deposit | I33: 0
A34: General Account | C34: 1 day | D34: call deposit | I34: 0
A36: Municipality sub-total | F36: =SUM(F5:F35) -> 0 | H36: =SUM(H5:H35) -> 0 | I36: =SUM(I5:I35) -> 0 | J36: =SUM(J5:J35) -> 0
A38: Entities
A46: Entities sub-total | F46: =SUM(F39:F45) -> 0 | H46: =SUM(H39:H45) -> 0 | I46: =SUM(I39:I45) -> 0 | J46: =SUM(J39:J45) -> 0
A48: TOTAL INVESTMENTS AND INTEREST | B48: 2 | F48: =F36+F46 -> 0 | H48: =H36+H46 -> 0 | I48: =I36+I46 -> 0 | J48: =J36+J46 -> 0
A49: =head27a -> References
A50: 1. Yield is calculated as the annualised equivalent
A51: 2. Total market value must reconcile with the total of investments on the 'Financial Position statement'

Sheet SC6
A1: =muni& " - "&S71L& " - "&Head57 -> NC074 Kareeberg - Supporting Table SC6 Monthly Budget Statement - transfers and grant receipts - M06 December
A2: =desc -> Description | B2: =head27 -> Ref | C2: =Head1 -> 2015/16 | D2: =Head2 -> Budget Year 2016/17
C3: =Head5 -> Audited Outcome | D3: =Head6 -> Original Budget | E3: =Head7 -> Adjusted Budget | F3: =Head38 -> Monthly actual | G3: =Head39 -> YearTD actual | H3: =Head40 -> YearTD budget | I3: =Head41 -> YTD variance | J3: =Head41 -> YTD variance | K3: =Head8 -> Full Year Forecast
A4: R thousands | J4: %
A5: RECEIPTS: | B5: 1,2
A7: Operating Transfers and Grants
A8: National Government: | C8: =SUM(C9:C19) -> 21683452 | D8: 21744000 | E8: 21744000 | F8: 0 | G8: 9958000 | H8: 7254750 | I8: 3453250 | J8: =IF(I8=0,"",I8/H8) -> 0.4759984838 | K8: =SUM(K9:K19) -> 21744000
A9: Local Government Equitable Share | C9: 18021000 | D9: 18919000 | E9: 18919000 | G9: 7883000 | H9: 4429750 | I9: =G9-H9 -> 3453250 | J9: 0.7795586658 | K9: 18919000
A10: Finance Management | C10: 1796250 | D10: 1825000 | E10: 1825000 | F10: 0 | G10: 1825000 | H10: 1825000 | K10: 1825000
A11: EPWP Incentive | C11: 822806 | D11: 1000000 | E11: 1000000 | F11: 0 | G11: 250000 | H11: 1000000 | K11: 1000000
A12: Municipal Systems Improvement | C12: 930000
A13: Department of Water Affairs and Forestry | C13: 113396
B14: 3 | I14: 0
I15: 0
I16: 0
I17: 0
I18: 0
A19: Other transfers and grants [insert description] | I19: 0
A20: Provincial Government: | C20: =SUM(C21:C26) -> 1272543 | D20: 1331000 | E20: 1331000 | F20: 0 | G20: 665500 | H20: 665500 | I20: 0 | K20: =SUM(K21:K26) -> 1331000
A21: Sport and Recreation | C21: 1176879 | D21: 1331000 | E21: 1331000 | G21: 665500 | H21: 665500 | I21: =G21-H21 -> 0 | K21: 1331000
A22: Expanded Public Works Programme | C22: 5453
A23: DWAF | C23: 90211 | I23: 0
B24: 4 | I24: 0
I25: 0
A26: Other transfers and grants [insert description] | I26: 0
A27: District Municipality: | C27: =SUM(C28:C29) -> 0 | D27: 0 | E27: 0 | F27: 0 | G27: 0 | H27: 0 | I27: 0 | K27: =SUM(K28:K29) -> 0
A28: [insert description] | I28: 0
I29: 0
A30: Other grant providers: | C30: =SUM(C31:C37) -> 113233 | D30: 0 | E30: 0 | F30: 0 | G30: 0 | H30: 0 | I30: 0 | K30: =SUM(K31:K37) -> 0
A31: Sanitation interest | C31: 113233 | I31: 0
I37: 0
A38: Total Operating Transfers and Grants | B38: 5 | C38: =C8+C20+C27+C30 -> 23069228 | D38: 23075000 | E38: 23075000 | F38: 0 | G38: 10623500 | H38: 7920250 | I38: 3453250 | J38: 0.4360026514 | K38: =K8+K20+K27+K30 -> 23075000
A40: Capital Transfers and Grants
A41: =A8 -> National Government: | C41: =SUM(C42:C51) -> 7431032 | D41: 23669000 | E41: 23669000 | F41: 0 | G41: 5200000 | H41: 7889666.667 | I41: -2189666.667 | J41: =IF(I41=0,"",I41/H41) -> -0.2775360176 | K41: 23669000
A42: Municipal Infrastructure Grant (MIG) | C42: 5828000 | D42: 7669000 | E42: 7669000 | G42: 4200000 | H42: 6389666.667 | I42: =G42-H42 -> -2189666.667 | J42: -0.3426887162 | K42: 7669000
A43: Regional Bulk Infrastructure | C43: 1422088 | D43: 15000000 | E43: 15000000 | G43: 0 | H43: 1500000 | K43: 15000000
A44: Integrated National Electrification Programme Grant | D44: 1000000 | E44: 1000000 | F44: 0 | G44: 1000000 | K44: 1000000
A45: Municipal Finance Management | C45: 3750
A46: EPWP Incentive | C46: 177194
I47: 0
I48: 0
I49: 0
I50: 0
A51: Other capital transfers [insert description] | I51: 0
A52: =A20 -> Provincial Government: | C52: =SUM(C53:C58) -> 266600 | D52: 0 | E52: 0 | F52: 0 | G52: 0 | H52: 0 | I52: =G52-H52 -> 0 | J52: =IF(I52=0,"",I52/H52) ->  | K52: =SUM(K53:K58) -> 0
A53: Sport and Recreation | C53: 132121 | I53: 0 | J53: =IF(I53=0,"",I53/H53) -> 
A54: Expanded Public Works Programme | C54: 87055
A55: Department of Water Affairs and Forestry | C55: 47424
I58: 0
A59: =A27 -> District Municipality: | C59: =SUM(C60:C61) -> 0 | D59: 0 | E59: 0 | F59: 0 | G59: 0 | H59: 0 | I59: 0 | K59: =SUM(K60:K61) -> 0
A60: [insert description] | I60: 0
I61: 0
A62: =A30 -> Other grant providers: | C62: =SUM(C63:C68) -> 0 | D62: 0 | E62: 0 | F62: 0 | G62: 0 | H62: 0 | I62: 0 | K62: =SUM(K63:K68) -> 0
A63: [insert description] | I63: 0 | J63: =IF(I63=0,"",I63/H63) -> 
I68: 0
A69: Total Capital Transfers and Grants | B69: 5 | C69: =C41+C52+C59+C62 -> 7697632 | D69: =D41+D52+D59+D62 -> 23669000 | E69: 23669000 | F69: 0 | G69: 5200000 | H69: 7889666.667 | I69: -2189666.667 | J69: -0.2775360176 | K69: 23669000
A71: TOTAL RECEIPTS OF TRANSFERS & GRANTS | B71: 5 | C71: =C38+C69 -> 30766860 | D71: 46744000 | E71: 46744000 | F71: 0 | G71: 15823500 | H71: 15809916.67 | I71: 1263583.333 | J71: 0.07992346576 | K71: 46744000
A72: =head27a -> References
A73: 1. Each grant is listed by name as gazetted together with the name of the transferring department or municipality, donor or other organisation
A74: 2. Grant expenditure must be separately listed for each grant received
A75: 3. Replacement of RSC levies
A76: 4. Housing subsidies for housing where ownership transferred
A77: 5. Total recurrent/capital grants and subsidies must reconcile to the 'Financial Performance' Statement

Sheet SC7(1)
A1: =muni& " - "&S71M& " - "&Head57 -> NC074 Kareeberg - Supporting Table SC7(1) Monthly Budget Statement - transfers and grant expenditure - M06 December
A2: =desc -> Description | B2: =head27 -> Ref | C2: =Head1 -> 2015/16 | D2: =Head2 -> Budget Year 2016/17
C3: =Head5 -> Audited Outcome | D3: =Head6 -> Original Budget | E3: =Head7 -> Adjusted Budget | F3: =Head38 -> Monthly actual | G3: =Head39 -> YearTD actual | H3: =Head40 -> YearTD budget | I3: =Head41 -> YTD variance | J3: =Head41 -> YTD variance | K3: =Head8 -> Full Year Forecast
A4: R thousands | J4: %
A5: EXPENDITURE
A7: Operating expenditure of Transfers and Grants
A8: ='SC6'!A8 -> National Government: | C8: =SUM(C9:C15) -> 12462713 | D8: 12016274 | E8: 12016274 | F8: 0 | G8: 2102532.73 | H8: 2605350.65 | I8: -502817.92 | J8: =IF(I8=0,"",I8/H8) -> -0.1929943365 | K8: =SUM(K9:K15) -> 12016274
A9: ='SC6'!A9 -> Local Government Equitable Share | C9: 9303352 | D9: 9191274 | E9: 9191274 | F9: 0 | G9: 1794987.83 | H9: 2297805.75 | I9: =G9-H9 -> -502817.92 | J9: -0.218825251 | K9: 9191274
A10: ='SC6'!A10 -> Finance Management | C10: 1565765 | D10: 1825000 | E10: 1825000 | F10: 0 | G10: 237733.7 | H10: 237733.7 | I10: 0 | K10: 1825000
A11: ='SC6'!A11 -> EPWP Incentive | C11: 798559 | D11: 1000000 | E11: 1000000 | F11: 0 | G11: 69811.2 | H11: 69811.2 | I11: 0 | K11: 1000000
A12: ='SC6'!A12 -> Municipal Systems Improvement | C12: 795037 | I12: 0
A13: ='SC6'!A13 -> Department of Water Affairs and Forestry | I13: 0
A14: ='SC6'!A14 -> 0 | I14: 0
A15: ='SC6'!A19 -> Other transfers and grants [insert description] | I15: 0
A16: ='SC6'!A20 -> Provincial Government: | C16: =SUM(C17:C22) -> 1462528 | D16: 1331000 | E16: 1331000 | F16: 0 | G16: 196609.87 | H16: 196609.87 | I16: 0 | K16: =SUM(K17:K22) -> 0
A17: ='SC6'!A21 -> Sport and Recreation | C17: 1176880 | D17: 1331000 | E17: 1331000 | F17: 0 | G17: 196609.87 | H17: 196609.87 | I17: =G17-H17 -> 0
A18: ='SC6'!A22 -> Expanded Public Works Programme | C18: 195437
A19: ='SC6'!A23 -> DWAF | C19: 90211 | I19: 0
A20: ='SC6'!A24 -> 0 | I20: 0
A21: ='SC6'!A25 -> 0 | I21: 0
A22: ='SC6'!A26 -> Other transfers and grants [insert description] | I22: 0
A23: ='SC6'!A27 -> District Municipality: | C23: =SUM(C24:C25) -> 0 | D23: 0 | E23: =SUM(E24:E25) -> 0 | F23: 0 | G23: 0 | H23: 0 | I23: 0 | K23: =SUM(K24:K25) -> 0
I24: 0
A25: ='SC6'!A28 -> [insert description] | I25: 0
A26: ='SC6'!A30 -> Other grant providers: | C26: =SUM(C27:C28) -> 99327 | D26: 0 | E26: 0 | F26: 0 | G26: 0 | H26: 0 | I26: 0 | K26: =SUM(K27:K28) -> 0
I27: 0
A28: ='SC6'!A31 -> Sanitation interest | C28: 99327 | I28: 0
A29: Total operating expenditure of Transfers and Grants: | C29: =C8+C16+C23+C26 -> 14024568 | D29: =D8+D16+D23+D26 -> 13347274 | E29: 13347274 | F29: 0 | G29: 2299142.6 | H29: 2801960.52 | I29: -502817.92 | J29: -0.1794521787 | K29: =K8+K16+K23+K26 -> 12016274
A31: Capital expenditure of Transfers and Grants
A32: ='SC6'!A41 -> National Government: | C32: =SUM(C33:C38) -> 6798362 | D32: 23669000 | E32: 23669000 | F32: 0 | G32: 59193 | H32: 6334500 | I32: -6275307 | J32: =IF(I32=0,"",I32/H32) -> -0.9906554582 | K32: 23669000
A33: ='SC6'!A42 -> Municipal Infrastructure Grant (MIG) | C33: 5174737 | D33: 7669000 | E33: 7669000 | F33: 0 | G33: 59193 | H33: 4834500 | I33: =G33-H33 -> -4775307 | J33: -0.9877561278 | K33: 7669000
A34: ='SC6'!A43 -> Regional Bulk Infrastructure | C34: 1422088 | D34: 15000000 | E34: 15000000 | G34: 0 | H34: 1500000 | I34: -1500000 | J34: -1 | K34: 15000000
A35: ='SC6'!A44 -> Integrated National Electrification Programme Grant | D35: 1000000 | E35: 1000000 | G35: 0 | I35: 0 | K35: 1000000
A36: ='SC6'!A45 -> Municipal Finance Management | C36: 24342 | I36: 0
A37: ='SC6'!A46 -> EPWP Incentive | C37: 177195 | I37: 0
A38: ='SC6'!A47 -> 0 | I38: 0
A39: ='SC6'!A52 -> Provincial Government: | C39: =SUM(C40:C41) -> 219175 | D39: 0 | E39: 0 | F39: 0 | G39: 0 | H39: 0 | I39: =G39-H39 -> 0 | K39: =SUM(K40:K41) -> 0
A40: ='SC6'!A53 -> Sport and Recreation | C40: 132120 | I40: 0
A41: ='SC6'!A54 -> Expanded Public Works Programme | C41: 87055 | I41: 0
A42: ='SC6'!A59 -> District Municipality: | C42: =SUM(C43:C44) -> 0 | D42: 0 | E42: 0 | F42: 0 | G42: 0 | H42: 0 | I42: 0 | K42: =SUM(K43:K44) -> 0
I43: 0
A44: ='SC6'!A61 -> 0 | I44: 0
A45: ='SC6'!A62 -> Other grant providers: | C45: =SUM(C46:C47) -> 0 | D45: 0 | E45: 0 | F45: 0 | G45: 0 | H45: 0 | I45: 0 | K45: =SUM(K46:K47) -> 0
I46: 0
A47: ='SC6'!A68 -> 0 | I47: 0
A48: Total capital expenditure of Transfers and Grants | C48: =C32+C39+C42+C45 -> 7017537 | D48: =D32+D39+D42+D45 -> 23669000 | E48: 23669000 | F48: 0 | G48: 59193 | H48: 6334500 | I48: -6275307 | J48: =IF(I48=0,"",I48/H48) -> -0.9906554582 | K48: 23669000
A50: TOTAL EXPENDITURE OF TRANSFERS AND GRANTS | C50: =C29+C48 -> 21042105 | D50: 37016274 | E50: 37016274 | F50: 0 | G50: 2358335.6 | H50: 9136460.52 | I50: -6778124.92 | J50: =IF(I50=0,"",I50/H50) -> -0.7418764526 | K50: 35685274
A51: =head27a -> References

Sheet SC7(2)
A1: =muni& " - "&S71T& " - "&Head57 -> NC074 Kareeberg - Supporting Table SC7(2) Monthly Budget Statement - Expenditure against approved rollovers - M06 December
A2: =desc -> Description | B2: =head27 -> Ref | C2: =Head2 -> Budget Year 2016/17
C3: ="Approved Rollover " &Head1 -> Approved Rollover 2015/16 | D3: =Head38 -> Monthly actual | E3: =Head39 -> YearTD actual | F3: =Head41 -> YTD variance | G3: =Head41 -> YTD variance
A4: R thousands | G4: %
A5: EXPENDITURE
A7: Operating expenditure of Approved Roll-overs
A8: ='SC6'!A8 -> National Government: | C8: =SUM(C9:C15) -> 0 | D8: =SUM(D9:D15) -> 0 | E8: =SUM(E9:E15) -> 0 | F8: =SUM(F9:F15) -> 0 | G8: =IF(F8=0,"",F8/C8) -> 
A9: ='SC6'!A9 -> Local Government Equitable Share | F9: =E9-C9 -> 0 | G9: =IF(F9=0,"",F9/C9) -> 
A10: ='SC6'!A10 -> Finance Management | F10: =C10-E10 -> 0
A11: ='SC6'!A11 -> EPWP Incentive | F11: 0
A12: ='SC6'!A12 -> Municipal Systems Improvement | F12: 0
A13: ='SC6'!A13 -> Department of Water Affairs and Forestry | F13: 0
A14: ='SC6'!A14 -> 0 | F14: 0
A15: ='SC6'!A19 -> Other transfers and grants [insert description] | F15: 0
A16: ='SC6'!A20 -> Provincial Government: | C16: =SUM(C17:C21) -> 0 | D16: =SUM(D17:D21) -> 0 | E16: =SUM(E17:E21) -> 0 | F16: =SUM(F17:F21) -> 0
A17: ='SC6'!A21 -> Sport and Recreation | F17: =C17-E17 -> 0
A18: ='SC6'!A23 -> DWAF | F18: =C18-E18 -> 0
A19: ='SC6'!A24 -> 0 | F19: =C19-E19 -> 0
A20: ='SC6'!A25 -> 0 | F20: =C20-E20 -> 0
A21: ='SC6'!A26 -> Other transfers and grants [insert description] | F21: =C21-E21 -> 0
A22: ='SC6'!A27 -> District Municipality: | C22: =SUM(C23:C24) -> 0 | D22: =SUM(D23:D24) -> 0 | E22: =SUM(E23:E24) -> 0 | F22: =SUM(F23:F24) -> 0
F23: =C23-E23 -> 0
A24: ='SC6'!A28 -> [insert description] | F24: =C24-E24 -> 0
A25: ='SC6'!A30 -> Other grant providers: | C25: =SUM(C26:C27) -> 0 | D25: =SUM(D26:D27) -> 0 | E25: =SUM(E26:E27) -> 0 | F25: =SUM(F26:F27) -> 0
F26: =C26-E26 -> 0
A27: ='SC6'!A31 -> Sanitation interest | F27: =C27-E27 -> 0
A28: Total operating expenditure of Approved Roll-overs | C28: =C8+C16+C22+C25 -> 0 | D28: =D8+D16+D22+D25 -> 0 | E28: =E8+E16+E22+E25 -> 0 | F28: =F8+F16+F22+F25 -> 0
A30: Capital expenditure of Approved Roll-overs
A31: ='SC6'!A41 -> National Government: | C31: =SUM(C32:C37) -> 0 | D31: =SUM(D32:D37) -> 0 | E31: =SUM(E32:E37) -> 0 | F31: =SUM(F32:F37) -> 0
A32: ='SC6'!A42 -> Municipal Infrastructure Grant (MIG) | F32: =C32-E32 -> 0
A33: ='SC6'!A47 -> 0 | F33: 0
A34: ='SC6'!A48 -> 0 | F34: 0
A35: ='SC6'!A49 -> 0 | F35: 0
A36: ='SC6'!A50 -> 0 | F36: 0
A37: ='SC6'!A51 -> Other capital transfers [insert description] | F37: 0
A38: ='SC6'!A52 -> Provincial Government: | C38: =SUM(C39:C40) -> 0 | D38: =SUM(D39:D40) -> 0 | E38: =SUM(E39:E40) -> 0 | F38: =SUM(F39:F40) -> 0
F39: =C39-E39 -> 0
A40: ='SC6'!A58 -> 0 | F40: =C40-E40 -> 0
A41: ='SC6'!A59 -> District Municipality: | C41: =SUM(C42:C43) -> 0 | D41: =SUM(D42:D43) -> 0 | E41: =SUM(E42:E43) -> 0 | F41: =SUM(F42:F43) -> 0
F42: =C42-E42 -> 0
A43: ='SC6'!A61 -> 0 | F43: =C43-E43 -> 0
A44: ='SC6'!A62 -> Other grant providers: | C44: =SUM(C45:C46) -> 0 | D44: =SUM(D45:D46) -> 0 | E44: =SUM(E45:E46) -> 0 | F44: =SUM(F45:F46) -> 0
F45: =C45-E45 -> 0
A46: ='SC6'!A68 -> 0 | F46: =C46-E46 -> 0
A47: Total capital expenditure of Approved Roll-overs | C47: =C31+C38+C41+C44 -> 0 | D47: =D31+D38+D41+D44 -> 0 | E47: =E31+E38+E41+E44 -> 0 | F47: =F31+F38+F41+F44 -> 0
A49: TOTAL EXPENDITURE OF APPROVED ROLL-OVERS | C49: =C28+C47 -> 0 | D49: =D28+D47 -> 0 | E49: =E28+E47 -> 0 | F49: =F28+F47 -> 0
A50: =head27a -> References

Sheet SC8
A1: =muni& " - "&S71N& " - "&Head57 -> NC074 Kareeberg - Supporting Table SC8 Monthly Budget Statement - councillor and staff benefits - M06 December
A2: Summary of Employee and Councillor remuneration | B2: =head27 -> Ref | C2: =Head1 -> 2015/16 | D2: =Head2 -> Budget Year 2016/17
C3: =Head5 -> Audited Outcome | D3: =Head6 -> Original Budget | E3: =Head7 -> Adjusted Budget | F3: =Head38 -> Monthly actual | G3: =Head39 -> YearTD actual | H3: =Head40 -> YearTD budget | I3: =Head41 -> YTD variance | J3: =Head41 -> YTD variance | K3: =Head8 -> Full Year Forecast
A4: R thousands | J4: %
B5: 1 | C5: A | D5: B | E5: C | K5: D
A6: Councillors (Political Office Bearers plus Other)
A7: Basic Salaries and Wages | C7: 1618421 | D7: 1772840 | E7: 1772840 | F7: 0 | G7: 243766.3 | H7: 295473.3333 | I7: =G7-H7 -> -51707.03333 | J7: =IF(I7=0,"",I7/H7) -> -0.1749972925 | K7: 1772840
A8: Pension and UIF Contributions | D8: 0 | E8: 0 | I8: 0 | K8: 0
A9: Medical Aid Contributions | D9: 0 | E9: 0 | I9: 0 | K9: 0
A10: Motor Vehicle Allowance | C10: 539808 | D10: 565867 | E10: 565867 | F10: 0 | G10: 81254.59 | H10: 94311.16667 | I10: =G10-H10 -> -13056.57667 | J10: =IF(I10=0,"",I10/H10) -> -0.1384414712 | K10: 565867
A11: Cellphone Allowance | C11: 121284 | D11: 160684 | E11: 160684 | F11: 0 | G11: 18782.01 | H11: 26780.66667 | I11: =G11-H11 -> -7998.656667 | J11: =IF(I11=0,"",I11/H11) -> -0.2986727988 | K11: 160684
A12: Housing Allowances | I12: =G12-H12 -> 0 | J12: =IF(I12=0,"",I12/H12) -> 
A13: Other benefits and allowances | I13: 0
A14: Sub Total - Councillors | C14: =SUM(C7:C13) -> 2279513 | D14: 2499391 | E14: 2499391 | F14: 0 | G14: 343802.9 | H14: 416565.1667 | I14: -72762.26667 | J14: -0.1746719901 | K14: 2499391
A15: % increase | B15: 4 | D15: =IF(D14=0,"",(D14/C14)-1) -> 0.09645832246 | E15: =IF(E14=0,"",(E14/C14)-1) -> 0.09645832246 | K15: =IF(K14=0,"",(K14/C14)-1) -> 0.09645832246
A17: Senior Managers of the Municipality | B17: 3
A18: Basic Salaries and Wages | C18: 3016772 | D18: 3250234 | E18: 3250234 | F18: 0 | G18: 502256 | H18: 541704 | I18: =G18-H18 -> -39448 | J18: =IF(I18=0,"",I18/H18) -> -0.0728220578 | K18: 3250234
A19: Pension and UIF Contributions | C19: 356537 | D19: 459743 | E19: 459743 | F19: 0 | G19: 40633.3 | H19: 76622 | I19: -35988.7 | J19: -0.4696914724 | K19: 459743
A20: Medical Aid Contributions | C20: 134232 | D20: 151396 | E20: 151396 | F20: 0 | G20: 21815.2 | H20: 25232 | I20: -3416.8 | J20: -0.1354153456 | K20: 151396
A21: Overtime | D21: 0 | E21: 0 | G21: 0 | I21: 0 | K21: 0
A22: Performance Bonus | C22: 321427 | D22: 202543 | E22: 202543 | G22: 0 | H22: 0 | I22: =G22-H22 -> 0 | J22: =IF(I22=0,"",I22/H22) ->  | K22: 202543
A23: Motor Vehicle Allowance | C23: 505023 | D23: 501525 | E23: 501525 | F23: 0 | G23: 83196 | H23: 83586 | I23: =G23-H23 -> -390 | J23: =IF(I23=0,"",I23/H23) -> -0.004665853133 | K23: 501525
A24: Cellphone Allowance | D24: 0 | E24: 0 | G24: 0 | I24: =G24-H24 -> 0 | J24: =IF(I24=0,"",I24/H24) ->  | K24: 0
A25: Housing Allowances | D25: 0 | E25: 0 | G25: 0 | I25: =G25-H25 -> 0 | J25: =IF(I25=0,"",I25/H25) ->  | K25: 0
A26: Other benefits and allowances | C26: 348 | D26: 39168 | E26: 39168 | F26: 23.04 | G26: 46.08 | H26: 6528 | I26: -6481.92 | J26: -0.9929411765 | K26: 39168
A27: Payments in lieu of leave | D27: 0 | E27: 0 | G27: 0 | I27: 0
A28: Long service awards | C28: 65533 | D28: 0 | E28: 0 | G28: 0 | I28: 0
A29: Post-retirement benefit obligations | B29: 2 | G29: 0 | I29: 0
A30: Sub Total - Senior Managers of Municipality | C30: =SUM(C18:C29) -> 4399872 | D30: 4604609 | E30: 4604609 | F30: =SUM(F18:F29) -> 23.04 | G30: =SUM(G18:G29) -> 647946.58 | H30: =SUM(H18:H29) -> 733672 | I30: -85725.42 | J30: =IF(I30=0,"",I30/H30) -> -0.1168443392 | K30: 4604609
A31: % increase | B31: 4 | D31: =IF(D30=0,"",(D30/C30)-1) -> 0.04653249004 | E31: =IF(E30=0,"",(E30/C30)-1) -> 0.04653249004 | K31: =IF(K30=0,"",(K30/C30)-1) -> 0.04653249004
A33: Other Municipal Staff
A34: Basic Salaries and Wages | C34: 8816565 | D34: 12198167 | E34: 12198167 | F34: 0 | G34: 1305379.98 | H34: 1250319.833 | I34: =G34-H34 -> 55060.14667 | J34: =IF(I34=0,"",I34/H34) -> 0.04403684977 | K34: 12198167
A35: Pension and UIF Contributions | C35: 1494270 | D35: 1707767 | E35: 1707767 | F35: 0 | G35: 341093.17 | H35: 284627.8333 | I35: 56465.33667 | J35: 0.1983830464 | K35: 1707767
A36: Medical Aid Contributions | C36: 324491 | D36: 493000 | E36: 493000 | F36: 0 | G36: 45944 | H36: 82166.66667 | I36: -36222.66667 | J36: -0.4408438134 | K36: 493000
A37: Overtime | C37: 638230 | D37: 300000 | E37: 300000 | F37: 0 | G37: 93565.96 | H37: 50000 | I37: 43565.96 | J37: 0.8713192 | K37: 300000
A38: Performance Bonus | D38: 0 | E38: 0 | G38: 0 | I38: 0 | K38: 0
A39: Motor Vehicle Allowance | C39: 84048 | D39: 83466 | E39: 83466 | F39: 0 | G39: 13846 | H39: 13911 | I39: =G39-H39 -> -65 | J39: =IF(I39=0,"",I39/H39) -> -0.004672561282 | K39: 83466
A40: Cellphone Allowance | D40: 0 | E40: 0 | G40: 0 | I40: =G40-H40 -> 0 | J40: =IF(I40=0,"",I40/H40) ->  | K40: 0
A41: Housing Allowances | C41: 129207 | D41: 142800 | E41: 142800 | F41: 0 | G41: 21339.1 | H41: 23800 | I41: =G41-H41 -> -2460.9 | J41: =IF(I41=0,"",I41/H41) -> -0.1033991597 | K41: 142800
A42: Other benefits and allowances | C42: 116848 | D42: 680809 | E42: 680809 | F42: 0 | G42: 16841.85 | H42: 113468.1667 | I42: -96626.31667 | J42: -0.8515720268 | K42: 680809
A43: Payments in lieu of leave | D43: 0 | E43: 0 | G43: 0 | I43: 0 | K43: 0
A44: Long service awards | C44: 97921 | D44: 0 | E44: 0 | F44: 0 | G44: 33146.4 | I44: 33146.4 | K44: 0
A45: Post-retirement benefit obligations | B45: 2 | C45: 1000000 | D45: 791138 | E45: 791138 | G45: 0 | H45: 0 | I45: 0 | K45: 791138
A46: Sub Total - Other Municipal Staff | C46: =SUM(C34:C45) -> 12701580 | D46: 16397147 | E46: 16397147 | F46: =SUM(F34:F45) -> 0 | G46: =SUM(G34:G45) -> 1871156.46 | H46: =SUM(H34:H45) -> 1818293.5 | I46: 52862.96 | J46: =IF(I46=0,"",I46/H46) -> 0.0290728422 | K46: 16397147
A47: % increase | B47: 4 | D47: =IF(D46=0,"",(D46/C46)-1) -> 0.2909533302 | E47: =IF(E46=0,"",(E46/C46)-1) -> 0.2909533302 | K47: =IF(K46=0,"",(K46/C46)-1) -> 0.2909533302
A49: Total Parent Municipality | C49: =C14+C30+C46 -> 19380965 | D49: =D14+D30+D46 -> 23501147 | E49: 23501147 | F49: 23.04 | G49: 2862905.94 | H49: 2968530.667 | I49: =G49-H49 -> -105624.7267 | J49: =IF(I49=0,"",I49/H49) -> -0.03558148408 | K49: 23501147
D50: =IF(D49=0,"",(D49/C49)-1) -> 0.2125891048 | E50: =IF(E49=0,"",(E49/C49)-1) -> 0.2125891048 | K50: =IF(K49=0,"",(K49/C49)-1) -> 0.2125891048
A51: Unpaid salary, allowances & benefits in arrears:
A53: Board Members of Entities
A54: Basic Salaries and Wages | I54: =G54-H54 -> 0 | J54: =IF(I54=0,"",I54/H54) -> 
A55: Pension and UIF Contributions | I55: 0
A56: Medical Aid Contributions | I56: 0
A57: Overtime | I57: =G57-H57 -> 0 | J57: =IF(I57=0,"",I57/H57) -> 
A58: Performance Bonus | I58: =G58-H58 -> 0 | J58: =IF(I58=0,"",I58/H58) -> 
A59: Motor Vehicle Allowance | I59: =G59-H59 -> 0 | J59: =IF(I59=0,"",I59/H59) -> 
A60: Cellphone Allowance | I60: =G60-H60 -> 0 | J60: =IF(I60=0,"",I60/H60) -> 
A61: Housing Allowances | I61: =G61-H61 -> 0 | J61: =IF(I61=0,"",I61/H61) -> 
A62: Other benefits and allowances | I62: 0
A63: Board Fees | I63: =G63-H63 -> 0 | J63: =IF(I63=0,"",I63/H63) -> 
A64: Payments in lieu of leave | I64: 0
A65: Long service awards | I65: 0
A66: Post-retirement benefit obligations | I66: 0
A67: Sub Total - Board Members of Entities | B67: 2 | C67: =SUM(C54:C66) -> 0 | D67: 0 | E67: 0 | F67: =SUM(F54:F66) -> 0 | G67: =SUM(G54:G66) -> 0 | H67: =SUM(H54:H66) -> 0 | I67: 0 | J67: =IF(I67=0,"",I67/H67) ->  | K67: 0
A68: % increase | B68: 4 | D68: =IF(D67=0,"",(D67/C67)-1) ->  | E68: =IF(E67=0,"",(E67/C67)-1) ->  | K68: =IF(K67=0,"",(K67/C67)-1) -> 
A70: Senior Managers of Entities
A71: Basic Salaries and Wages | I71: =G71-H71 -> 0 | J71: =IF(I71=0,"",I71/H71) -> 
A72: Pension and UIF Contributions | I72: 0
A73: Medical Aid Contributions | I73: 0
A74: Overtime | I74: 0
A75: Performance Bonus | I75: =G75-H75 -> 0 | J75: =IF(I75=0,"",I75/H75) -> 
A76: Motor Vehicle Allowance | I76: =G76-H76 -> 0 | J76: =IF(I76=0,"",I76/H76) -> 
A77: Cellphone Allowance | I77: =G77-H77 -> 0 | J77: =IF(I77=0,"",I77/H77) -> 
A78: Housing Allowances | I78: =G78-H78 -> 0 | J78: =IF(I78=0,"",I78/H78) -> 
A79: Other benefits and allowances | I79: 0
A80: Payments in lieu of leave | I80: 0
A81: Long service awards | I81: 0
A82: Post-retirement benefit obligations | B82: 2 | I82: 0
A83: Sub Total - Senior Managers of Entities | C83: =SUM(C71:C82) -> 0 | D83: 0 | E83: 0 | F83: =SUM(F71:F82) -> 0 | G83: =SUM(G71:G82) -> 0 | H83: =SUM(H71:H82) -> 0 | I83: 0 | J83: =IF(I83=0,"",I83/H83) ->  | K83: 0
A84: % increase | B84: 4 | D84: =IF(D83=0,"",(D83/C83)-1) ->  | E84: =IF(E83=0,"",(E83/C83)-1) ->  | K84: =IF(K83=0,"",(K83/C83)-1) -> 
A86: Other Staff of Entities
A87: Basic Salaries and Wages | I87: =G87-H87 -> 0 | J87: =IF(I87=0,"",I87/H87) -> 
A88: Pension and UIF Contributions | I88: 0
A89: Medical Aid Contributions | I89: =G89-H89 -> 0 | J89: =IF(I89=0,"",I89/H89) -> 
A90: Overtime | I90: =G90-H90 -> 0 | J90: =IF(I90=0,"",I90/H90) -> 
A91: Performance Bonus | I91: =G91-H91 -> 0 | J91: =IF(I91=0,"",I91/H91) -> 
A92: Motor Vehicle Allowance | I92: =G92-H92 -> 0 | J92: =IF(I92=0,"",I92/H92) -> 
A93: Cellphone Allowance | I93: 0
A94: Housing Allowances | I94: 0
A95: Other benefits and allowances | I95: 0
A96: Payments in lieu of leave | I96: 0
A97: Long service awards | I97: 0
A98: Post-retirement benefit obligations | I98: 0
A99: Sub Total - Other Staff of Entities | C99: =SUM(C87:C98) -> 0 | D99: 0 | E99: 0 | F99: 0 | G99: 0 | H99: 0 | I99: 0 | J99: =IF(I99=0,"",I99/H99) ->  | K99: =SUM(K87:K98) -> 0
A100: % increase | B100: 4 | D100: =IF(D99=0,"",(D99/C99)-1) ->  | E100: =IF(E99=0,"",(E99/C99)-1) ->  | K100: =IF(K99=0,"",(K99/C99)-1) -> 
A102: Total Municipal Entities | C102: =C67+C83+C99 -> 0 | D102: 0 | E102: 0 | F102: 0 | G102: 0 | H102: 0 | I102: =G102-H102 -> 0 | J102: =IF(I102=0,"",I102/H102) ->  | K102: =K67+K83+K99 -> 0
A104: TOTAL SALARY, ALLOWANCES & BENEFITS | C104: =C49+C102 -> 19380965 | D104: 23501147 | E104: 23501147 | F104: 23.04 | G104: 2862905.94 | H104: 2968530.667 | I104: =G104-H104 -> -105624.7267 | J104: =IF(I104=0,"",I104/H104) -> -0.03558148408 | K104: =K49+K102 -> 23501147
A105: % increase | B105: 4 | D105: =IF(D104=0,"",(D104/C104)-1) -> 0.2125891048 | E105: =IF(E104=0,"",(E104/C104)-1) -> 0.2125891048 | K105: =IF(K104=0,"",(K104/C104)-1) -> 0.2125891048
A106: TOTAL MANAGERS AND STAFF | C106: =C30+C46+C83+C99 -> 17101452 | D106: 21001756 | E106: 21001756 | F106: 23.04 | G106: 2519103.04 | H106: 2551965.5 | I106: -32862.46 | J106: =IF(I106=0,"",I106/H106) -> -0.01287731358 | K106: =K30+K46+K83+K99 -> 21001756
A107: =head27a -> References
A108: 1. Include 'Loans and advances' where applicable if any reportable amounts until phased compliance with s164 of MFMA achieved
A109: 2. If benefits in kind are provided (e.g. provision of living quarters) the full market value must be shown as the cost to the municipality
A110: 3. s57 of the Systems Act
A111: 4. B/A, C/A, D/A
A112: Column Definitions:
A113: A. Audited actual 2005/06 (audited financial statements). If audited amounts unavailable, unaudited amounts must be provided with a note stating these are unaudited
A114: B. The original budget approved by council for the 2006/07 budget year.
A115: C. The budget for 2006/07 budget year as adjusted by council resolution in terms of section 28 of the MFMA.
A116: D. An estimate of final actual amounts (pre audit - 2006/07 budget year) at the time of preparing the budget for the 2007/08 budget year. This may differ from C.

Sheet SC9
A1: =muni& " - "&S71O& " - "&Head57 -> NC074 Kareeberg - Supporting Table SC9 Monthly Budget Statement - actuals and revised targets for cash receipts - M06 December
A2: =desc -> Description | B2: =head27 -> Ref | C2: =Head2 -> Budget Year 2016/17 | O2: ='Template names'!B5 -> 2016/17 Medium Term Revenue & Expenditure Framework
C3: July | D3: August | E3: Sept | F3: October | G3: Nov | H3: Dec | I3: January | J3: Feb | K3: March | L3: April | M3: May | N3: June | O3: =Head9 -> Budget Year 2016/17 | P3: =Head10 -> Budget Year +1 2017/18 | Q3: =Head11 -> Budget Year +2 2018/19
A4: R thousands | B4: 1 | C4: Outcome | D4: Outcome | E4: Budget | F4: Budget | G4: Budget | H4: Budget | I4: Budget | J4: Budget | K4: Budget | L4: Budget | M4: Budget | N4: Budget
A5: Cash Receipts By Source
A6: Property rates | C6: 371834.16 | D6: 1054531.48 | E6: 1532330 | F6: 393475 | G6: 347102 | H6: 192942 | I6: 151489 | J6: 139858 | K6: 94028 | L6: 79708 | M6: 82586 | N6: =O6-SUM(C6:M6) -> -1025188.64 | O6: 3414695 | P6: 3794051 | Q6: 4170746
A7: Property rates - penalties & collection charges | C7: 3196.18 | D7: 11360.62 | E7: 0 | F7: 0 | G7: 0 | H7: 0 | I7: 0 | J7: 0 | K7: 0 | L7: 0 | M7: 0 | N7: 4443.2 | O7: 19000 | P7: 19950 | Q7: 20947
A8: Service charges - electricity revenue | C8: 543903.12 | D8: 541058.51 | E8: 493565 | F8: 1103204 | G8: 517986 | H8: 447465 | I8: 615480 | J8: 717389 | K8: 789549 | L8: 895418 | M8: 584952 | N8: 1655061.37 | O8: 8905031 | P8: 10718680 | Q8: 12298839
A9: Service charges - water revenue | C9: 224864.46 | D9: 152665.42 | E9: 121216 | F9: 0 | G9: 136319 | H9: 109722 | I9: 747679 | J9: 248726 | K9: 286819 | L9: 361031 | M9: 424527 | N9: 1771479.12 | O9: 4585048 | P9: 4622326 | Q9: 5248770
A10: Service charges - sanitation revenue | C10: 146454.85 | D10: 101345.84 | E10: 192359 | F10: 0 | G10: 216326 | H10: 174119 | I10: 202035 | J10: 181978 | K10: 162829 | L10: 510147 | M10: 313290 | N10: 455903.31 | O10: 2656787 | P10: 2922480 | Q10: 3214738
A11: Service charges - refuse | C11: 202071.41 | D11: 128387.28 | E11: 306101 | F11: 0 | G11: 344240 | H11: 277077 | I11: 333104 | J11: 280035 | K11: 278576 | L11: 524417 | M11: 390999 | N11: 596755.31 | O11: 3661763 | P11: 4071104 | Q11: 4351451
A12: Service charges - other | E12: 0 | F12: 0 | G12: 0 | H12: 0 | I12: 0 | J12: 0 | K12: 0 | L12: 0 | M12: 0 | N12: 0 | O12: 0 | P12: 0 | Q12: 0
A13: Rental of facilities and equipment | C13: 29228.33 | D13: 13454.33 | E13: 32766 | F13: 21463 | G13: 16727 | H13: 23131 | I13: 26827 | J13: 5213 | K13: 2995 | L13: 20533 | M13: 11870 | N13: 18133.34 | O13: 222341 | P13: 233403 | Q13: 245074
A14: Interest earned - external investments | C14: 0 | D14: 81833.1 | E14: 69281 | F14: 66380 | G14: 64425 | H14: 294118 | I14: 137147 | J14: 82306 | K14: 76343 | L14: 131832 | M14: 85761 | N14: 77873.9 | O14: 1167300 | P14: 1361850 | Q14: 1429943
A15: Interest earned - outstanding debtors | C15: 167.48 | D15: 165.41 | E15: 188 | F15: 186 | G15: 184 | H15: 182 | I15: 272 | J15: 270 | K15: 269 | L15: 266 | M15: 264 | N15: 886.11 | O15: 3300 | P15: 3465 | Q15: 3638
A16: Dividends received | E16: 0 | F16: 0 | G16: 0 | H16: 0 | I16: 0 | J16: 0 | K16: 0 | L16: 0 | M16: 0 | N16: 0 | O16: 0 | P16: 0 | Q16: 0
A17: Fines | C17: 1012.4 | D17: 455.6 | E17: 1310 | F17: 941 | G17: 28 | H17: 675 | I17: 16 | J17: 2143 | K17: 3018 | L17: 346 | M17: 1098 | N17: 1187 | O17: 12230 | P17: 12842 | Q17: 13484
A18: Licences and permits | C18: 1974 | D18: 2403 | E18: 525 | F18: 222 | G18: 318 | H18: 318 | I18: 489 | J18: 886 | K18: 615 | L18: 552 | M18: 417 | N18: -1299 | O18: 7420 | P18: 7791 | Q18: 8181
A19: Agency services | C19: 23218.33 | D19: 21017.86 | E19: 9134 | F19: 6463 | G19: 8039 | H19: 7483 | I19: 4723 | J19: 48409 | K19: 2538 | L19: -651 | M19: 1728 | N19: -28769.19 | O19: 103333 | P19: 101850 | Q19: 102760
A20: Transfer receipts - operating | C20: 8548500 | D20: 3075000 | E20: 0 | F20: 4729750 | G20: 0 | H20: 0 | I20: 5695250 | J20: 0 | K20: 0 | L20: 4729750 | M20: 0 | N20: -3703252 | O20: 23074998 | P20: 23860998 | Q20: 25660997
A21: Other revenue | C21: 2331.78 | D21: 11355.02 | E21: 45829 | F21: 115416 | G21: 100266 | H21: 81930 | I21: 99155 | J21: 74765 | K21: 190654 | L21: 10068 | M21: 221061 | N21: 8674227.2 | O21: 9627058 | P21: 12052351 | Q21: 13424682
A22: Cash Receipts by Source | C22: =SUM(C6:C21) -> 10098756.5 | D22: 5195033.47 | E22: 2804604 | F22: 6437500 | G22: 1751960 | H22: 1609162 | I22: 8013666 | J22: 1781978 | K22: 1888233 | L22: 7263417 | M22: 2118553 | N22: 8497441.03 | O22: 57460304 | P22: 63783141 | Q22: 70194250
N23: =O23-SUM(C23:M23) -> 0
A24: Other Cash Flows by Source | N24: 0
A25: Transfer receipts - capital | C25: 4200000 | D25: 0 | E25: 0 | F25: 0 | G25: 0 | H25: 7889666.667 | I25: 0 | J25: 0 | K25: 7889666.667 | L25: 0 | M25: 0 | N25: 3689666.667 | O25: 23669000 | P25: 28117000 | Q25: 48610000
A26: Contributions & Contributed assets | D26: 0 | E26: 0 | F26: 0 | G26: 0 | H26: 0 | I26: 0 | J26: 0 | K26: 0 | L26: 0 | M26: 0 | N26: 0 | O26: 0 | P26: 0 | Q26: 0
A27: Proceeds on disposal of PPE | D27: 0 | E27: 0 | F27: 0 | G27: 0 | H27: 0 | I27: 0 | J27: 0 | K27: 0 | L27: 0 | M27: 0 | N27: 0 | O27: 0 | P27: 0 | Q27: 0
A28: Short term loans | D28: 0 | E28: 0 | F28: 0 | G28: 0 | H28: 0 | I28: 0 | J28: 0 | K28: 0 | L28: 0 | M28: 0 | N28: 0 | O28: 0 | P28: 0 | Q28: 0
A29: Borrowing long term/refinancing | D29: 0 | E29: 0 | F29: 0 | G29: 0 | H29: 0 | I29: 0 | J29: 0 | K29: 0 | L29: 0 | M29: 0 | N29: 0 | O29: 0 | P29: 0 | Q29: 0
A30: Increase in consumer deposits | C30: 2400 | D30: -1730 | E30: 4050 | F30: 3300 | G30: 1100 | H30: 2200 | I30: 471 | J30: 941 | K30: 1176 | L30: 471 | M30: 941 | N30: -5320 | O30: 10000 | P30: 10000 | Q30: 10000
A31: Receipt of non-current debtors | C31: 620.57 | D31: 165.41 | E31: 640 | F31: 642 | G31: 644 | H31: 646 | I31: 805 | J31: 806 | K31: 809 | L31: 812 | M31: 815 | N31: 1085.02 | O31: 8490 | P31: 7532 | Q31: 7900
A32: Receipt of non-current receivables | C32: 910963.03 | D32: 2117059.88 | E32: 0 | F32: 0 | G32: 0 | H32: 0 | I32: 0 | J32: 0 | K32: 0 | L32: 0 | M32: 0 | N32: -3028022.91 | O32: 0 | P32: 0 | Q32: 0
A33: Change in non-current investments | C33: 11535062.65 | D33: 1390818.1 | E33: 0 | F33: 0 | G33: 0 | H33: 0 | I33: 0 | J33: 0 | K33: 0 | L33: 0 | M33: 0 | N33: -12925880.75
A34: Total Cash Receipts by Source | C34: =SUM(C22:C33) -> 26747802.75 | D34: 8701346.86 | E34: 2809294 | F34: 6441442 | G34: 1753704 | H34: 9501674.667 | I34: 8014942 | J34: 1783725 | K34: 9779884.667 | L34: 7264700 | M34: 2120309 | N34: -3771030.943 | O34: 81147794 | P34: 91917673 | Q34: 118822150
N35: =O35-SUM(C35:M35) -> 0
A36: Cash Payments by Type | N36: 0
A37: Employee related costs | C37: 1257520.51 | D37: 1267782.53 | E37: 1338992 | F37: 1639658 | G37: 1397924 | H37: 1815114 | I37: 1497283 | J37: 1510384 | K37: 1594863 | L37: 1165244 | M37: 1440353 | N37: 5076637.96 | O37: 21001756 | P37: 22581725 | Q37: 24351814
A38: Remuneration of councillors | C38: 173946.81 | D38: 169856.09 | E38: 206058 | F38: 201920 | G38: 201843 | H38: 206058 | I38: 204291 | J38: 199744 | K38: 282845 | L38: 206845 | M38: 210621 | N38: 235363.1 | O38: 2499391 | P38: 2655780 | Q38: 2822195
A39: Interest paid | D39: 0 | E39: 0 | F39: 0 | G39: 0 | H39: 0 | I39: 0 | J39: 0 | K39: 0 | L39: 0 | M39: 0 | N39: 1073129 | O39: 1073129 | P39: 1117803 | Q39: 1274127
A40: Bulk purchases - Electricity | C40: 709356.07 | D40: 1193486.63 | E40: 910666 | F40: 732334 | G40: 773708 | H40: 789658 | I40: 594491 | J40: 837029 | K40: 690490 | L40: 671708 | M40: 718330 | N40: 2054687.3 | O40: 10675944 | P40: 11812072 | Q40: 13022942
A41: Bulk purchases - Water & Sewer | D41: 0 | E41: 0 | F41: 0 | G41: 0 | H41: 0 | I41: 0 | J41: 0 | K41: 0 | L41: 0 | M41: 0 | N41: 0 | O41: 0 | P41: 0 | Q41: 0
A42: Other materials | C42: 11480.56 | D42: 16172.16 | E42: 38104 | F42: 62780 | G42: 146776 | H42: 147893 | I42: 34405 | J42: 26310 | K42: 23816 | L42: 16831 | M42: 13242 | N42: 265322.28 | O42: 803132 | P42: 628190 | Q42: 1020550
A43: Contracted services | C43: 147832.53 | D43: 38389.34 | E43: 93381 | F43: 153852 | G43: 359701 | H43: 267370 | I43: 84315 | J43: 64478 | K43: 58364 | L43: 41248 | M43: 32452 | N43: 626835.13 | O43: 1968218 | P43: 2028029 | Q43: 2268238
A44: Grants and subsidies paid - other municipalities | D44: 0 | E44: 0 | F44: 0 | G44: 0 | H44: 0 | I44: 0 | J44: 0 | K44: 0 | L44: 0 | M44: 0 | N44: 0 | O44: 0 | P44: 0 | Q44: 0
A45: Grants and subsidies paid - other | C45: 1717345.41 | D45: 55454.43 | E45: -19 | F45: 2297818.75 | G45: 0 | H45: 0 | I45: 2297818.75 | J45: 0 | K45: 0 | L45: 2297818.75 | M45: 0 | N45: 525037.91 | O45: 9191275 | P45: 10512574 | Q45: 11256662
A46: General expenses | C46: 821026.58 | D46: 349061.61 | E46: 380192 | F46: 559724 | G46: 897856 | H46: 967737 | I46: 137602 | J46: 116656 | K46: 178378 | L46: 84345 | M46: 122628 | N46: 3880598.81 | O46: 8495805 | P46: 9061149 | Q46: 9760416
A47: Cash Payments by Type | B47: =SUM(B37:B46) -> 0 | C47: =SUM(C37:C46) -> 4838508.47 | D47: =SUM(D37:D46) -> 3090202.79 | E47: 2967374 | F47: 5648086.75 | G47: 3777808 | H47: 4193830 | I47: 4850205.75 | J47: 2754601 | K47: 2828756 | L47: 4484039.75 | M47: 2537626 | N47: 13737611.49 | O47: 55708650 | P47: 60397322 | Q47: 65776944
N48: =O48-SUM(C48:M48) -> 0
A49: Other Cash Flows/Payments by Type
A50: Capital assets | C50: 0 | D50: 59193 | E50: 1500000 | F50: 1500000 | G50: 1500000 | H50: 3834500 | I50: 1500000 | J50: 1500000 | K50: 1500000 | L50: 1500000 | M50: 1500000 | N50: =O50-SUM(C50:M50) -> 7775307 | O50: 23669000 | P50: 28117000 | Q50: 48610000
A51: Repayment of borrowing | C51: 0 | D51: 0 | E51: 0 | F51: 0 | G51: 0 | H51: 0 | I51: 0 | J51: 0 | K51: 0 | L51: 0 | M51: 0 | N51: =O51-SUM(C51:M51) -> 0
A52: Other Cash Flows/Payments | C52: 10496130.81 | D52: 3687997.17 | E52: 0 | F52: 0 | G52: 0 | H52: 0 | I52: 0 | J52: 0 | K52: 0 | L52: 0 | M52: 0 | N52: =O52-SUM(C52:M52) -> -14184127.98
A53: Total Cash Payments by Type | B53: =SUM(B47:B52) -> 0 | C53: 15334639.28 | D53: 6837392.96 | E53: 4467374 | F53: 7148086.75 | G53: 5277808 | H53: 8028330 | I53: 6350205.75 | J53: 4254601 | K53: 4328756 | L53: 5984039.75 | M53: 4037626 | N53: 7328790.51 | O53: 79377650 | P53: 88514322 | Q53: 114386944
N54: =O54-SUM(C54:M54) -> 0
A55: NET INCREASE/(DECREASE) IN CASH HELD | B55: =B34-B53 -> 0 | C55: 11413163.47 | D55: 1863953.9 | E55: -1658080 | F55: -706644.75 | G55: -3524104 | H55: 1473344.667 | I55: 1664736.25 | J55: -2470876 | K55: 5451128.667 | L55: 1280660.25 | M55: -1917317 | N55: -11099821.45 | O55: 1770144 | P55: 3403351 | Q55: 4435206
A56: Cash/cash equivalents at the month/year beginning: | C56: 23253650 | D56: =C57 -> 34666813.47 | E56: =D57 -> 36530767.37 | F56: 34872687.37 | G56: 34166042.62 | H56: 30641938.62 | I56: 32115283.29 | J56: 33780019.54 | K56: 31309143.54 | L56: 36760272.2 | M56: 38040932.45 | N56: 36123615.45 | O56: =C56 -> 23253650 | P56: =O57 -> 25023794 | Q56: =P57 -> 28427145
A57: Cash/cash equivalents at the month/year end: | C57: =C55+C56 -> 34666813.47 | D57: =D55+D56 -> 36530767.37 | E57: =E55+E56 -> 34872687.37 | F57: 34166042.62 | G57: 30641938.62 | H57: 32115283.29 | I57: 33780019.54 | J57: 31309143.54 | K57: 36760272.2 | L57: 38040932.45 | M57: 36123615.45 | N57: 25023794 | O57: =O55+O56 -> 25023794 | P57: =P55+P56 -> 28427145 | Q57: =Q55+Q56 -> 32862351
A58: =head27a -> References
A59: 1. Replace 'budget' heading with adjusted budget, or 'outcome' only for month/s complete
A60: 2. Total of monthly amounts must always agree to the approved or adjusted budget
A61: 3. Amend 'cash-at-beginning' when prior year actual known (as part of the adjustments budget)
E66: =E47+E65 -> 2967374 | F66: 5648086.75 | G66: 3777808 | H66: 4193830 | I66: 4850205.75 | J66: 2754601 | K66: 2828756 | L66: 4484039.75 | N66: =N47+N65 -> 13737611.49 | O66: 55708650 | P66: 60397322
E67: =E55-E65 -> -1658080 | F67: -706644.75 | G67: -3524104 | H67: 1473344.667 | I67: 1664736.25 | J67: -2470876 | K67: 5451128.667 | L67: 1280660.25 | M67: =M55-M65 -> -1917317 | N67: =N55-N65 -> -11099821.45 | O67: 1770144 | P67: 3403351

Sheet SC10
A1: =muni& " - "&S71P& " - "&Head57 -> NC074 Kareeberg - NOT REQUIRED - municipality does not have entities or this is the parent municipality's budget - M06 December
A2: =desc -> Description | B2: =head27 -> Ref | C2: =Head1 -> 2015/16 | D2: =Head2 -> Budget Year 2016/17
C3: =Head5 -> Audited Outcome | D3: =Head6 -> Original Budget | E3: =Head7 -> Adjusted Budget | F3: =Head38 -> Monthly actual | G3: =Head39 -> YearTD actual | H3: =Head40 -> YearTD budget | I3: =Head41 -> YTD variance | J3: =Head41 -> YTD variance | K3: =Head8 -> Full Year Forecast
A4: R thousands | B4: 1 | J4: %
A5: ='C4-FinPerf RE'!A5 -> Revenue By Source
A6: ='C4-FinPerf RE'!A6 -> Property rates | I6: =G6-H6 -> 0 | J6: =IF(I6=0,"",I6/H6) -> 
A7: ='C4-FinPerf RE'!A7 -> Property rates - penalties & collection charges | I7: 0 | J7: =IF(I7=0,"",I7/H7) -> 
A8: ='C4-FinPerf RE'!A8 -> Service charges - electricity revenue | I8: 0
A9: ='C4-FinPerf RE'!A9 -> Service charges - water revenue | I9: 0
A10: ='C4-FinPerf RE'!A10 -> Service charges - sanitation revenue | I10: 0
A11: ='C4-FinPerf RE'!A11 -> Service charges - refuse revenue | I11: 0
A12: ='C4-FinPerf RE'!A12 -> Service charges - other | I12: 0
A13: ='C4-FinPerf RE'!A13 -> Rental of facilities and equipment | I13: 0
A14: ='C4-FinPerf RE'!A14 -> Interest earned - external investments | I14: 0
A15: ='C4-FinPerf RE'!A15 -> Interest earned - outstanding debtors | I15: 0
A16: ='C4-FinPerf RE'!A16 -> Dividends received | I16: 0
A17: ='C4-FinPerf RE'!A17 -> Fines | I17: 0
A18: ='C4-FinPerf RE'!A18 -> Licences and permits | I18: 0
A19: ='C4-FinPerf RE'!A19 -> Agency services | I19: 0
A20: ='C4-FinPerf RE'!A20 -> Transfers recognised - operational | I20: 0
A21: ='C4-FinPerf RE'!A21 -> Other revenue | I21: 0
A22: ='C4-FinPerf RE'!A22 -> Gains on disposal of PPE | I22: 0
A23: Total Revenue (excluding capital transfers and contributions) | C23: =SUM(C6:C22) -> 0 | D23: 0 | E23: 0 | F23: 0 | G23: 0 | H23: 0 | I23: =G23-H23 -> 0 | K23: =SUM(K6:K22) -> 0
A25: Expenditure By Type
A26: ='C4-FinPerf RE'!A26 -> Employee related costs | I26: =G26-H26 -> 0 | J26: =IF(I26=0,"",I26/H26) -> 
A27: ='C4-FinPerf RE'!A27 -> Remuneration of councillors | I27: 0
A28: ='C4-FinPerf RE'!A28 -> Debt impairment | I28: 0
A29: ='C4-FinPerf RE'!A29 -> Depreciation & asset impairment | I29: 0
A30: ='C4-FinPerf RE'!A30 -> Finance charges | I30: 0
A31: ='C4-FinPerf RE'!A31 -> Bulk purchases | I31: 0
A32: ='C4-FinPerf RE'!A32 -> Other materials | I32: 0
A33: ='C4-FinPerf RE'!A33 -> Contracted services | I33: 0
A34: ='C4-FinPerf RE'!A34 -> Transfers and grants | I34: 0
A35: ='C4-FinPerf RE'!A35 -> Other expenditure | I35: 0
A36: ='C4-FinPerf RE'!A36 -> Loss on disposal of PPE | I36: 0
A37: Total Expenditure | C37: =SUM(C26:C36) -> 0 | D37: 0 | E37: 0 | F37: 0 | G37: 0 | H37: 0 | I37: 0 | K37: =SUM(K26:K36) -> 0
I38: 0
A39: ='C4-FinPerf RE'!A39 -> Surplus/(Deficit) | C39: =C23-C37 -> 0 | D39: 0 | E39: 0 | F39: 0 | G39: 0 | H39: 0 | I39: 0 | K39: =K23-K37 -> 0
A40: ='C4-FinPerf RE'!A40 -> Transfers recognised - capital | I40: 0
A41: ='C4-FinPerf RE'!A41 -> Contributions recognised - capital | I41: 0
A42: ='C4-FinPerf RE'!A42 -> Contributed assets | I42: 0
A43: ='C4-FinPerf RE'!A43 -> Surplus/(Deficit) after capital transfers & contributions | C43: =C39+SUM(C40:C42) -> 0 | D43: =D39+SUM(D40:D42) -> 0 | E43: 0 | F43: 0 | G43: 0 | H43: 0 | I43: 0 | K43: 0
A44: ='C4-FinPerf RE'!A44 -> Taxation | I44: 0
A45: ='C4-FinPerf RE'!A45 -> Surplus/(Deficit) after taxation | C45: =C43-C44 -> 0 | D45: 0 | E45: 0 | F45: 0 | G45: 0 | H45: 0 | I45: 0 | K45: =K43-K44 -> 0
A46: =head27a -> References
A47: 1. Votes (consolidated) are revenue sources and expenditure type

Sheet SC11
A1: =muni& " - "&S71Q& " - "&Head57 -> NC074 Kareeberg - NOT REQUIRED - municipality does not have entities or this is the parent municipality's budget - M06 December
A2: =desc -> Description | B2: =head27 -> Ref | C2: =Head1 -> 2015/16 | D2: =Head2 -> Budget Year 2016/17
C3: =Head5 -> Audited Outcome | D3: =Head6 -> Original Budget | E3: =Head7 -> Adjusted Budget | F3: =Head38 -> Monthly actual | G3: =Head39 -> YearTD actual | H3: =Head40 -> YearTD budget | I3: =Head41 -> YTD variance | J3: =Head41 -> YTD variance | K3: =Head8 -> Full Year Forecast
A4: R thousands | J4: %
A5: Revenue By Municipal Entity
A6: Insert name of municipal entity | I6: =G6-H6 -> 0 | J6: =IF(I6=0,"",I6/H6) -> 
I7: 0 | J7: =IF(I7=0,"",I7/H7) -> 
I8: 0
I9: 0
I10: 0
I11: 0
I12: 0
I13: 0
I14: 0
I15: 0
A16: Total Operating Revenue | B16: 1 | C16: =SUM(C6:C15) -> 0 | D16: 0 | E16: 0 | F16: 0 | G16: 0 | H16: 0 | I16: 0 | K16: =SUM(K6:K15) -> 0
A18: Expenditure By Municipal Entity
A19: =A6 -> Insert name of municipal entity | I19: 0 | J19: =IF(I19=0,"",I19/H19) -> 
A20: =IF(A7="","",A7) ->  | I20: 0
A21: =IF(A8="","",A8) ->  | I21: 0
I22: 0
I23: 0
I24: 0
I25: 0
I26: 0
I27: 0
I28: 0
A29: Total Operating Expenditure | B29: 2 | C29: =SUM(C19:C28) -> 0 | D29: 0 | E29: 0 | F29: 0 | G29: 0 | H29: 0 | I29: 0 | K29: =SUM(K19:K28) -> 0
A31: =Head42 -> Surplus/ (Deficit) for the yr/period | C31: =C16-C29 -> 0 | D31: =D16-D29 -> 0 | E31: 0 | F31: 0 | G31: 0 | H31: 0 | I31: =I16+I29 -> 0 | K31: 0
A32: Capital Expenditure By Municipal Entity
A33: =$A$6 -> Insert name of municipal entity | I33: 0
A34: =IF(A7="","",A7) ->  | I34: 0
A35: =IF(A8="","",A8) ->  | I35: 0
I36: 0
I37: 0
I38: 0
I39: 0
I40: 0
I41: 0
A43: Total Capital Expenditure | B43: 3 | C43: =SUM(C32:C42) -> 0 | D43: =SUM(D32:D42) -> 0 | E43: 0 | F43: 0 | G43: 0 | H43: =SUM(H32:H42) -> 0 | I43: =G43-H43 -> 0 | K43: 0
A44: =head27a -> References
A45: 1. Must reconcile to the sum of all municipal entity monthly revenue reports
A46: 2. Must reconcile to the sum of all municipal entity monthly expenditure reports
A47: 3. YTD = Year to date; FAV - favourable variance or unfavourable variance
A48: 4. Material variances to be explained
A49: 5. Insert additional 'Adjustment' Budget column for each Adjustment made by an entity

Sheet SC12
A1: =muni& " - "&S71R& " - "&Head57 -> NC074 Kareeberg - Supporting Table SC12 Monthly Budget Statement - capital expenditure trend - M06 December
A2: Month | B2: =Head1 -> 2015/16 | C2: =Head2 -> Budget Year 2016/17
B3: =Head5 -> Audited Outcome | C3: =Head6 -> Original Budget | D3: =Head7 -> Adjusted Budget | E3: =Head38 -> Monthly actual | F3: =Head39 -> YearTD actual | G3: =Head40 -> YearTD budget | H3: =Head41 -> YTD variance | I3: =Head41 -> YTD variance | J3: % spend of Original Budget
A4: R thousands | I4: %
A5: Monthly expenditure performance trend
A6: July | B6: 828203 | C6: 4834500 | D6: 4834500 | E6: 1e-11 | F6: =IF(E6>0,E6,"") -> 1e-11 | G6: =IF(D6>0,D6,C6) -> 4834500 | H6: =IF(F6="",0,G6-F6) -> 4834500 | I6: =IF(F6="","",IF(H6=0,"",H6/G6)) -> 1 | J6: =IF(F6="","",F6/$C$18) -> 4.22493557e-19
A7: August | B7: 627549 | C7: 1500000 | D7: 1500000 | E7: 59193 | F7: =IF(E7>0,E7+F6,"") -> 59193 | G7: =IF(D7>0,D7+D6,C7+C6) -> 6334500 | H7: 6275307 | I7: 0.9906554582 | J7: 0.002500866112
A8: September | B8: 313880 | C8: 1500000 | D8: 1500000 | E8: 0 | F8: =IF(E8>0,E8+F7,"") ->  | G8: =IF(D8>0,D8+G7,C8+G7) -> 7834500 | H8: 0
A9: October | B9: 504426 | C9: 1500000 | D9: 1500000 | G9: =IF(D9>0,D9+G8,C9+G8) -> 9334500 | H9: 0
A10: November | B10: 732400 | C10: 1500000 | D10: 1500000 | G10: 10834500 | H10: 0
A11: December | B11: 349484 | C11: 3834500 | D11: 3834500 | G11: 14669000 | H11: 0
A12: January | B12: 1e-14 | C12: 1500000 | D12: 1500000 | G12: 16169000 | H12: 0
A13: February | B13: 89375 | C13: 1500000 | D13: 1500000 | G13: 17669000 | H13: 0
A14: March | B14: 527372 | C14: 1500000 | D14: 1500000 | G14: 19169000 | H14: 0
A15: April | B15: 1272553 | C15: 1500000 | D15: 1500000 | G15: 20669000 | H15: 0
A16: May | B16: 901661 | C16: 1500000 | D16: 1500000 | G16: 22169000 | H16: 0
A17: June | B17: 1328660 | C17: 1500000 | D17: 1500000 | G17: 23669000 | H17: =IF(F17="",0,G17-F17) -> 0 | I17: =IF(F17="","",IF(H17=0,"",H17/G17)) ->  | J17: =IF(F17="","",F17/$C$18) -> 
A18: Total Capital expenditure | B18: =SUM(B6:B17) -> 7475563 | C18: =SUM(C6:C17) -> 23669000 | D18: =SUM(D6:D17) -> 23669000 | E18: =SUM(E6:E17) -> 59193

Sheet SC13a
A1: =muni& " - "&S71Sa& " - "&Head57 -> NC074 Kareeberg - Supporting Table SC13a Monthly Budget Statement - capital expenditure on new assets by asset class - M06 December
A2: =desc -> Description | B2: =head27 -> Ref | C2: =Head1 -> 2015/16 | D2: =Head2 -> Budget Year 2016/17
C3: =Head5 -> Audited Outcome | D3: =Head6 -> Original Budget | E3: =Head7 -> Adjusted Budget | F3: =Head38 -> Monthly actual | G3: =Head39 -> YearTD actual | H3: =Head40 -> YearTD budget | I3: =Head41 -> YTD variance | J3: =Head41 -> YTD variance | K3: =Head8 -> Full Year Forecast
A4: R thousands | B4: 1 | J4: %
A5: Capital expenditure on new assets by Asset Class/Sub-class
A7: Infrastructure | C7: =C8+C11+C15+C19+C22 -> 1432530 | D7: 15000000 | E7: 15000000 | F7: 0 | G7: 0 | H7: 1500000 | I7: =H7-G7 -> 1500000 | J7: =IF(I7=0,"",I7/H7) -> 1 | K7: =K8+K11+K15+K19+K22 -> 15000000
A8: Infrastructure - Road transport | C8: =SUM(C9:C10) -> 0 | D8: 0 | E8: 0 | F8: 0 | G8: 0 | H8: 0 | I8: 0 | K8: =SUM(K9:K10) -> 0
A9: Roads, Pavements & Bridges | I9: 0
A10: Storm water | I10: 0
A11: Infrastructure - Electricity | C11: =SUM(C12:C14) -> 0 | D11: 0 | E11: 0 | F11: 0 | G11: 0 | H11: 0 | I11: 0 | K11: =SUM(K12:K14) -> 0
A12: Generation | I12: 0
A13: Transmission & Reticulation | I13: 0
A14: Street Lighting | I14: 0
A15: Infrastructure - Water | C15: =SUM(C16:C18) -> 1432530 | D15: 15000000 | E15: 15000000 | F15: 0 | G15: 0 | H15: 1500000 | I15: 1500000 | J15: 1 | K15: =SUM(K16:K18) -> 15000000
A16: Dams & Reservoirs | C16: 1432530 | D16: 15000000 | E16: 15000000 | G16: 0 | H16: 1500000 | I16: 1500000 | J16: 1 | K16: 15000000
A17: Water purification | I17: 0
A18: Reticulation | I18: 0
A19: Infrastructure - Sanitation | C19: =SUM(C20:C21) -> 0 | D19: 0 | E19: 0 | F19: 0 | G19: 0 | H19: 0 | I19: 0 | K19: =SUM(K20:K21) -> 0
A20: Reticulation | I20: 0
A21: Sewerage purification | I21: 0
A22: Infrastructure - Other | C22: =SUM(C23:C26) -> 0 | D22: 0 | E22: 0 | F22: 0 | G22: 0 | H22: 0 | I22: 0 | K22: =SUM(K23:K26) -> 0
A23: Waste Management | I23: 0
A24: Transportation | I24: 0
A25: Gas | I25: 0
A26: Other | I26: 0
A28: Community | C28: =SUM(C29:C42) -> 57222 | D28: 0 | E28: 0 | F28: 0 | G28: 0 | H28: 0 | I28: 0 | K28: =SUM(K29:K42) -> 0
A29: Parks & gardens | I29: 0
A30: Sportsfields & stadia | I30: 0
A31: Swimming pools | I31: 0
A32: Community halls | I32: 0
A33: Libraries | I33: 0
A34: Recreational facilities | I34: 0
A35: Fire, safety & emergency | I35: 0
A36: Security and policing | I36: 0
A37: Buses | I37: 0
A38: Clinics | I38: 0
A39: Museums & Art Galleries | I39: 0
A40: Cemeteries | I40: 0
A41: Social rental housing | I41: =H41-G41 -> 0 | J41: =IF(I41=0,"",I41/H41) -> 
A42: Other | C42: 57222 | I42: 0
A43: Heritage assets | C43: =SUM(C44:C45) -> 0 | D43: 0 | E43: 0 | F43: 0 | G43: 0 | H43: 0 | I43: 0 | K43: =SUM(K44:K45) -> 0
A44: Buildings | I44: 0
A45: Other | I45: 0
I46: 0
A47: Investment properties | C47: =SUM(C48:C49) -> 0 | D47: 0 | E47: 0 | F47: 0 | G47: 0 | H47: 0 | I47: 0 | K47: =SUM(K48:K49) -> 0
A48: Housing development | I48: 0
A49: Other | I49: 0
A50: Other assets | C50: =SUM(C51:C62) -> 381122 | D50: 0 | E50: 0 | F50: 0 | G50: 0 | H50: 0 | I50: 0 | K50: 0
A51: General vehicles | I51: 0
A52: Specialised vehicles | C52: =C78 -> 0 | D52: 0 | E52: 0 | F52: 0 | G52: 0 | H52: 0 | I52: 0 | K52: =K78 -> 0
A53: Plant & equipment | C53: 315628 | I53: 0
A54: Computers - hardware/equipment | C54: 56994 | I54: 0
A55: Furniture and other office equipment | C55: 8500 | I55: 0
A56: Abattoirs | I56: 0
A57: Markets | I57: 0
A58: Civic Land and Buildings | I58: 0
A59: Other Buildings | I59: 0
A60: Other Land | I60: 0
A61: Surplus Assets - (Investment or Inventory) | I61: 0
A62: Other | I62: 0
A64: Agricultural assets | C64: =SUM(C65:C66) -> 0 | D64: 0 | E64: 0 | F64: 0 | G64: 0 | H64: 0 | I64: =H64-G64 -> 0 | K64: =SUM(K65) -> 0
A65: List sub-class | I65: =H65-G65 -> 0
I66: =H66-G66 -> 0
J67: =IF(I67=0,"",I67/H67) -> 
A68: Biological assets | C68: =SUM(C69:C70) -> 0 | D68: 0 | E68: 0 | F68: 0 | G68: 0 | H68: 0 | I68: =H68-G68 -> 0 | J68: =IF(I68=0,"",I68/H68) ->  | K68: =SUM(K69) -> 0
A69: List sub-class | I69: =H69-G69 -> 0 | J69: =IF(I69=0,"",I69/H69) -> 
I70: =H70-G70 -> 0 | J70: =IF(I70=0,"",I70/H70) -> 
A72: Intangibles | C72: =SUM(C73:C74) -> 0 | D72: 0 | E72: 0 | F72: 0 | G72: 0 | H72: 0 | I72: =H72-G72 -> 0 | J72: =IF(I72=0,"",I72/H72) ->  | K72: =SUM(K73:K74) -> 0
A73: Computers - software & programming | I73: =H73-G73 -> 0 | J73: =IF(I73=0,"",I73/H73) -> 
A74: Other | I74: =H74-G74 -> 0 | J74: =IF(I74=0,"",I74/H74) -> 
A76: Total Capital Expenditure on new assets | B76: 1 | C76: =C7+C28+C43+C47+C50+C64+C68+C72 -> 1870874 | D76: 15000000 | E76: 15000000 | F76: 0 | G76: 0 | H76: 1500000 | I76: 1500000 | J76: 1 | K76: =K7+K28+K43+K47+K50+K64+K68+K72 -> 15000000
A78: Specialised vehicles | C78: =SUM(C79:C82) -> 0 | D78: 0 | E78: 0 | F78: 0 | G78: 0 | H78: 0 | I78: =H78-G78 -> 0 | J78: =IF(I78=0,"",I78/H78) ->  | K78: 0
A79: Refuse | I79: =H79-G79 -> 0 | J79: =IF(I79=0,"",I79/H79) -> 
A80: Fire | I80: =H80-G80 -> 0 | J80: =IF(I80=0,"",I80/H80) -> 
A81: Conservancy | I81: =H81-G81 -> 0 | J81: =IF(I81=0,"",I81/H81) -> 
A82: Ambulances | I82: =H82-G82 -> 0 | J82: =IF(I82=0,"",I82/H82) -> 
A83: =head27a -> References
A84: 1. Total Capital Expenditure on new assets (SC13a) plus Total Capital Expenditure on renewal of existing assets (SC13b) must reconcile to total capital expenditure in Table C5
A86: check balance | C86: =C76+SC13b!C76-'C5-Capex'!C40 -> 0 | D86: =D76+SC13b!D76-'C5-Capex'!D40 -> 0 | E86: =E76+SC13b!E76-'C5-Capex'!E40 -> 0 | F86: =F76+SC13b!F76-'C5-Capex'!F40 -> 0 | G86: =G76+SC13b!G76-'C5-Capex'!G40 -> 0 | H86: =H76+SC13b!H76-'C5-Capex'!H40 -> 0 | K86: =K76+SC13b!K76-'C5-Capex'!K40 -> 0

Sheet SC13b
A1: =muni& " - "&S71Sb& " - "&Head57 -> NC074 Kareeberg - Supporting Table SC13b Monthly Budget Statement - capital expenditure on renewal of existing assets by asset class - M06 December
A2: =desc -> Description | B2: =head27 -> Ref | C2: =Head1 -> 2015/16 | D2: =Head2 -> Budget Year 2016/17
C3: =Head5 -> Audited Outcome | D3: =Head6 -> Original Budget | E3: =Head7 -> Adjusted Budget | F3: =Head38 -> Monthly actual | G3: =Head39 -> YearTD actual | H3: =Head40 -> YearTD budget | I3: =Head41 -> YTD variance | J3: =Head41 -> YTD variance | K3: =Head8 -> Full Year Forecast
A4: R thousands | B4: 1 | J4: %
A5: Capital expenditure on renewal of existing assets by Asset Class/Sub-class
A7: Infrastructure | C7: =C8+C11+C15+C19+C22 -> 1489350 | D7: 7427000 | E7: 7427000 | F7: 0 | G7: 38014 | H7: 0 | I7: =H7-G7 -> -38014 | J7: =IF(I7=0,"",I7/H7) ->  | K7: =K8+K11+K15+K19+K22 -> 7427000
A8: Infrastructure - Road transport | C8: =SUM(C9:C10) -> 1443652 | D8: 4150000 | E8: 4150000 | F8: 0 | G8: 38014 | H8: 0 | I8: -38014 | K8: =SUM(K9:K10) -> 4150000
A9: Roads, Pavements & Bridges | C9: 1443652 | D9: 4150000 | E9: 4150000 | F9: 0 | G9: 38014 | H9: 0 | I9: -38014 | K9: 4150000
A10: Storm water | I10: 0
A11: Infrastructure - Electricity | C11: =SUM(C12:C14) -> 0 | D11: 1000000 | E11: 1000000 | F11: 0 | G11: 0 | H11: 0 | I11: 0 | K11: =SUM(K12:K14) -> 1000000
A12: Generation | I12: 0
A13: Transmission & Reticulation | D13: 1000000 | E13: 1000000 | I13: 0 | K13: 1000000
A14: Street Lighting | I14: 0
A15: Infrastructure - Water | C15: =SUM(C16:C18) -> 36983 | D15: 0 | E15: 0 | F15: 0 | G15: 0 | H15: 0 | I15: 0 | K15: =SUM(K16:K18) -> 0
A16: Dams & Reservoirs | C16: 36983 | I16: 0
A17: Water purification | I17: 0
A18: Reticulation | I18: 0
A19: Infrastructure - Sanitation | C19: =SUM(C20:C21) -> 8715 | D19: 2277000 | E19: 2277000 | F19: 0 | G19: 0 | H19: 0 | I19: 0 | K19: =SUM(K20:K21) -> 2277000
A20: Reticulation | C20: 8715 | D20: 2277000 | E20: 2277000 | I20: 0 | K20: 2277000
A21: Sewerage purification | I21: 0
A22: Infrastructure - Other | C22: =SUM(C23:C26) -> 0 | D22: 0 | E22: 0 | F22: 0 | G22: 0 | H22: 0 | I22: 0 | K22: =SUM(K23:K26) -> 0
A23: Waste Management | I23: 0
A24: Transportation | I24: 0
A25: Gas | I25: 0
A26: Other | I26: 0
A28: Community | C28: =SUM(C29:C42) -> 3809425 | D28: 1242000 | E28: 1242000 | F28: 0 | G28: 21179 | H28: 1242000 | I28: 1220821 | J28: 0.9829476651 | K28: =SUM(K29:K42) -> 1242000
A29: Parks & gardens | I29: 0
A30: Sportsfields & stadia | C30: 3618801 | D30: 1242000 | E30: 1242000 | F30: 0 | G30: 21179 | H30: 1242000 | I30: 1220821 | J30: 0.9829476651 | K30: 1242000
A31: Swimming pools | I31: 0
A32: Community halls | I32: 0
A33: Libraries | I33: 0
A34: Recreational facilities | I34: 0
A35: Fire, safety & emergency | I35: 0
A36: Security and policing | I36: 0
A37: Buses | I37: 0
A38: Clinics | I38: 0
A39: Museums & Art Galleries | I39: 0
A40: Cemeteries | C40: 190624 | I40: 0
A41: Social rental housing | I41: 0
A42: Other | I42: 0
A43: Heritage assets | C43: =SUM(C44:C45) -> 0 | D43: 0 | E43: 0 | F43: 0 | G43: 0 | H43: 0 | I43: 0 | K43: =SUM(K44:K45) -> 0
A44: Buildings | I44: 0
A45: Other | I45: 0
I46: 0
A47: Investment properties | C47: =SUM(C48:C49) -> 0 | D47: 0 | E47: 0 | F47: 0 | G47: 0 | H47: 0 | I47: 0 | K47: =SUM(K48:K49) -> 0
A48: Housing development | I48: 0
A49: Other | I49: 0
A50: Other assets | C50: =SUM(C51:C62) -> 302756 | D50: 0 | E50: 0 | F50: 0 | G50: 0 | H50: 0 | I50: 0 | K50: 0
A51: General vehicles | I51: 0
A52: Specialised vehicles | C52: =C78 -> 0 | D52: 0 | E52: 0 | F52: 0 | G52: 0 | H52: 0 | I52: 0 | K52: =K78 -> 0
A53: Plant & equipment | C53: 1941 | I53: 0
A54: Computers - hardware/equipment | I54: 0
A55: Furniture and other office equipment | I55: 0
A56: Abattoirs | I56: 0
A57: Markets | I57: 0
A58: Civic Land and Buildings | C58: 300815 | I58: 0
A59: Other Buildings | I59: 0
A60: Other Land | I60: 0
A61: Surplus Assets - (Investment or Inventory) | I61: 0
A62: Other | I62: 0
A64: Agricultural assets | C64: =SUM(C65:C66) -> 0 | D64: 0 | E64: 0 | F64: 0 | G64: 0 | H64: 0 | I64: =H64-G64 -> 0 | K64: =SUM(K65) -> 0
A65: List sub-class | I65: =H65-G65 -> 0
I66: =H66-G66 -> 0
J67: =IF(I67=0,"",I67/H67) -> 
A68: Biological assets | C68: =SUM(C69:C70) -> 0 | D68: 0 | E68: 0 | F68: 0 | G68: 0 | H68: 0 | I68: =H68-G68 -> 0 | J68: =IF(I68=0,"",I68/H68) ->  | K68: =SUM(K69) -> 0
A69: List sub-class | I69: =H69-G69 -> 0 | J69: =IF(I69=0,"",I69/H69) -> 
I70: =H70-G70 -> 0 | J70: =IF(I70=0,"",I70/H70) -> 
A72: Intangibles | C72: =SUM(C73:C74) -> 3158 | D72: 0 | E72: 0 | F72: 0 | G72: 0 | H72: 0 | I72: =H72-G72 -> 0 | J72: =IF(I72=0,"",I72/H72) ->  | K72: =SUM(K73:K74) -> 0
A73: Computers - software & programming | C73: 3158 | I73: =H73-G73 -> 0 | J73: =IF(I73=0,"",I73/H73) -> 
A74: Other | I74: =H74-G74 -> 0 | J74: =IF(I74=0,"",I74/H74) -> 
A76: Total Capital Expenditure on renewal of existing assets | B76: 1 | C76: =C7+C28+C43+C47+C50+C64+C68+C72 -> 5604689 | D76: 8669000 | E76: 8669000 | F76: 0 | G76: 59193 | H76: 1242000 | I76: =H76-G76 -> 1182807 | J76: =IF(I76=0,"",I76/H76) -> 0.9523405797 | K76: =K7+K28+K43+K47+K50+K64+K68+K72 -> 8669000
A78: Specialised vehicles | C78: =SUM(C79:C82) -> 0 | D78: 0 | E78: 0 | F78: 0 | G78: 0 | H78: 0 | I78: =H78-G78 -> 0 | J78: =IF(I78=0,"",I78/H78) ->  | K78: 0
A79: Refuse | I79: =H79-G79 -> 0 | J79: =IF(I79=0,"",I79/H79) -> 
A80: Fire | I80: =H80-G80 -> 0 | J80: =IF(I80=0,"",I80/H80) -> 
A81: Conservancy | I81: =H81-G81 -> 0 | J81: =IF(I81=0,"",I81/H81) -> 
A82: Ambulances | I82: =H82-G82 -> 0 | J82: =IF(I82=0,"",I82/H82) -> 
A83: =head27a -> References
A84: 1. Total Capital Expenditure on new assets (SC13a) plus Total Capital Expenditure on renewal of existing assets (SC13b) must reconcile to total capital expenditure in Table C5
A86: check balance | C86: =C76+SC13a!C76-'C5-Capex'!C40 -> 0 | D86: =D76+SC13a!D76-'C5-Capex'!D40 -> 0 | E86: =E76+SC13a!E76-'C5-Capex'!E40 -> 0 | F86: =F76+SC13a!F76-'C5-Capex'!F40 -> 0 | G86: =G76+SC13a!G76-'C5-Capex'!G40 -> 0 | H86: =H76+SC13a!H76-'C5-Capex'!H40 -> 0 | K86: =K76+SC13a!K76-'C5-Capex'!K40 -> 0

Sheet SC13c
A1: =muni& " - "&S71Sc& " - "&Head57 -> NC074 Kareeberg - Supporting Table SC13c Monthly Budget Statement - expenditure on repairs and maintenance by asset class - M06 December
A2: =desc -> Description | B2: =head27 -> Ref | C2: =Head1 -> 2015/16 | D2: =Head2 -> Budget Year 2016/17
C3: =Head5 -> Audited Outcome | D3: =Head6 -> Original Budget | E3: =Head7 -> Adjusted Budget | F3: =Head38 -> Monthly actual | G3: =Head39 -> YearTD actual | H3: =Head40 -> YearTD budget | I3: =Head41 -> YTD variance | J3: =Head41 -> YTD variance | K3: =Head8 -> Full Year Forecast
A4: R thousands | B4: 1 | J4: %
A5: Repairs and maintenance expenditure by Asset Class/Sub-class
A7: Infrastructure | C7: =C8+C11+C15+C19+C22 -> 988229.17 | D7: 671564 | E7: 671564 | F7: 365.26 | G7: 60861.86 | H7: 63570.33333 | I7: =H7-G7 -> 2708.473333 | J7: =IF(I7=0,"",I7/H7) -> 0.04260593254 | K7: =K8+K11+K15+K19+K22 -> 507564
A8: Infrastructure - Road transport | C8: =SUM(C9:C10) -> 14597.76 | D8: 62000 | E8: 62000 | F8: 365.26 | G8: 512.63 | H8: 10333.33333 | I8: 9820.703333 | J8: 0.9503906452 | K8: =SUM(K9:K10) -> 62000
A9: Roads, Pavements & Bridges | C9: 14597.76 | D9: 62000 | E9: 62000 | F9: 365.26 | G9: 512.63 | H9: 10333.33333 | I9: 9820.703333 | J9: 0.9503906452 | K9: 62000
A10: Storm water | I10: 0
A11: Infrastructure - Electricity | C11: =SUM(C12:C14) -> 408965.68 | D11: 136000 | E11: 136000 | F11: 0 | G11: 50233.7 | H11: 12666.66667 | I11: -37567.03333 | J11: -2.965818421 | K11: =SUM(K12:K14) -> 136000
A12: Generation | C12: 24000 | D12: 14000 | E12: 14000 | F12: 0 | G12: 4000 | H12: 2333.333333 | I12: -1666.666667 | J12: -0.7142857143 | K12: 14000
A13: Transmission & Reticulation | C13: 384965.68 | D13: 122000 | E13: 122000 | F13: 0 | G13: 46233.7 | H13: 10333.33333 | I13: -35900.36667 | J13: -3.474229032 | K13: 122000
A14: Street Lighting | I14: 0
A15: Infrastructure - Water | C15: =SUM(C16:C18) -> 393711.69 | D15: 309564 | E15: 309564 | F15: 0 | G15: 8225.4 | H15: 25737 | I15: 17511.6 | J15: 0.6804056417 | K15: =SUM(K16:K18) -> 309564
A16: Dams & Reservoirs | C16: 393711.69 | D16: 309564 | E16: 309564 | F16: 0 | G16: 8225.4 | H16: 25737 | I16: 17511.6 | J16: 0.6804056417 | K16: 309564
A17: Water purification | I17: 0
A18: Reticulation | I18: 0
A19: Infrastructure - Sanitation | C19: =SUM(C20:C21) -> 69221.49 | D19: 155000 | E19: 155000 | F19: 0 | G19: 1890.13 | H19: 13833.33333 | I19: 11943.20333 | J19: 0.8633640964 | K19: =SUM(K20:K21) -> 0
A20: Reticulation | C20: 69221.49 | D20: 155000 | E20: 155000 | F20: 0 | G20: 1890.13 | H20: 13833.33333 | I20: 11943.20333 | J20: 0.8633640964
A21: Sewerage purification | I21: 0
A22: Infrastructure - Other | C22: =SUM(C23:C26) -> 101732.55 | D22: 9000 | E22: 9000 | F22: 0 | G22: 0 | H22: 1000 | I22: 1000 | J22: 1 | K22: =SUM(K23:K26) -> 0
A23: Waste Management | C23: 99327 | D23: 0 | E23: 0 | F23: 0 | G23: 0 | H23: 0 | I23: 0
A24: Transportation | C24: 2405.55 | D24: 9000 | E24: 9000 | F24: 0 | G24: 0 | H24: 1000 | I24: 1000 | J24: 1
A25: Gas | I25: 0
A26: Other | I26: 0
A28: Community | C28: =SUM(C29:C42) -> 33617.03 | D28: 605065 | E28: 605065 | F28: 0 | G28: 2097.26 | H28: 47492.16667 | I28: 45394.90667 | J28: 0.9558398753 | K28: =SUM(K29:K42) -> 605065
A29: Parks & gardens | C29: 6675.97 | D29: 18600 | E29: 18600 | F29: 0 | G29: 619.39 | H29: 2100 | I29: 1480.61 | J29: 0.705052381 | K29: 18600
A30: Sportsfields & stadia | C30: 0 | D30: 0 | E30: 0 | F30: 0 | G30: 0 | H30: 0 | I30: 0 | K30: 0
A31: Swimming pools | C31: 0 | D31: 14000 | E31: 14000 | F31: 0 | G31: 0 | H31: 1333.333333 | I31: 1333.333333 | J31: 1 | K31: 14000
A32: Community halls | C32: 0 | D32: 0 | E32: 0 | F32: 0 | G32: 0 | H32: 0 | I32: 0 | K32: 0
A33: Libraries | C33: 3305.42 | D33: 542465 | E33: 542465 | F33: 0 | G33: 977.87 | H33: 39410.83333 | I33: 38432.96333 | J33: 0.9751877868 | K33: 542465
A34: Recreational facilities | C34: 15590.17 | D34: 11000 | E34: 11000 | F34: 0 | G34: 0 | H34: 1833.333333 | I34: 1833.333333 | J34: 1 | K34: 11000
A35: Fire, safety & emergency | C35: 125 | D35: 3000 | E35: 3000 | F35: 0 | G35: 0 | H35: 500 | I35: 500 | J35: 1 | K35: 3000
A36: Security and policing | C36: 555.98 | D36: 3500 | E36: 3500 | F36: 0 | G36: 0 | H36: 583.3333333 | I36: 583.3333333 | J36: 1 | K36: 3500
A37: Buses | C37: 0 | D37: 0 | E37: 0 | F37: 0 | G37: 0 | H37: 0 | I37: 0 | K37: 0
A38: Clinics | C38: 1287.3 | D38: 3000 | E38: 3000 | F38: 0 | G38: 0 | H38: 500 | I38: 500 | J38: 1 | K38: 3000
A39: Museums & Art Galleries | C39: 858.2 | D39: 4000 | E39: 4000 | F39: 0 | G39: 0 | H39: 666.6666667 | I39: 666.6666667 | J39: 1 | K39: 4000
A40: Cemeteries | C40: 5218.99 | D40: 5500 | E40: 5500 | F40: 0 | G40: 500 | H40: 564.6666667 | I40: 64.66666667 | J40: 0.1145218418 | K40: 5500
A41: Social rental housing | I41: 0
A42: Other | I42: 0
A43: Heritage assets | C43: =SUM(C44:C45) -> 0 | D43: 0 | E43: 0 | F43: 0 | G43: 0 | H43: 0 | I43: 0 | K43: =SUM(K44:K45) -> 0
A44: Buildings | I44: 0
A45: Other | I45: 0
I46: 0
A47: Investment properties | C47: =SUM(C48:C49) -> 0 | D47: 0 | E47: 0 | F47: 0 | G47: 0 | H47: 0 | I47: 0 | K47: =SUM(K48:K49) -> 0
A48: Housing development | I48: 0
A49: Other | I49: 0
A50: Other assets | C50: =SUM(C51:C62) -> 1008536.24 | D50: 1494721 | E50: 1494721 | F50: 0 | G50: 147977.48 | H50: 127365.1667 | I50: -20612.31333 | J50: -0.1618363472 | K50: 1494721
A51: General vehicles | C51: 52875.27 | D51: 97500 | E51: 97500 | F51: 0 | G51: 3713.14 | H51: 10495 | I51: 6781.86 | J51: 0.6461991424 | K51: 97500
A52: Specialised vehicles | C52: =C78 -> 71726.46 | D52: 195000 | E52: 195000 | F52: 0 | G52: 4038.51 | H52: 16500 | I52: 12461.49 | J52: 0.7552418182 | K52: =K78 -> 195000
A53: Plant & equipment | C53: 35084.74 | D53: 8700 | E53: 8700 | F53: 0 | G53: 4665.11 | H53: 1450 | I53: -3215.11 | J53: -2.217317241 | K53: 8700
A54: Computers - hardware/equipment | C54: 231918.19 | D54: 882321 | E54: 882321 | F54: 0 | G54: 20136.4 | H54: 72053.5 | I54: 51917.1 | J54: 0.7205354355 | K54: 882321
A55: Furniture and other office equipment | C55: 10128.99 | D55: 47700 | E55: 47700 | F55: 0 | G55: 0 | H55: 7950 | I55: 7950 | J55: 1 | K55: 47700
A56: Abattoirs | C56: 0 | D56: 0 | E56: 0 | F56: 0 | G56: 0 | H56: 0 | I56: 0 | K56: 0
A57: Markets | C57: 0 | D57: 0 | E57: 0 | F57: 0 | G57: 0 | H57: 0 | I57: 0 | K57: 0
A58: Civic Land and Buildings | C58: 45755.07 | D58: 263500 | E58: 263500 | F58: 0 | G58: 1185.01 | H58: 18916.66667 | I58: 17731.65667 | J58: 0.9373562996 | K58: 263500
A59: Other Buildings | C59: 0 | D59: 0 | E59: 0 | F59: 0 | G59: 0 | H59: 0 | I59: 0 | K59: 0
A60: Other Land | C60: 0 | D60: 0 | E60: 0 | F60: 0 | G60: 0 | H60: 0 | I60: 0 | K60: 0
A61: Surplus Assets - (Investment or Inventory) | C61: 0 | D61: 0 | E61: 0 | F61: 0 | G61: 0 | H61: 0 | I61: 0 | K61: 0
A62: Other | C62: 561047.52 | D62: 0 | E62: 0 | F62: 0 | G62: 114239.31 | H62: 0 | I62: -114239.31 | K62: 0
A64: Agricultural assets | C64: =SUM(C65:C66) -> 0 | D64: 0 | E64: 0 | F64: 0 | G64: 0 | H64: 0 | I64: =H64-G64 -> 0 | K64: =SUM(K65) -> 0
A65: List sub-class | I65: =H65-G65 -> 0
I66: =H66-G66 -> 0
J67: =IF(I67=0,"",I67/H67) -> 
A68: Biological assets | C68: =SUM(C69:C70) -> 0 | D68: 0 | E68: 0 | F68: 0 | G68: 0 | H68: 0 | I68: =H68-G68 -> 0 | J68: =IF(I68=0,"",I68/H68) ->  | K68: =SUM(K69) -> 0
A69: List sub-class | I69: =H69-G69 -> 0 | J69: =IF(I69=0,"",I69/H69) -> 
I70: =H70-G70 -> 0 | J70: =IF(I70=0,"",I70/H70) -> 
A72: Intangibles | C72: =SUM(C73:C74) -> 0 | D72: 0 | E72: 0 | F72: 0 | G72: 0 | H72: 0 | I72: =H72-G72 -> 0 | J72: =IF(I72=0,"",I72/H72) ->  | K72: =SUM(K73:K74) -> 0
A73: Computers - software & programming | I73: =H73-G73 -> 0 | J73: =IF(I73=0,"",I73/H73) -> 
A74: Other | I74: =H74-G74 -> 0 | J74: =IF(I74=0,"",I74/H74) -> 
A76: Total Repairs and Maintenance Expenditure | C76: =C7+C28+C43+C47+C50+C64+C68+C72 -> 2030382.44 | D76: 2771350 | E76: 2771350 | F76: 365.26 | G76: 210936.6 | H76: 238427.6667 | I76: =H76-G76 -> 27491.06667 | J76: =IF(I76=0,"",I76/H76) -> 0.1153014961 | K76: =K7+K28+K43+K47+K50+K64+K68+K72 -> 2607350
A78: Specialised vehicles | C78: =SUM(C79:C82) -> 71726.46 | D78: 195000 | E78: 195000 | F78: 0 | G78: 4038.51 | H78: 16500 | I78: =H78-G78 -> 12461.49 | J78: =IF(I78=0,"",I78/H78) -> 0.7552418182 | K78: 195000
A79: Refuse | C79: 71726.46 | D79: 195000 | E79: 195000 | F79: 0 | G79: 4038.51 | H79: 16500 | I79: =H79-G79 -> 12461.49 | J79: =IF(I79=0,"",I79/H79) -> 0.7552418182 | K79: 195000
A80: Fire | I80: =H80-G80 -> 0 | J80: =IF(I80=0,"",I80/H80) -> 
A81: Conservancy | I81: =H81-G81 -> 0 | J81: =IF(I81=0,"",I81/H81) -> 
A82: Ambulances | I82: =H82-G82 -> 0 | J82: =IF(I82=0,"",I82/H82) -> 

Sheet SC13d
A1: =muni& " - "&S71Sd& " - "&Head57 -> NC074 Kareeberg - Supporting Table SC13d Monthly Budget Statement - depreciation by asset class - M06 December
A2: =desc -> Description | B2: =head27 -> Ref | C2: =Head1 -> 2015/16 | D2: =Head2 -> Budget Year 2016/17
C3: =Head5 -> Audited Outcome | D3: =Head6 -> Original Budget | E3: =Head7 -> Adjusted Budget | F3: =Head38 -> Monthly actual | G3: =Head39 -> YearTD actual | H3: =Head40 -> YearTD budget | I3: =Head41 -> YTD variance | J3: =Head41 -> YTD variance | K3: =Head8 -> Full Year Forecast
A4: R thousands | B4: 1 | J4: %
A5: Depreciation by Asset Class/Sub-class
A7: Infrastructure | C7: =C8+C11+C15+C19+C22 -> 2917514 | D7: 2477157 | E7: 2477157 | F7: 0 | G7: 0 | H7: 0 | I7: =H7-G7 -> 0 | J7: =IF(I7=0,"",I7/H7) ->  | K7: =K8+K11+K15+K19+K22 -> 2477157
A8: Infrastructure - Road transport | C8: =SUM(C9:C10) -> 1835500 | D8: 1580142 | E8: 1580142 | F8: 0 | G8: 0 | H8: 0 | I8: 0 | K8: =SUM(K9:K10) -> 1580142
A9: Roads, Pavements & Bridges | C9: 1828373 | D9: 1573014 | E9: 1573014 | I9: 0 | K9: =E9 -> 1573014
A10: Storm water | C10: 7127 | D10: 7128 | E10: 7128 | I10: 0 | K10: =E10 -> 7128
A11: Infrastructure - Electricity | C11: =SUM(C12:C14) -> 119646 | D11: 169646 | E11: 169646 | F11: 0 | G11: 0 | H11: 0 | I11: 0 | K11: =SUM(K12:K14) -> 169646
A12: Generation | I12: 0
A13: Transmission & Reticulation | C13: 119646 | D13: 169646 | E13: 169646 | I13: 0 | K13: =E13 -> 169646
A14: Street Lighting | I14: 0
A15: Infrastructure - Water | C15: =SUM(C16:C18) -> 307132 | D15: 307133 | E15: 307133 | F15: 0 | G15: 0 | H15: 0 | I15: 0 | K15: =SUM(K16:K18) -> 307133
A16: Dams & Reservoirs | I16: 0
A17: Water purification | I17: 0
A18: Reticulation | C18: 307132 | D18: 307133 | E18: 307133 | I18: 0 | K18: =E18 -> 307133
A19: Infrastructure - Sanitation | C19: =SUM(C20:C21) -> 528503 | D19: 293503 | E19: 293503 | F19: 0 | G19: 0 | H19: 0 | I19: 0 | K19: =SUM(K20:K21) -> 293503
A20: Reticulation | C20: 235000 | D20: 0 | I20: 0
A21: Sewerage purification | C21: 293503 | D21: 293503 | E21: 293503 | I21: 0 | K21: =E21 -> 293503
A22: Infrastructure - Other | C22: =SUM(C23:C26) -> 126733 | D22: 126733 | E22: 126733 | F22: 0 | G22: 0 | H22: 0 | I22: 0 | K22: =SUM(K23:K26) -> 126733
A23: Waste Management | C23: 126733 | D23: 126733 | E23: 126733 | I23: 0 | K23: =E23 -> 126733
A24: Transportation | I24: 0
A25: Gas | I25: 0
A26: Other | I26: 0
A28: Community | C28: =SUM(C29:C42) -> 614073 | D28: 412880 | E28: 412880 | F28: 0 | G28: 0 | H28: 0 | I28: 0 | K28: =SUM(K29:K42) -> 412880
A29: Parks & gardens | C29: 12772 | D29: 12773 | E29: 12773 | I29: 0 | K29: =E29 -> 12773
A30: Sportsfields & stadia | C30: 0 | D30: 205000 | E30: 205000 | I30: 0 | K30: =E30 -> 205000
A31: Swimming pools | C31: 0 | D31: 0 | I31: 0
A32: Community halls | C32: 0 | D32: 0 | I32: 0
A33: Libraries | C33: 27888 | D33: 27889 | E33: 27889 | I33: 0 | K33: =E33 -> 27889
A34: Recreational facilities | C34: 542697 | D34: 136500 | E34: 136500 | I34: 0 | K34: =E34 -> 136500
A35: Fire, safety & emergency | C35: 0 | D35: 0 | I35: 0
A36: Security and policing | C36: 0 | D36: 0 | I36: 0
A37: Buses | C37: 0 | D37: 0 | I37: 0
A38: Clinics | C38: 15074 | D38: 15075 | E38: 15075 | I38: 0 | K38: =E38 -> 15075
A39: Museums & Art Galleries | C39: 15041 | D39: 15041 | E39: 15041 | I39: 0 | K39: =E39 -> 15041
A40: Cemeteries | C40: 601 | D40: 602 | E40: 602 | I40: 0 | K40: =E40 -> 602
A41: Social rental housing | I41: 0
A42: Other | I42: 0
A43: Heritage assets | C43: =SUM(C44:C45) -> 0 | D43: 0 | E43: 0 | F43: 0 | G43: 0 | H43: 0 | I43: 0 | K43: =SUM(K44:K45) -> 0
A44: Buildings | I44: 0
A45: Other | I45: 0
I46: 0
A47: Investment properties | C47: =SUM(C48:C49) -> 12363 | D47: 12364 | E47: 12364 | F47: 0 | G47: 0 | H47: 0 | I47: 0 | K47: =SUM(K48:K49) -> 12364
A48: Housing development | I48: 0
A49: Other | C49: 12363 | D49: 12364 | E49: 12364 | I49: 0 | K49: =E49 -> 12364
A50: Other assets | C50: =SUM(C51:C62) -> 721399 | D50: 721401 | E50: 721401 | F50: 0 | G50: 0 | H50: 0 | I50: 0 | K50: 721401
A51: General vehicles | C51: 255353 | D51: 255353 | E51: 255353 | I51: 0 | K51: =E51 -> 255353
A52: Specialised vehicles | C52: =C78 -> 43134 | D52: 43135 | E52: 43135 | F52: 0 | G52: 0 | H52: 0 | I52: 0 | K52: =K78 -> 43135
A53: Plant & equipment | C53: 114049 | D53: 114049 | E53: 114049 | I53: 0 | K53: =E53 -> 114049
A54: Computers - hardware/equipment | C54: 83138 | D54: 83139 | E54: 83139 | I54: 0 | K54: =E54 -> 83139
A55: Furniture and other office equipment | C55: 114166 | D55: 114166 | E55: 114166 | I55: 0 | K55: =E55 -> 114166
A56: Abattoirs | C56: 0 | D56: 0 | I56: 0
A57: Markets | C57: 0 | D57: 0 | I57: 0
A58: Civic Land and Buildings | C58: 111559 | D58: 111559 | E58: 111559 | I58: 0 | K58: =E58 -> 111559
A59: Other Buildings | I59: 0
A60: Other Land | I60: 0
A61: Surplus Assets - (Investment or Inventory) | I61: 0
A62: Other | I62: 0
A64: Agricultural assets | C64: =SUM(C65:C66) -> 0 | D64: 0 | E64: 0 | F64: 0 | G64: 0 | H64: 0 | I64: =H64-G64 -> 0 | K64: =SUM(K65) -> 0
A65: List sub-class | I65: =H65-G65 -> 0
I66: =H66-G66 -> 0
J67: =IF(I67=0,"",I67/H67) -> 
A68: Biological assets | C68: =SUM(C69:C70) -> 0 | D68: 0 | E68: 0 | F68: 0 | G68: 0 | H68: 0 | I68: =H68-G68 -> 0 | J68: =IF(I68=0,"",I68/H68) ->  | K68: =SUM(K69) -> 0
A69: List sub-class | I69: =H69-G69 -> 0 | J69: =IF(I69=0,"",I69/H69) -> 
I70: =H70-G70 -> 0 | J70: =IF(I70=0,"",I70/H70) -> 
A72: Intangibles | C72: =SUM(C73:C74) -> 57562 | D72: 57552 | E72: 57552 | F72: 0 | G72: 0 | H72: 0 | I72: =H72-G72 -> 0 | J72: =IF(I72=0,"",I72/H72) ->  | K72: =SUM(K73:K74) -> 57552
A73: Computers - software & programming | C73: 57562 | D73: 57552 | E73: 57552 | I73: =H73-G73 -> 0 | J73: =IF(I73=0,"",I73/H73) ->  | K73: =E73 -> 57552
A74: Other | I74: =H74-G74 -> 0 | J74: =IF(I74=0,"",I74/H74) -> 
A76: Total Depreciation | C76: =C7+C28+C43+C47+C50+C64+C68+C72 -> 4322911 | D76: 3681354 | E76: 3681354 | F76: 0 | G76: 0 | H76: 0 | I76: =H76-G76 -> 0 | J76: =IF(I76=0,"",I76/H76) ->  | K76: =K7+K28+K43+K47+K50+K64+K68+K72 -> 3681354
A78: Specialised vehicles | C78: =SUM(C79:C82) -> 43134 | D78: 43135 | E78: 43135 | F78: 0 | G78: 0 | H78: 0 | I78: =H78-G78 -> 0 | J78: =IF(I78=0,"",I78/H78) ->  | K78: 43135
A79: Refuse | C79: 40690 | D79: 40691 | E79: 40691 | I79: =H79-G79 -> 0 | J79: =IF(I79=0,"",I79/H79) ->  | K79: =E79 -> 40691
A80: Fire | C80: 2444 | D80: 2444 | E80: 2444 | I80: =H80-G80 -> 0 | J80: =IF(I80=0,"",I80/H80) ->  | K80: =E80 -> 2444
A81: Conservancy | I81: =H81-G81 -> 0 | J81: =IF(I81=0,"",I81/H81) -> 
A82: Ambulances | I82: =H82-G82 -> 0 | J82: =IF(I82=0,"",I82/H82) -> 

Sheet SC71charts
A1: ='Template names'!B101 -> Chart C1 2016/17 Capital Expenditure Monthly Trend: actual v target
A2: Month | B2: ='SC12'!B2 -> 2015/16 | C2: ='SC12'!C3 -> Original Budget | D2: ='SC12'!D3 -> Adjusted Budget | E2: ='SC12'!E3 -> Monthly actual
A3: =LEFT('SC12'!A6,3) -> Jul | B3: ='SC12'!B6 -> 828203 | C3: ='SC12'!C6 -> 4834500 | D3: ='SC12'!D6 -> 4834500 | E3: ='SC12'!E6 -> 1e-11
A4: =LEFT('SC12'!A7,3) -> Aug | B4: ='SC12'!B7 -> 627549 | C4: ='SC12'!C7 -> 1500000 | D4: ='SC12'!D7 -> 1500000 | E4: ='SC12'!E7 -> 59193
A5: =LEFT('SC12'!A8,3) -> Sep | B5: ='SC12'!B8 -> 313880 | C5: ='SC12'!C8 -> 1500000 | D5: ='SC12'!D8 -> 1500000 | E5: ='SC12'!E8 -> 0
A6: =LEFT('SC12'!A9,3) -> Oct | B6: ='SC12'!B9 -> 504426 | C6: ='SC12'!C9 -> 1500000 | D6: ='SC12'!D9 -> 1500000 | E6: ='SC12'!E9 -> 0
A7: =LEFT('SC12'!A10,3) -> Nov | B7: ='SC12'!B10 -> 732400 | C7: ='SC12'!C10 -> 1500000 | D7: ='SC12'!D10 -> 1500000 | E7: ='SC12'!E10 -> 0
A8: =LEFT('SC12'!A11,3) -> Dec | B8: ='SC12'!B11 -> 349484 | C8: ='SC12'!C11 -> 3834500 | D8: ='SC12'!D11 -> 3834500 | E8: ='SC12'!E11 -> 0
A9: =LEFT('SC12'!A12,3) -> Jan | B9: ='SC12'!B12 -> 1e-14 | C9: ='SC12'!C12 -> 1500000 | D9: ='SC12'!D12 -> 1500000 | E9: ='SC12'!E12 -> 0
A10: =LEFT('SC12'!A13,3) -> Feb | B10: ='SC12'!B13 -> 89375 | C10: ='SC12'!C13 -> 1500000 | D10: ='SC12'!D13 -> 1500000 | E10: ='SC12'!E13 -> 0
A11: =LEFT('SC12'!A14,3) -> Mar | B11: ='SC12'!B14 -> 527372 | C11: ='SC12'!C14 -> 1500000 | D11: ='SC12'!D14 -> 1500000 | E11: ='SC12'!E14 -> 0
A12: =LEFT('SC12'!A15,3) -> Apr | B12: ='SC12'!B15 -> 1272553 | C12: ='SC12'!C15 -> 1500000 | D12: ='SC12'!D15 -> 1500000 | E12: ='SC12'!E15 -> 0
A13: =LEFT('SC12'!A16,3) -> May | B13: ='SC12'!B16 -> 901661 | C13: ='SC12'!C16 -> 1500000 | D13: ='SC12'!D16 -> 1500000 | E13: ='SC12'!E16 -> 0
A14: =LEFT('SC12'!A17,3) -> Jun | B14: ='SC12'!B17 -> 1328660 | C14: ='SC12'!C17 -> 1500000 | D14: ='SC12'!D17 -> 1500000 | E14: ='SC12'!E17 -> 0
A26: ='Template names'!B102 -> Chart C2 2016/17 Capital Expenditure: YTD actual v YTD target
A27: Month | B27: ='SC12'!F3 -> YearTD actual | C27: ='SC12'!G3 -> YearTD budget
A28: =LEFT('SC12'!A6,3) -> Jul | B28: ='SC12'!F6 -> 1e-11 | C28: ='SC12'!G6 -> 4834500
A29: =LEFT('SC12'!A7,3) -> Aug | B29: ='SC12'!F7 -> 59193 | C29: ='SC12'!G7 -> 6334500
A30: =LEFT('SC12'!A8,3) -> Sep | B30: ='SC12'!F8 ->  | C30: ='SC12'!G8 -> 7834500
A31: =LEFT('SC12'!A9,3) -> Oct | B31: ='SC12'!F9 ->  | C31: ='SC12'!G9 -> 9334500
A32: =LEFT('SC12'!A10,3) -> Nov | B32: ='SC12'!F10 ->  | C32: ='SC12'!G10 -> 10834500
A33: =LEFT('SC12'!A11,3) -> Dec | B33: ='SC12'!F11 ->  | C33: ='SC12'!G11 -> 14669000
A34: =LEFT('SC12'!A12,3) -> Jan | B34: ='SC12'!F12 ->  | C34: ='SC12'!G12 -> 16169000
A35: =LEFT('SC12'!A13,3) -> Feb | B35: ='SC12'!F13 ->  | C35: ='SC12'!G13 -> 17669000
A36: =LEFT('SC12'!A14,3) -> Mar | B36: ='SC12'!F14 ->  | C36: ='SC12'!G14 -> 19169000
A37: =LEFT('SC12'!A15,3) -> Apr | B37: ='SC12'!F15 ->  | C37: ='SC12'!G15 -> 20669000
A38: =LEFT('SC12'!A16,3) -> May | B38: ='SC12'!F16 ->  | C38: ='SC12'!G16 -> 22169000
A39: =LEFT('SC12'!A17,3) -> Jun | B39: ='SC12'!F17 ->  | C39: ='SC12'!G17 -> 23669000
A51: ='Template names'!B103 -> Chart C3 Aged Consumer Debtors Analysis
B52: ='SC3'!C3 -> 0-30 Days | C52: ='SC3'!D3 -> 31-60 Days | D52: ='SC3'!E3 -> 61-90 Days | E52: ='SC3'!F3 -> 91-120 Days | F52: ='SC3'!G3 -> 121-150 Dys | G52: ='SC3'!H3 -> 151-180 Dys | H52: ='SC3'!I3 -> 181 Dys-1 Yr | I52: ='SC3'!J3 -> Over 1Yr
A53: =Head2 -> Budget Year 2016/17 | B53: ='SC3'!C14 -> 0 | C53: ='SC3'!D14 -> 0 | D53: ='SC3'!E14 -> 0 | E53: ='SC3'!F14 -> 0 | F53: ='SC3'!G14 -> 0 | G53: ='SC3'!H14 -> 0 | H53: ='SC3'!I14 -> 0 | I53: ='SC3'!J14 -> 0
A54: =Head1 -> 2015/16 | B54: ='SC3'!C15 -> 0 | C54: ='SC3'!D15 -> 0 | D54: ='SC3'!E15 -> 0 | E54: ='SC3'!F15 -> 0 | F54: ='SC3'!G15 -> 0 | G54: ='SC3'!H15 -> 0 | H54: ='SC3'!I15 -> 0 | I54: ='SC3'!J15 -> 0
A76: ='Template names'!B104 -> Chart C4 Consumer Debtors (total by Debtor Customer Category)
B77: =Head1 -> 2015/16 | C77: =Head2 -> Budget Year 2016/17
A78: ='SC3'!A17 -> Organs of State | B78: =C78*0.97 -> 0 | C78: ='SC3'!K17 -> 0
A79: ='SC3'!A18 -> Commercial | B79: =C79*0.97 -> 0 | C79: ='SC3'!K18 -> 0
A80: ='SC3'!A19 -> Households | B80: =C80*0.97 -> 0 | C80: ='SC3'!K19 -> 0
A81: ='SC3'!A20 -> Other | B81: =C81*0.97 -> 0 | C81: ='SC3'!K20 -> 0
A101: ='Template names'!B105 -> Chart C5 Aged Creditors Analysis
B102: ='SC4'!A6 -> Bulk Electricity | C102: ='SC4'!A7 -> Bulk Water | D102: ='SC4'!A8 -> PAYE deductions | E102: ='SC4'!A9 -> VAT (output less input) | F102: ='SC4'!A10 -> Pensions / Retirement deductions | G102: ='SC4'!A11 -> Loan repayments | H102: ='SC4'!A12 -> Trade Creditors | I102: ='SC4'!A13 -> Auditor General | J102: ='SC4'!A14 -> Other
A103: =A54 -> 2015/16 | B103: ='SC4'!L6 -> 0 | C103: ='SC4'!L7 -> 0 | D103: ='SC4'!L8 -> 0 | E103: ='SC4'!L9 -> 0 | F103: ='SC4'!L10 -> 0 | G103: ='SC4'!L11 -> 0 | H103: ='SC4'!L12 -> 0 | I103: ='SC4'!L13 -> 0 | J103: ='SC4'!L14 -> 0
A104: =A53 -> Budget Year 2016/17 | B104: ='SC4'!K6 -> 0 | C104: ='SC4'!K7 -> 0 | D104: ='SC4'!K8 -> 0 | E104: ='SC4'!K9 -> 0 | F104: ='SC4'!K10 -> 0 | G104: ='SC4'!K11 -> 0 | H104: ='SC4'!K12 -> 0 | I104: ='SC4'!K13 -> 0 | J104: ='SC4'!K14 -> 0
